Workbook

Sheet Orçamento
O3: UNIDADE ESCOLAR | V3: CÓDIGO INEP
O4: COLÉGIO ESTADUAL PROFESSOR HELI ALVES FERREIRA | V4: 52020487
A6: Nmax | M6: Ajustar altura? | O6: OBRA | S6: DATA | V6: CIDADE
A7: =MAX($C$18:$C$619) -> 3 | M7: NÃO | O7: REFORMA E AMPLIAÇÃO | S7: 2020-04-08 | V7: ANÁPOLIS
O9: CRE | R9: ENDEREÇO | V9: REFERÊNCIA AGETOP
O10: ANÁPOLIS | R10: RUA LOPO DE SOUZA RAMOS S/N PÇA MAJOR HENRIQUE, JUNDIAI, CEP:75110-410 | V10: DEZ/18 | W10: DESONERADA
O12: ÁREA EXISTENTE (M²) | R12: ÁREA A CONSTRUIR (M²) | S12: ÁREA TOTAL CONSTRUÍDA (M²) | V12: REFERÊNCIA SINAPI
O13: 1468.27 | R13: 120.82 | S13: 1589.09 | V13: MAR/19 | W13: DESONERADA
L15: FILTRO | O15: PLANILHA ORÇAMENTÁRIA
A16: Nível E | B16: Save Nivel | C16: Nível C | D16: Altura | E16: n1 | F16: n2 | G16: n3 | H16: n4 | I16: n5 | J16: Czero | K16: Cnível | L16: ↓ | M16: Nível | N16: Nível Corrigido | O16: ITEM | P16: TABELA | Q16: CODIGO | R16: DESCRIÇÃO DOS SERVIÇOS | S16: UNID | T16: QUANT | U16: MAT | V16: MO | W16: T.SERVIÇO | X16: OBSERVAÇÕES¹
A17: =CHOOSE(1+LOG(1+2*(ORÇAMENTO.Nivel="Nível 1")+4*(ORÇAMENTO.Nivel="Nível 2")+8*(ORÇAMENTO.Nivel="Nível 3")+16*(ORÇAMENTO.Nivel="Nível 4")+32*(ORÇAMENTO.Nivel="Serviço"),2),0,1,2,3,4,"S") -> S | B17: =IF(OR(C17="s",C17=0),OFFSET(B17,-1,0),C17) -> Save Nivel | C17: =IF(OFFSET(C17,-1,0)="L",1,IF(OFFSET(C17,-1,0)=1,2,IF(OR(A17="s",A17=0),"S",IF(AND(OFFSET(C17,-1,0)=2,A17=4),3,IF(AND(OR(OFFSET(C17,-1,0)="s",OFFSET(C17,-1,0)=0),A17<>"s",A17>OFFSET(B17,-1,0)),OFFSET(B17,-1,0),A17))))) -> S | D17: =IF(OR(C17="S",C17=0),0,IF(ISERROR(K17),J17,SMALL(J17:K17,1))) -> 0 | E17: =IF($C17=1,OFFSET(E17,-1,0)+1,OFFSET(E17,-1,0)) -> n1 | F17: =IF($C17=1,0,IF($C17=2,OFFSET(F17,-1,0)+1,OFFSET(F17,-1,0))) -> n2 | G17: =IF(AND($C17<=2,$C17<>0),0,IF($C17=3,OFFSET(G17,-1,0)+1,OFFSET(G17,-1,0))) -> n3 | H17: =IF(AND($C17<=3,$C17<>0),0,IF($C17=4,OFFSET(H17,-1,0)+1,OFFSET(H17,-1,0))) -> n4 | I17: =IF(AND($C17<=4,$C17<>0),0,IF(AND($C17="S",$W17>0),OFFSET(I17,-1,0)+1,OFFSET(I17,-1,0))) -> n5 | J17: =IF(OR($C17="S",$C17=0),0,MATCH(0,OFFSET($D17,1,$C17,ROW($C$619)-ROW($C17)),0)) -> 0 | K17: =IF(OR($C17="S",$C17=0),0,MATCH(OFFSET($D17,0,$C17)+1,OFFSET($D17,1,$C17,ROW($C$619)-ROW($C17)),0)) -> 0 | M17: Serviço | N17: Serviço | O17: - | P17: SINAPI | R17: (sem código) | S17: - | U17: 0 | V17: 0 | W17: 0
A18: 0 | C18: L | D18: =COUNTA(OFFSET(D18,1,0):D$619) -> 600 | E18: =LEFT(O19,1)-1 -> 0 | L18: F | M18: LOTE | N18: LOTE | O18: REFORMA E AMPLIAÇÃO - COLÉGIO ESTADUAL PROFESSOR HELI ALVES FERREIRA | W18: 0
A19: 1 | B19: =IF(OR(C19="s",C19=0),OFFSET(B19,-1,0),C19) -> 1 | C19: =IF(OFFSET(C19,-1,0)="L",1,IF(OFFSET(C19,-1,0)=1,2,IF(OR(A19="s",A19=0),"S",IF(AND(OFFSET(C19,-1,0)=2,A19=4),3,IF(AND(OR(OFFSET(C19,-1,0)="s",OFFSET(C19,-1,0)=0),A19<>"s",A19>OFFSET(B19,-1,0)),OFFSET(B19,-1,0),A19))))) -> 1 | D19: =IF(OR(C19="S",C19=0),0,IF(ISERROR(K19),J19,SMALL(J19:K19,1))) -> 263 | E19: =IF($C19=1,OFFSET(E19,-1,0)+1,OFFSET(E19,-1,0)) -> 1 | F19: =IF($C19=1,0,IF($C19=2,OFFSET(F19,-1,0)+1,OFFSET(F19,-1,0))) -> 0 | G19: =IF(AND($C19<=2,$C19<>0),0,IF($C19=3,OFFSET(G19,-1,0)+1,OFFSET(G19,-1,0))) -> 0 | H19: =IF(AND($C19<=3,$C19<>0),0,IF($C19=4,OFFSET(H19,-1,0)+1,OFFSET(H19,-1,0))) -> 0 | I19: 0 | J19: =IF(OR($C19="S",$C19=0),0,MATCH(0,OFFSET($D19,1,$C19,ROW($C$619)-ROW($C19)),0)) -> 600 | K19: =IF(OR($C19="S",$C19=0),0,MATCH(OFFSET($D19,0,$C19)+1,OFFSET($D19,1,$C19,ROW($C$619)-ROW($C19)),0)) -> 263 | L19: F | M19: Nível 1 | N19: Nível 1 | O19: 1. | P19: AGETOP | R19: REFORMA | W19: 0
A20: 2 | B20: =IF(OR(C20="s",C20=0),OFFSET(B20,-1,0),C20) -> 2 | C20: =IF(OFFSET(C20,-1,0)="L",1,IF(OFFSET(C20,-1,0)=1,2,IF(OR(A20="s",A20=0),"S",IF(AND(OFFSET(C20,-1,0)=2,A20=4),3,IF(AND(OR(OFFSET(C20,-1,0)="s",OFFSET(C20,-1,0)=0),A20<>"s",A20>OFFSET(B20,-1,0)),OFFSET(B20,-1,0),A20))))) -> 2 | D20: =IF(OR(C20="S",C20=0),0,IF(ISERROR(K20),J20,SMALL(J20:K20,1))) -> 14 | E20: =IF($C20=1,OFFSET(E20,-1,0)+1,OFFSET(E20,-1,0)) -> 1 | F20: =IF($C20=1,0,IF($C20=2,OFFSET(F20,-1,0)+1,OFFSET(F20,-1,0))) -> 1 | G20: =IF(AND($C20<=2,$C20<>0),0,IF($C20=3,OFFSET(G20,-1,0)+1,OFFSET(G20,-1,0))) -> 0 | H20: =IF(AND($C20<=3,$C20<>0),0,IF($C20=4,OFFSET(H20,-1,0)+1,OFFSET(H20,-1,0))) -> 0 | I20: 0 | J20: 262 | K20: 14 | M20: Nível 2 | N20: Nível 2 | O20: - | P20: AGETOP | R20: SERVIÇOS PRELIMINARES | W20: 0
A21: S | B21: 2 | C21: S | D21: 0 | E21: 1 | F21: 1 | G21: 0 | H21: 0 | I21: 0 | J21: 0 | K21: 0 | M21: Serviço | N21: Serviço | O21: - | P21: SINAPI | Q21: 97640 | R21: REMOÇÃO DE FORROS DE DRYWALL, PVC E FIBROMINERAL, DE FORMA MANUAL, SEM REAPROVEITAMENTO. AF_12/2017 | S21: M2 | T21: 40 | W21: 0
A22: S | B22: =IF(OR(C22="s",C22=0),OFFSET(B22,-1,0),C22) -> 2 | C22: =IF(OFFSET(C22,-1,0)="L",1,IF(OFFSET(C22,-1,0)=1,2,IF(OR(A22="s",A22=0),"S",IF(AND(OFFSET(C22,-1,0)=2,A22=4),3,IF(AND(OR(OFFSET(C22,-1,0)="s",OFFSET(C22,-1,0)=0),A22<>"s",A22>OFFSET(B22,-1,0)),OFFSET(B22,-1,0),A22))))) -> S | D22: =IF(OR(C22="S",C22=0),0,IF(ISERROR(K22),J22,SMALL(J22:K22,1))) -> 0 | E22: 1 | F22: 1 | G22: 0 | H22: 0 | I22: 0 | J22: 0 | K22: 0 | M22: Serviço | N22: Serviço | O22: - | P22: AGETOP | Q22: 20101 | R22: DEMOLICAO COBERTURA TELHA CERAMICA C/ TRANSP. ATÉ CB. E CARGA | S22: m2 | T22: 30 | W22: 0
A23: S | B23: 2 | C23: S | D23: 0 | E23: 1 | F23: 1 | G23: 0 | H23: 0 | I23: 0 | J23: 0 | K23: 0 | M23: Serviço | N23: Serviço | O23: - | P23: SINAPI | Q23: 97645 | R23: REMOÇÃO DE JANELAS, DE FORMA MANUAL, SEM REAPROVEITAMENTO. AF_12/2017 | S23: M2 | T23: 6.16 | W23: 0 | X23: Referência: AGETOP - 20106
A24: S | B24: 2 | C24: S | D24: 0 | E24: 1 | F24: 1 | G24: 0 | H24: 0 | I24: 0 | J24: 0 | K24: 0 | M24: Serviço | N24: Serviço | O24: - | P24: SINAPI | Q24: 97644 | R24: REMOÇÃO DE PORTAS, DE FORMA MANUAL, SEM REAPROVEITAMENTO. AF_12/2017 | S24: M2 | T24: 8.61 | W24: 0 | X24: Referência: AGETOP - 20106
A25: S | B25: 2 | C25: S | D25: 0 | E25: 1 | F25: 1 | G25: 0 | H25: 0 | I25: 0 | J25: 0 | K25: 0 | M25: Serviço | N25: Serviço | O25: - | P25: AGETOP | Q25: 20109 | R25: DEM.PISO CIMENT.SOBRE LASTRO CONC.C/TR.ATE CB. E CARGA | S25: m2 | T25: 3.25 | W25: 0
A26: S | B26: 2 | C26: S | D26: 0 | E26: 1 | F26: 1 | G26: 0 | H26: 0 | I26: 0 | J26: 0 | K26: 0 | M26: Serviço | N26: Serviço | O26: - | P26: AGETOP | Q26: 20121 | R26: DEM. MANUAL EM CONCR.SIMPLES C/TR.ATE CB.E CARGA (O.C.) | S26: m3 | T26: 8 | W26: 0
A27: S | B27: 2 | C27: S | D27: 0 | E27: 1 | F27: 1 | G27: 0 | H27: 0 | I27: 0 | J27: 0 | K27: 0 | M27: Serviço | N27: Serviço | O27: - | P27: SINAPI | Q27: 97622 | R27: DEMOLIÇÃO DE ALVENARIA DE BLOCO FURADO, DE FORMA MANUAL, SEM REAPROVEITAMENTO. AF_12/2017 | S27: M3 | T27: 2.3 | W27: 0 | X27: Referência: AGETOP - 20118
A28: S | B28: 2 | C28: S | D28: 0 | E28: 1 | F28: 1 | G28: 0 | H28: 0 | I28: 0 | J28: 0 | K28: 0 | M28: Serviço | N28: Serviço | O28: - | P28: AGETOP | Q28: 20140 | R28: DEMOLIÇAO DE VÁLVULA DE DESCARGA C/ TRANSP. ATÉ CB. E CARGA | S28: Un | T28: 3 | W28: 0
A29: S | B29: 2 | C29: S | D29: 0 | E29: 1 | F29: 1 | G29: 0 | H29: 0 | I29: 0 | J29: 0 | K29: 0 | M29: Serviço | N29: Serviço | O29: - | P29: AGETOP | Q29: 20146 | R29: DEMOLIÇÃO DE MICTÓRIO C/ TRANSP. ATÉ CB. E CARGA | S29: Un | T29: 1 | W29: 0
A30: S | B30: 2 | C30: S | D30: 0 | E30: 1 | F30: 1 | G30: 0 | H30: 0 | I30: 0 | J30: 0 | K30: 0 | M30: Serviço | N30: Serviço | O30: - | P30: AGETOP | Q30: 20162 | R30: DEMOLIÇÃO DAS INSTALAÇÕES ELÉTRICAS E AFINS C/ TRANSP. ATÉ CB. E CARGA | S30: H | T30: 1 | W30: 0
A31: S | B31: 2 | C31: S | D31: 0 | E31: 1 | F31: 1 | G31: 0 | H31: 0 | I31: 0 | J31: 0 | K31: 0 | M31: Serviço | N31: Serviço | O31: - | P31: AGETOP | Q31: 20163 | R31: DEMOLIÇÃO DAS INSTALAÇÕES HIDROSANITÁRIAS E AFINS C/ TRANSP. ATÉ CB. E CARGA | S31: H | T31: 3 | W31: 0
A32: S | B32: 2 | C32: S | D32: 0 | E32: 1 | F32: 1 | G32: 0 | H32: 0 | I32: 0 | J32: 0 | K32: 0 | M32: Serviço | N32: Serviço | O32: - | P32: AGETOP | Q32: 20117 | R32: DEMOL.REVEST.C/ARGAMASSA C/TR.ATE CB.E CARGA | S32: m2 | T32: 12.6 | W32: 0
A33: S | B33: 2 | C33: S | D33: 0 | E33: 1 | F33: 1 | G33: 0 | H33: 0 | I33: 0 | J33: 0 | K33: 0 | M33: Serviço | N33: Serviço | O33: - | P33: SINAPI | Q33: 74209/1 | R33: PLACA DE OBRA EM CHAPA DE ACO GALVANIZADO | S33: M2 | T33: 4.5 | W33: 0 | X33: Referência: AGETOP - 21301
A34: 2 | B34: 2 | C34: 2 | D34: 3 | E34: 1 | F34: 2 | G34: 0 | H34: 0 | I34: 0 | J34: 248 | K34: 3 | M34: Nível 2 | N34: Nível 2 | O34: - | P34: AGETOP | R34: TRANSPORTES | S34: - | W34: 0
A35: S | B35: 2 | C35: S | D35: 0 | E35: 1 | F35: 2 | G35: 0 | H35: 0 | I35: 0 | J35: 0 | K35: 0 | M35: Serviço | N35: Serviço | O35: - | P35: SINAPI | Q35: 72900 | R35: TRANSPORTE DE ENTULHO COM CAMINHAO BASCULANTE 6 M3, RODOVIA PAVIMENTADA, DMT 0,5 A 1,0 KM | S35: M3 | T35: 5 | W35: 0
A36: S | B36: 2 | C36: S | D36: 0 | E36: 1 | F36: 2 | G36: 0 | H36: 0 | I36: 0 | J36: 0 | K36: 0 | M36: Serviço | N36: Serviço | O36: - | P36: SINAPI | Q36: 72897 | R36: CARGA MANUAL DE ENTULHO EM CAMINHAO BASCULANTE 6 M3 | S36: M3 | T36: 5 | W36: 0
A37: 2 | B37: 2 | C37: 2 | D37: 7 | E37: 1 | F37: 3 | G37: 0 | H37: 0 | I37: 0 | J37: 245 | K37: 7 | M37: Nível 2 | N37: Nível 2 | O37: - | P37: AGETOP | R37: SERVIÇO EM TERRA | S37: - | W37: 0
A38: S | B38: 2 | C38: S | D38: 0 | E38: 1 | F38: 3 | G38: 0 | H38: 0 | I38: 0 | J38: 0 | K38: 0 | M38: Serviço | N38: Serviço | O38: - | P38: SINAPI | Q38: 79480 | R38: ESCAVACAO MECANICA CAMPO ABERTO EM SOLO EXCETO ROCHA ATE 2,00M PROFUNDIDADE | S38: M3 | T38: 7.25 | W38: 0 | X38: Referência: AGETOP - 41004
A39: S | B39: 2 | C39: S | D39: 0 | E39: 1 | F39: 3 | G39: 0 | H39: 0 | I39: 0 | J39: 0 | K39: 0 | M39: Serviço | N39: Serviço | O39: - | P39: SINAPI | Q39: 72898 | R39: CARGA E DESCARGA MECANIZADAS DE ENTULHO EM CAMINHAO BASCULANTE 6 M3 | S39: M3 | T39: 7.25 | W39: 0 | X39: Referência: AGETOP - 41005
A40: S | B40: 2 | C40: S | D40: 0 | E40: 1 | F40: 3 | G40: 0 | H40: 0 | I40: 0 | J40: 0 | K40: 0 | M40: Serviço | N40: Serviço | O40: - | P40: AGETOP | Q40: 41012 | R40: INDENIZAÇÃO DE JAZIDA | S40: m3 | T40: 7.25 | W40: 0
A41: S | B41: 2 | C41: S | D41: 0 | E41: 1 | F41: 3 | G41: 0 | H41: 0 | I41: 0 | J41: 0 | K41: 0 | M41: Serviço | N41: Serviço | O41: - | P41: AGETOP | Q41: 41006 | R41: TRANSPORTE DE MATERIAL ESCAVADO M3.KM | S41: m3km | T41: 72.5 | W41: 0
A42: S | B42: 2 | C42: S | D42: 0 | E42: 1 | F42: 3 | G42: 0 | H42: 0 | I42: 0 | J42: 0 | K42: 0 | M42: Serviço | N42: Serviço | O42: - | P42: SINAPI | Q42: 74005/2 | R42: COMPACTACAO MECANICA C/ CONTROLE DO GC>=95% DO PN (AREAS) (C/MONIVELADORA 140 HP E ROLO COMPRESSOR VIBRATORIO 80 HP) | S42: M3 | T42: 5.8 | W42: 0 | X42: Referência: AGETOP - 41008
A43: =CHOOSE(1+LOG(1+2*(ORÇAMENTO.Nivel="Nível 1")+4*(ORÇAMENTO.Nivel="Nível 2")+8*(ORÇAMENTO.Nivel="Nível 3")+16*(ORÇAMENTO.Nivel="Nível 4")+32*(ORÇAMENTO.Nivel="Serviço"),2),0,1,2,3,4,"S") -> S | B43: 2 | C43: S | D43: 0 | E43: =IF($C43=1,OFFSET(E43,-1,0)+1,OFFSET(E43,-1,0)) -> 1 | F43: =IF($C43=1,0,IF($C43=2,OFFSET(F43,-1,0)+1,OFFSET(F43,-1,0))) -> 3 | G43: =IF(AND($C43<=2,$C43<>0),0,IF($C43=3,OFFSET(G43,-1,0)+1,OFFSET(G43,-1,0))) -> 0 | H43: =IF(AND($C43<=3,$C43<>0),0,IF($C43=4,OFFSET(H43,-1,0)+1,OFFSET(H43,-1,0))) -> 0 | I43: =IF(AND($C43<=4,$C43<>0),0,IF(AND($C43="S",$W43>0),OFFSET(I43,-1,0)+1,OFFSET(I43,-1,0))) -> 0 | J43: 0 | K43: 0 | M43: Serviço | N43: Serviço | O43: - | P43: AGETOP | Q43: 41002 | R43: APILOAMENTO | S43: m2 | T43: 32 | W43: 0
A44: 2 | B44: 2 | C44: 2 | D44: 116 | E44: 1 | F44: 4 | G44: 0 | H44: 0 | I44: 0 | J44: 238 | K44: 116 | M44: Nível 2 | N44: Nível 2 | O44: - | P44: SINAPI | R44: INSTALAÇÕES ELÉTRICAS | S44: - | W44: 0
A45: 3 | B45: 3 | C45: 3 | D45: 56 | E45: 1 | F45: 4 | G45: 1 | H45: 0 | I45: 0 | J45: 115 | K45: 56 | M45: Nível 3 | N45: Nível 3 | O45: - | P45: SINAPI | R45: REFORMA GERAL | S45: - | W45: 0
A46: S | B46: 3 | C46: S | D46: 0 | E46: 1 | F46: 4 | G46: 1 | H46: 0 | I46: 0 | J46: 0 | K46: 0 | M46: Serviço | N46: Serviço | O46: - | P46: SINAPI | Q46: 74131/7 | R46: QUADRO DE DISTRIBUICAO DE ENERGIA DE EMBUTIR, EM CHAPA METALICA, PARA 40 DISJUNTORES TERMOMAGNETICOS MONOPOLARES, COM BARRAMENTO TRIFASICO E NEUTRO, FORNECIMENTO E INSTALACAO | S46: UN | T46: 2 | W46: 0
A47: S | B47: 3 | C47: S | D47: 0 | E47: 1 | F47: 4 | G47: 1 | H47: 0 | I47: 0 | J47: 0 | K47: 0 | M47: Serviço | N47: Serviço | O47: - | P47: SINAPI | Q47: 74131/6 | R47: QUADRO DE DISTRIBUICAO DE ENERGIA DE EMBUTIR, EM CHAPA METALICA, PARA 32 DISJUNTORES TERMOMAGNETICOS MONOPOLARES, COM BARRAMENTO TRIFASICO E NEUTRO, FORNECIMENTO E INSTALACAO | S47: UN | T47: 1 | W47: 0 | X47: Referência: AGETOP - 72198
A48: S | B48: 3 | C48: S | D48: 0 | E48: 1 | F48: 4 | G48: 1 | H48: 0 | I48: 0 | J48: 0 | K48: 0 | M48: Serviço | N48: Serviço | O48: - | P48: AGETOP | Q48: 71175 | R48: DISJUNTOR TRIPOLAR DE 60 A 100-A | S48: Un | T48: 4 | W48: 0
A49: S | B49: 3 | C49: S | D49: 0 | E49: 1 | F49: 4 | G49: 1 | H49: 0 | I49: 0 | J49: 0 | K49: 0 | M49: Serviço | N49: Serviço | O49: - | P49: SINAPI | Q49: 74130/10 | R49: DISJUNTOR TERMOMAGNETICO TRIPOLAR EM CAIXA MOLDADA 175 A 225A 240V, FORNECIMENTO E INSTALACAO | S49: UN | T49: 2 | W49: 0
A50: S | B50: 3 | C50: S | D50: 0 | E50: 1 | F50: 4 | G50: 1 | H50: 0 | I50: 0 | J50: 0 | K50: 0 | M50: Serviço | N50: Serviço | O50: - | P50: SINAPI | Q50: 93656 | R50: DISJUNTOR MONOPOLAR TIPO DIN, CORRENTE NOMINAL DE 25A - FORNECIMENTO E INSTALAÇÃO. AF_04/2016 | S50: UN | T50: 24 | W50: 0
A51: S | B51: 3 | C51: S | D51: 0 | E51: 1 | F51: 4 | G51: 1 | H51: 0 | I51: 0 | J51: =IF(OR($C51="S",$C51=0),0,MATCH(0,OFFSET($D51,1,$C51,ROW($C$619)-ROW($C51)),0)) -> 0 | K51: =IF(OR($C51="S",$C51=0),0,MATCH(OFFSET($D51,0,$C51)+1,OFFSET($D51,1,$C51,ROW($C$619)-ROW($C51)),0)) -> 0 | M51: Serviço | N51: Serviço | O51: - | P51: SINAPI | Q51: 93654 | R51: DISJUNTOR MONOPOLAR TIPO DIN, CORRENTE NOMINAL DE 16A - FORNECIMENTO E INSTALAÇÃO. AF_04/2016 | S51: UN | T51: 19 | W51: 0
A52: S | B52: 3 | C52: S | D52: 0 | E52: 1 | F52: 4 | G52: 1 | H52: 0 | I52: 0 | J52: 0 | K52: 0 | M52: Serviço | N52: Serviço | O52: - | P52: SINAPI | Q52: 93653 | R52: DISJUNTOR MONOPOLAR TIPO DIN, CORRENTE NOMINAL DE 10A - FORNECIMENTO E INSTALAÇÃO. AF_04/2016 | S52: UN | T52: 18 | W52: 0
A53: S | B53: 3 | C53: S | D53: 0 | E53: 1 | F53: 4 | G53: 1 | H53: 0 | I53: 0 | J53: 0 | K53: 0 | M53: Serviço | N53: Serviço | O53: - | P53: AGETOP | Q53: 71184 | R53: DISPOSITIVO DE PROTEÇÃO CONTRA SURTOS (D.P.S.) 275V DE 8 A 40KA | S53: Un | T53: 3 | W53: 0
A54: S | B54: 3 | C54: S | D54: 0 | E54: 1 | F54: 4 | G54: 1 | H54: 0 | I54: 0 | J54: 0 | K54: 0 | M54: Serviço | N54: Serviço | O54: - | P54: SINAPI | Q54: 91926 | R54: CABO DE COBRE FLEXÍVEL ISOLADO, 2,5 MM², ANTI-CHAMA 450/750 V, PARA CIRCUITOS TERMINAIS - FORNECIMENTO E INSTALAÇÃO. AF_12/2015 | S54: M | T54: 2903 | W54: 0 | X54: Referência: AGETOP - 70563
A55: S | B55: 3 | C55: S | D55: 0 | E55: 1 | F55: 4 | G55: 1 | H55: 0 | I55: 0 | J55: 0 | K55: 0 | M55: Serviço | N55: Serviço | O55: - | P55: SINAPI | Q55: 91928 | R55: CABO DE COBRE FLEXÍVEL ISOLADO, 4 MM², ANTI-CHAMA 450/750 V, PARA CIRCUITOS TERMINAIS - FORNECIMENTO E INSTALAÇÃO. AF_12/2015 | S55: M | T55: 3394.9 | W55: 0 | X55: Referência: AGETOP - 70564
A56: S | B56: 3 | C56: S | D56: 0 | E56: 1 | F56: 4 | G56: 1 | H56: 0 | I56: 0 | J56: 0 | K56: 0 | M56: Serviço | N56: Serviço | O56: - | P56: SINAPI | Q56: 91930 | R56: CABO DE COBRE FLEXÍVEL ISOLADO, 6 MM², ANTI-CHAMA 450/750 V, PARA CIRCUITOS TERMINAIS - FORNECIMENTO E INSTALAÇÃO. AF_12/2015 | S56: M | T56: 489.15 | W56: 0 | X56: Referência: AGETOP - 70565
A57: S | B57: 3 | C57: S | D57: 0 | E57: 1 | F57: 4 | G57: 1 | H57: 0 | I57: 0 | J57: 0 | K57: 0 | M57: Serviço | N57: Serviço | O57: - | P57: SINAPI | Q57: 92981 | R57: CABO DE COBRE FLEXÍVEL ISOLADO, 16 MM², ANTI-CHAMA 450/750 V, PARA DISTRIBUIÇÃO - FORNECIMENTO E INSTALAÇÃO. AF_12/2015 | S57: M | T57: 58.4 | W57: 0
A58: S | B58: 3 | C58: S | D58: 0 | E58: 1 | F58: 4 | G58: 1 | H58: 0 | I58: 0 | J58: 0 | K58: 0 | M58: Serviço | N58: Serviço | O58: - | P58: SINAPI | Q58: 92990 | R58: CABO DE COBRE FLEXÍVEL ISOLADO, 70 MM², ANTI-CHAMA 0,6/1,0 KV, PARA DISTRIBUIÇÃO - FORNECIMENTO E INSTALAÇÃO. AF_12/2015 | S58: M | T58: 43.2 | W58: 0 | X58: Referência: AGETOP - 70514
A59: S | B59: 3 | C59: S | D59: 0 | E59: 1 | F59: 4 | G59: 1 | H59: 0 | I59: 0 | J59: 0 | K59: 0 | M59: Serviço | N59: Serviço | O59: - | P59: SINAPI | Q59: 92986 | R59: CABO DE COBRE FLEXÍVEL ISOLADO, 35 MM², ANTI-CHAMA 0,6/1,0 KV, PARA DISTRIBUIÇÃO - FORNECIMENTO E INSTALAÇÃO. AF_12/2015 | S59: M | T59: 10.8 | W59: 0 | X59: Referência: AGETOP - 70512
A60: S | B60: 3 | C60: S | D60: 0 | E60: 1 | F60: 4 | G60: 1 | H60: 0 | I60: 0 | J60: 0 | K60: 0 | M60: Serviço | N60: Serviço | O60: - | P60: AGETOP | Q60: 70541 | R60: CABO DE COBRE NU No. 16 MM2 (6,94 M/KG) | S60: M | T60: 10 | W60: 0
A61: S | B61: 3 | C61: S | D61: 0 | E61: 1 | F61: 4 | G61: 1 | H61: 0 | I61: 0 | J61: 0 | K61: 0 | M61: Serviço | N61: Serviço | O61: - | P61: AGETOP | Q61: 70544 | R61: CABO DE COBRE NÚ No. 50 MM2 | S61: M | T61: 25 | W61: 0
A62: S | B62: 3 | C62: S | D62: 0 | E62: 1 | F62: 4 | G62: 1 | H62: 0 | I62: 0 | J62: 0 | K62: 0 | M62: Serviço | N62: Serviço | O62: - | P62: SINAPI | Q62: 91834 | R62: ELETRODUTO FLEXÍVEL CORRUGADO, PVC, DN 25 MM (3/4"), PARA CIRCUITOS TERMINAIS, INSTALADO EM FORRO - FORNECIMENTO E INSTALAÇÃO. AF_12/2015 | S62: M | T62: 150 | W62: 0 | X62: Referência: AGETOP - 71194
A63: S | B63: 3 | C63: S | D63: 0 | E63: 1 | F63: 4 | G63: 1 | H63: 0 | I63: 0 | J63: 0 | K63: 0 | M63: Serviço | N63: Serviço | O63: - | P63: SINAPI | Q63: 91836 | R63: ELETRODUTO FLEXÍVEL CORRUGADO, PVC, DN 32 MM (1"), PARA CIRCUITOS TERMINAIS, INSTALADO EM FORRO - FORNECIMENTO E INSTALAÇÃO. AF_12/2015 | S63: M | T63: 50 | W63: 0 | X63: Referência: AGETOP - 71195
A64: S | B64: 3 | C64: S | D64: 0 | E64: 1 | F64: 4 | G64: 1 | H64: 0 | I64: 0 | J64: 0 | K64: 0 | M64: Serviço | N64: Serviço | O64: - | P64: SINAPI | Q64: 91867 | R64: ELETRODUTO RÍGIDO ROSCÁVEL, PVC, DN 25 MM (3/4"), PARA CIRCUITOS TERMINAIS, INSTALADO EM LAJE - FORNECIMENTO E INSTALAÇÃO. AF_12/2015 | S64: M | T64: 974.65 | W64: 0 | X64: Referência: AGETOP - 71201
A65: S | B65: 3 | C65: S | D65: 0 | E65: 1 | F65: 4 | G65: 1 | H65: 0 | I65: 0 | J65: 0 | K65: 0 | M65: Serviço | N65: Serviço | O65: - | P65: SINAPI | Q65: 91868 | R65: ELETRODUTO RÍGIDO ROSCÁVEL, PVC, DN 32 MM (1"), PARA CIRCUITOS TERMINAIS, INSTALADO EM LAJE - FORNECIMENTO E INSTALAÇÃO. AF_12/2015 | S65: M | T65: 166.7 | W65: 0 | X65: Referência: AGETOP - 71202
A66: S | B66: 3 | C66: S | D66: 0 | E66: 1 | F66: 4 | G66: 1 | H66: 0 | I66: 0 | J66: 0 | K66: 0 | M66: Serviço | N66: Serviço | O66: - | P66: SINAPI | Q66: 93008 | R66: ELETRODUTO RÍGIDO ROSCÁVEL, PVC, DN 50 MM (1 1/2") - FORNECIMENTO E INSTALAÇÃO. AF_12/2015 | S66: M | T66: 89.45 | W66: 0
A67: S | B67: 3 | C67: S | D67: 0 | E67: 1 | F67: 4 | G67: 1 | H67: 0 | I67: 0 | J67: 0 | K67: 0 | M67: Serviço | N67: Serviço | O67: - | P67: SINAPI | Q67: 93012 | R67: ELETRODUTO RÍGIDO ROSCÁVEL, PVC, DN 110 MM (4") - FORNECIMENTO E INSTALAÇÃO. AF_12/2015 | S67: M | T67: 27.4 | W67: 0
A68: S | B68: 3 | C68: S | D68: 0 | E68: 1 | F68: 4 | G68: 1 | H68: 0 | I68: 0 | J68: 0 | K68: 0 | M68: Serviço | N68: Serviço | O68: - | P68: AGETOP | Q68: 70351 | R68: BRACADEIRA METALICA TIPO "U" DIAM. 3/4" | S68: Un | T68: 325 | W68: 0
A69: S | B69: 3 | C69: S | D69: 0 | E69: 1 | F69: 4 | G69: 1 | H69: 0 | I69: 0 | J69: 0 | K69: 0 | M69: Serviço | N69: Serviço | O69: - | P69: AGETOP | Q69: 70352 | R69: BRACADEIRA METALICA TIPO "U" DIAM. 1" | S69: Un | T69: 56 | W69: 0
A70: S | B70: 3 | C70: S | D70: 0 | E70: 1 | F70: 4 | G70: 1 | H70: 0 | I70: 0 | J70: 0 | K70: 0 | M70: Serviço | N70: Serviço | O70: - | P70: AGETOP | Q70: 70354 | R70: BRACADEIRA METALICA TIPO "U" DIAM. 1.1/2" | S70: Un | T70: 30 | W70: 0
A71: S | B71: 3 | C71: S | D71: 0 | E71: 1 | F71: 4 | G71: 1 | H71: 0 | I71: 0 | J71: 0 | K71: 0 | M71: Serviço | N71: Serviço | O71: - | P71: AGETOP | Q71: 70355 | R71: BRACADEIRA METALICA TIPO "U" DIAM. 2" | S71: Un | T71: 10 | W71: 0
A72: S | B72: 3 | C72: S | D72: 0 | E72: 1 | F72: 4 | G72: 1 | H72: 0 | I72: 0 | J72: 0 | K72: 0 | M72: Serviço | N72: Serviço | O72: - | P72: AGETOP | Q72: 70358 | R72: BRACADEIRA METALICA TIPO "U" DIAM. 4" | S72: Un | T72: 10 | W72: 0
A73: S | B73: 3 | C73: S | D73: 0 | E73: 1 | F73: 4 | G73: 1 | H73: 0 | I73: 0 | J73: 0 | K73: 0 | M73: Serviço | N73: Serviço | O73: - | P73: SINAPI | Q73: 91879 | R73: LUVA PARA ELETRODUTO, PVC, ROSCÁVEL, DN 25 MM (3/4"), PARA CIRCUITOS TERMINAIS, INSTALADA EM LAJE - FORNECIMENTO E INSTALAÇÃO. AF_12/2015 | S73: UN | T73: 325 | W73: 0 | X73: Referência: AGETOP - 71741
A74: S | B74: 3 | C74: S | D74: 0 | E74: 1 | F74: 4 | G74: 1 | H74: 0 | I74: 0 | J74: 0 | K74: 0 | M74: Serviço | N74: Serviço | O74: - | P74: SINAPI | Q74: 91880 | R74: LUVA PARA ELETRODUTO, PVC, ROSCÁVEL, DN 32 MM (1"), PARA CIRCUITOS TERMINAIS, INSTALADA EM LAJE - FORNECIMENTO E INSTALAÇÃO. AF_12/2015 | S74: UN | T74: 56 | W74: 0 | X74: Referência: AGETOP - 71742
A75: S | B75: 3 | C75: S | D75: 0 | E75: 1 | F75: 4 | G75: 1 | H75: 0 | I75: 0 | J75: 0 | K75: 0 | M75: Serviço | N75: Serviço | O75: - | P75: SINAPI | Q75: 93013 | R75: LUVA PARA ELETRODUTO, PVC, ROSCÁVEL, DN 50 MM (1 1/2") - FORNECIMENTO E INSTALAÇÃO. AF_12/2015 | S75: UN | T75: 30 | W75: 0 | X75: Referência: AGETOP - 71744
A76: S | B76: 3 | C76: S | D76: 0 | E76: 1 | F76: 4 | G76: 1 | H76: 0 | I76: 0 | J76: 0 | K76: 0 | M76: Serviço | N76: Serviço | O76: - | P76: SINAPI | Q76: 93014 | R76: LUVA PARA ELETRODUTO, PVC, ROSCÁVEL, DN 60 MM (2") - FORNECIMENTO E INSTALAÇÃO. AF_12/2015 | S76: UN | T76: 10 | W76: 0 | X76: Referência: AGETOP - 71745
A77: S | B77: 3 | C77: S | D77: 0 | E77: 1 | F77: 4 | G77: 1 | H77: 0 | I77: 0 | J77: 0 | K77: 0 | M77: Serviço | N77: Serviço | O77: - | P77: SINAPI | Q77: 93017 | R77: LUVA PARA ELETRODUTO, PVC, ROSCÁVEL, DN 110 MM (4") - FORNECIMENTO E INSTALAÇÃO. AF_12/2015 | S77: UN | T77: 10 | W77: 0 | X77: Referência: AGETOP - 71748
A78: S | B78: 3 | C78: S | D78: 0 | E78: 1 | F78: 4 | G78: 1 | H78: 0 | I78: 0 | J78: 0 | K78: 0 | M78: Serviço | N78: Serviço | O78: - | P78: SINAPI | Q78: 95801 | R78: CONDULETE DE ALUMÍNIO, TIPO X, PARA ELETRODUTO DE AÇO GALVANIZADO DN 20 MM (3/4''), APARENTE - FORNECIMENTO E INSTALAÇÃO. AF_11/2016_P | S78: UN | T78: 200 | W78: 0 | X78: Referência: AGETOP - 70929
A79: S | B79: 3 | C79: S | D79: 0 | E79: 1 | F79: 4 | G79: 1 | H79: 0 | I79: 0 | J79: 0 | K79: 0 | M79: Serviço | N79: Serviço | O79: - | P79: SINAPI | Q79: 91902 | R79: CURVA 90 GRAUS PARA ELETRODUTO, PVC, ROSCÁVEL, DN 25 MM (3/4"), PARA CIRCUITOS TERMINAIS, INSTALADA EM LAJE - FORNECIMENTO E INSTALAÇÃO. AF_12/2015 | S79: UN | T79: 90 | W79: 0 | X79: Referência: AGETOP - 71141
A80: S | B80: 3 | C80: S | D80: 0 | E80: 1 | F80: 4 | G80: 1 | H80: 0 | I80: 0 | J80: 0 | K80: 0 | M80: Serviço | N80: Serviço | O80: - | P80: SINAPI | Q80: 91905 | R80: CURVA 90 GRAUS PARA ELETRODUTO, PVC, ROSCÁVEL, DN 32 MM (1"), PARA CIRCUITOS TERMINAIS, INSTALADA EM LAJE - FORNECIMENTO E INSTALAÇÃO. AF_12/2015 | S80: UN | T80: 20 | W80: 0 | X80: Referência: AGETOP - 71142
A81: S | B81: 3 | C81: S | D81: 0 | E81: 1 | F81: 4 | G81: 1 | H81: 0 | I81: 0 | J81: 0 | K81: 0 | M81: Serviço | N81: Serviço | O81: - | P81: AGETOP | Q81: 71124 | R81: CURVA 90 GRAUS AÇO ZINCADO DIÂMETRO 1.1/2" | S81: Un | T81: 15 | W81: 0
A82: =CHOOSE(1+LOG(1+2*(ORÇAMENTO.Nivel="Nível 1")+4*(ORÇAMENTO.Nivel="Nível 2")+8*(ORÇAMENTO.Nivel="Nível 3")+16*(ORÇAMENTO.Nivel="Nível 4")+32*(ORÇAMENTO.Nivel="Serviço"),2),0,1,2,3,4,"S") -> S | B82: 3 | C82: S | D82: 0 | E82: 1 | F82: 4 | G82: 1 | H82: 0 | I82: =IF(AND($C82<=4,$C82<>0),0,IF(AND($C82="S",$W82>0),OFFSET(I82,-1,0)+1,OFFSET(I82,-1,0))) -> 0 | J82: 0 | K82: 0 | M82: Serviço | N82: Serviço | O82: - | P82: AGETOP | Q82: 71128 | R82: CURVA 90 GRAUS AÇO ZINCADO DIÂMETRO 4" | S82: Un | T82: 10 | W82: 0
A83: S | B83: 3 | C83: S | D83: 0 | E83: 1 | F83: 4 | G83: 1 | H83: 0 | I83: 0 | J83: =IF(OR($C83="S",$C83=0),0,MATCH(0,OFFSET($D83,1,$C83,ROW($C$619)-ROW($C83)),0)) -> 0 | K83: =IF(OR($C83="S",$C83=0),0,MATCH(OFFSET($D83,0,$C83)+1,OFFSET($D83,1,$C83,ROW($C$619)-ROW($C83)),0)) -> 0 | M83: Serviço | N83: Serviço | O83: - | P83: SINAPI | Q83: 92870 | R83: CAIXA RETANGULAR 4" X 4" ALTA (2,00 M DO PISO), METÁLICA, INSTALADA EM PAREDE - FORNECIMENTO E INSTALAÇÃO. AF_12/2015 | S83: UN | T83: 138 | W83: 0
A84: S | B84: 3 | C84: S | D84: 0 | E84: 1 | F84: 4 | G84: 1 | H84: 0 | I84: 0 | J84: 0 | K84: 0 | M84: Serviço | N84: Serviço | O84: - | P84: SINAPI | Q84: 91953 | R84: INTERRUPTOR SIMPLES (1 MÓDULO), 10A/250V, INCLUINDO SUPORTE E PLACA - FORNECIMENTO E INSTALAÇÃO. AF_12/2015 | S84: UN | T84: 28 | W84: 0 | X84: Referência: AGETOP - 71440
A85: S | B85: 3 | C85: S | D85: 0 | E85: 1 | F85: 4 | G85: 1 | H85: 0 | I85: 0 | J85: 0 | K85: 0 | M85: Serviço | N85: Serviço | O85: - | P85: SINAPI | Q85: 91959 | R85: INTERRUPTOR SIMPLES (2 MÓDULOS), 10A/250V, INCLUINDO SUPORTE E PLACA - FORNECIMENTO E INSTALAÇÃO. AF_12/2015 | S85: UN | T85: 9 | W85: 0 | X85: Referência: AGETOP - 71441
A86: S | B86: 3 | C86: S | D86: 0 | E86: 1 | F86: 4 | G86: 1 | H86: 0 | I86: 0 | J86: 0 | K86: 0 | M86: Serviço | N86: Serviço | O86: - | P86: SINAPI | Q86: 91967 | R86: INTERRUPTOR SIMPLES (3 MÓDULOS), 10A/250V, INCLUINDO SUPORTE E PLACA - FORNECIMENTO E INSTALAÇÃO. AF_12/2015 | S86: UN | T86: 1 | W86: 0 | X86: Referência: AGETOP - 71442
A87: S | B87: 3 | C87: S | D87: 0 | E87: 1 | F87: 4 | G87: 1 | H87: 0 | I87: 0 | J87: 0 | K87: 0 | M87: Serviço | N87: Serviço | O87: - | P87: SINAPI | Q87: 91954 | R87: INTERRUPTOR PARALELO (1 MÓDULO), 10A/250V, SEM SUPORTE E SEM PLACA - FORNECIMENTO E INSTALAÇÃO. AF_12/2015 | S87: UN | T87: 4 | W87: 0 | X87: Referência: AGETOP - 71431
A88: S | B88: 3 | C88: S | D88: 0 | E88: 1 | F88: 4 | G88: 1 | H88: 0 | I88: 0 | J88: 0 | K88: 0 | M88: Serviço | N88: Serviço | O88: - | P88: SINAPI | Q88: 91996 | R88: TOMADA MÉDIA DE EMBUTIR (1 MÓDULO), 2P+T 10 A, INCLUINDO SUPORTE E PLACA - FORNECIMENTO E INSTALAÇÃO. AF_12/2015 | S88: UN | T88: 78 | W88: 0 | X88: Referência: AGETOP - 72578
A89: S | B89: 3 | C89: S | D89: 0 | E89: 1 | F89: 4 | G89: 1 | H89: 0 | I89: 0 | J89: 0 | K89: 0 | M89: Serviço | N89: Serviço | O89: - | P89: SINAPI | Q89: 91993 | R89: TOMADA ALTA DE EMBUTIR (1 MÓDULO), 2P+T 20 A, INCLUINDO SUPORTE E PLACA - FORNECIMENTO E INSTALAÇÃO. AF_12/2015 | S89: UN | T89: 29 | W89: 0 | X89: Referência: AGETOP - 72585
A90: S | B90: 3 | C90: S | D90: 0 | E90: 1 | F90: 4 | G90: 1 | H90: 0 | I90: 0 | J90: 0 | K90: 0 | M90: Serviço | N90: Serviço | O90: - | P90: SINAPI | Q90: 92004 | R90: TOMADA MÉDIA DE EMBUTIR (2 MÓDULOS), 2P+T 10 A, INCLUINDO SUPORTE E PLACA - FORNECIMENTO E INSTALAÇÃO. AF_12/2015 | S90: UN | T90: 23 | W90: 0 | X90: Referência: AGETOP - 72578
A91: S | B91: 3 | C91: S | D91: 0 | E91: 1 | F91: 4 | G91: 1 | H91: 0 | I91: 0 | J91: 0 | K91: 0 | M91: Serviço | N91: Serviço | O91: - | P91: SINAPI | Q91: 97585 | R91: LUMINÁRIA TIPO CALHA, DE SOBREPOR, COM 2 LÂMPADAS TUBULARES DE 18 W - FORNECIMENTO E INSTALAÇÃO. AF_11/2017 | S91: UN | T91: 140 | W91: 0
A92: S | B92: 3 | C92: S | D92: 0 | E92: 1 | F92: 4 | G92: 1 | H92: 0 | I92: 0 | J92: 0 | K92: 0 | M92: Serviço | N92: Serviço | O92: - | P92: SINAPI | Q92: 97593 | R92: LUMINÁRIA TIPO SPOT, DE SOBREPOR, COM 1 LÂMPADA DE 15 W - FORNECIMENTO E INSTALAÇÃO. AF_11/2017 | S92: UN | T92: 5 | W92: 0 | X92: Referência: AGETOP - 71688
A93: S | B93: 3 | C93: S | D93: 0 | E93: 1 | F93: 4 | G93: 1 | H93: 0 | I93: 0 | J93: 0 | K93: 0 | M93: Serviço | N93: Serviço | O93: - | P93: SINAPI | Q93: 97605 | R93: LUMINÁRIA ARANDELA TIPO MEIA-LUA, PARA 1 LÂMPADA LED - FORNECIMENTO E INSTALAÇÃO. AF_11/2017 | S93: UN | T93: 11 | W93: 0
A94: S | B94: 3 | C94: S | D94: 0 | E94: 1 | F94: 4 | G94: 1 | H94: 0 | I94: 0 | J94: 0 | K94: 0 | M94: Serviço | N94: Serviço | O94: - | P94: SINAPI | Q94: 97610 | R94: LÂMPADA COMPACTA DE LED 10 W, BASE E27 - FORNECIMENTO E INSTALAÇÃO. AF_11/2017 | S94: UN | T94: 296 | W94: 0
A95: S | B95: 3 | C95: S | D95: 0 | E95: 1 | F95: 4 | G95: 1 | H95: 0 | I95: 0 | J95: 0 | K95: 0 | M95: Serviço | N95: Serviço | O95: - | P95: SINAPI | Q95: 97889 | R95: CAIXA ENTERRADA ELÉTRICA RETANGULAR, EM ALVENARIA COM TIJOLOS CERÂMICOS MACIÇOS, FUNDO COM BRITA, DIMENSÕES INTERNAS: 0,8X0,8X0,6 M. AF_05/2018 | S95: UN | T95: 4 | W95: 0
A96: S | B96: 3 | C96: S | D96: 0 | E96: 1 | F96: 4 | G96: 1 | H96: 0 | I96: 0 | J96: 0 | K96: 0 | M96: Serviço | N96: Serviço | O96: - | P96: SINAPI | Q96: 6171 | R96: TAMPA DE CONCRETO ARMADO 60X60X5CM PARA CAIXA | S96: UN | T96: 4 | W96: 0
A97: S | B97: 3 | C97: S | D97: 0 | E97: 1 | F97: 4 | G97: 1 | H97: 0 | I97: 0 | J97: 0 | K97: 0 | M97: Serviço | N97: Serviço | O97: - | P97: AGETOP | Q97: 71861 | R97: PARAFUSO P/BUCHA S-6 | S97: Un | T97: 300 | W97: 0
A98: S | B98: 3 | C98: S | D98: 0 | E98: 1 | F98: 4 | G98: 1 | H98: 0 | I98: 0 | J98: 0 | K98: 0 | M98: Serviço | N98: Serviço | O98: - | P98: AGETOP | Q98: 70647 | R98: CAIXA DE PASSAGEM METÁLICA DE EMBUTIR 30X30X12 CM | S98: Un | T98: 2 | W98: 0
A99: S | B99: 3 | C99: S | D99: 0 | E99: 1 | F99: 4 | G99: 1 | H99: 0 | I99: 0 | J99: 0 | K99: 0 | M99: Serviço | N99: Serviço | O99: - | P99: AGETOP | Q99: 70391 | R99: BUCHA DE NYLON S-6 | S99: Un | T99: 300 | W99: 0
A100: S | B100: 3 | C100: S | D100: 0 | E100: 1 | F100: 4 | G100: 1 | H100: 0 | I100: 0 | J100: 0 | K100: 0 | M100: Serviço | N100: Serviço | O100: - | P100: AGETOP | Q100: 20162 | R100: DEMOLIÇÃO DAS INSTALAÇÕES ELÉTRICAS E AFINS C/ TRANSP. ATÉ CB. E CARGA | S100: H | T100: 100 | W100: 0
A101: 3 | B101: 3 | C101: 3 | D101: 19 | E101: 1 | F101: 4 | G101: 2 | H101: 0 | I101: 0 | J101: 59 | K101: 19 | M101: Nível 3 | N101: Nível 3 | O101: - | Q101: IMPLANTAÇÃO | R101: ALIMENTAÇÃO | S101: - | W101: 0
A102: S | B102: 3 | C102: S | D102: 0 | E102: 1 | F102: 4 | G102: 2 | H102: 0 | I102: 0 | J102: 0 | K102: 0 | M102: Serviço | N102: Serviço | O102: - | P102: SINAPI | Q102: 74130/5 | R102: DISJUNTOR TERMOMAGNETICO TRIPOLAR PADRAO NEMA (AMERICANO) 60 A 100A 240V, FORNECIMENTO E INSTALACAO | S102: UN | T102: 1 | W102: 0
A103: S | B103: 3 | C103: S | D103: 0 | E103: 1 | F103: 4 | G103: 2 | H103: 0 | I103: 0 | J103: 0 | K103: 0 | M103: Serviço | N103: Serviço | O103: - | P103: SINAPI | Q103: 93670 | R103: DISJUNTOR TRIPOLAR TIPO DIN, CORRENTE NOMINAL DE 25A - FORNECIMENTO E INSTALAÇÃO. AF_04/2016 | S103: UN | T103: 1 | W103: 0 | X103: Referência: AGETOP - 71173
A104: S | B104: 3 | C104: S | D104: 0 | E104: 1 | F104: 4 | G104: 2 | H104: 0 | I104: 0 | J104: 0 | K104: 0 | M104: Serviço | N104: Serviço | O104: - | P104: SINAPI | Q104: 93672 | R104: DISJUNTOR TRIPOLAR TIPO DIN, CORRENTE NOMINAL DE 40A - FORNECIMENTO E INSTALAÇÃO. AF_04/2016 | S104: UN | T104: 1 | W104: 0 | X104: Referência: AGETOP - 71174
A105: S | B105: 3 | C105: S | D105: 0 | E105: 1 | F105: 4 | G105: 2 | H105: 0 | I105: 0 | J105: 0 | K105: 0 | M105: Serviço | N105: Serviço | O105: - | P105: SINAPI | Q105: 91929 | R105: CABO DE COBRE FLEXÍVEL ISOLADO, 4 MM², ANTI-CHAMA 0,6/1,0 KV, PARA CIRCUITOS TERMINAIS - FORNECIMENTO E INSTALAÇÃO. AF_12/2015 | S105: M | T105: 494.27 | W105: 0 | X105: Referência: AGETOP - 70582
A106: S | B106: 3 | C106: S | D106: 0 | E106: 1 | F106: 4 | G106: 2 | H106: 0 | I106: 0 | J106: 0 | K106: 0 | M106: Serviço | N106: Serviço | O106: - | P106: SINAPI | Q106: 91930 | R106: CABO DE COBRE FLEXÍVEL ISOLADO, 6 MM², ANTI-CHAMA 450/750 V, PARA CIRCUITOS TERMINAIS - FORNECIMENTO E INSTALAÇÃO. AF_12/2015 | S106: M | T106: 337.82 | W106: 0 | X106: Referência: AGETOP - 70565
A107: S | B107: 3 | C107: S | D107: 0 | E107: 1 | F107: 4 | G107: 2 | H107: 0 | I107: 0 | J107: 0 | K107: 0 | M107: Serviço | N107: Serviço | O107: - | P107: SINAPI | Q107: 92979 | R107: CABO DE COBRE FLEXÍVEL ISOLADO, 10 MM², ANTI-CHAMA 450/750 V, PARA DISTRIBUIÇÃO - FORNECIMENTO E INSTALAÇÃO. AF_12/2015 | S107: M | T107: 402.33 | W107: 0
A108: S | B108: 3 | C108: S | D108: 0 | E108: 1 | F108: 4 | G108: 2 | H108: 0 | I108: 0 | J108: 0 | K108: 0 | M108: Serviço | N108: Serviço | O108: - | P108: SINAPI | Q108: 93008 | R108: ELETRODUTO RÍGIDO ROSCÁVEL, PVC, DN 50 MM (1 1/2") - FORNECIMENTO E INSTALAÇÃO. AF_12/2015 | S108: M | T108: 80.477 | W108: 0
A109: S | B109: 3 | C109: S | D109: 0 | E109: 1 | F109: 4 | G109: 2 | H109: 0 | I109: 0 | J109: 0 | K109: 0 | M109: Serviço | N109: Serviço | O109: - | P109: SINAPI | Q109: 91868 | R109: ELETRODUTO RÍGIDO ROSCÁVEL, PVC, DN 32 MM (1"), PARA CIRCUITOS TERMINAIS, INSTALADO EM LAJE - FORNECIMENTO E INSTALAÇÃO. AF_12/2015 | S109: M | T109: 166.42 | W109: 0 | X109: Referência: AGETOP - 71202
A110: S | B110: 3 | C110: S | D110: 0 | E110: 1 | F110: 4 | G110: 2 | H110: 0 | I110: 0 | J110: 0 | K110: 0 | M110: Serviço | N110: Serviço | O110: - | P110: AGETOP | Q110: 70354 | R110: BRACADEIRA METALICA TIPO "U" DIAM. 1.1/2" | S110: Un | T110: 27 | W110: 0
A111: S | B111: 3 | C111: S | D111: 0 | E111: 1 | F111: 4 | G111: 2 | H111: 0 | I111: 0 | J111: 0 | K111: 0 | M111: Serviço | N111: Serviço | O111: - | P111: AGETOP | Q111: 70352 | R111: BRACADEIRA METALICA TIPO "U" DIAM. 1" | S111: Un | T111: 56 | W111: 0
A112: S | B112: 3 | C112: S | D112: 0 | E112: 1 | F112: 4 | G112: 2 | H112: 0 | I112: 0 | J112: 0 | K112: 0 | M112: Serviço | N112: Serviço | O112: - | P112: SINAPI | Q112: 91880 | R112: LUVA PARA ELETRODUTO, PVC, ROSCÁVEL, DN 32 MM (1"), PARA CIRCUITOS TERMINAIS, INSTALADA EM LAJE - FORNECIMENTO E INSTALAÇÃO. AF_12/2015 | S112: UN | T112: 56 | W112: 0 | X112: Referência: AGETOP - 71742
A113: S | B113: 3 | C113: S | D113: 0 | E113: 1 | F113: 4 | G113: 2 | H113: 0 | I113: 0 | J113: 0 | K113: 0 | M113: Serviço | N113: Serviço | O113: - | P113: SINAPI | Q113: 93013 | R113: LUVA PARA ELETRODUTO, PVC, ROSCÁVEL, DN 50 MM (1 1/2") - FORNECIMENTO E INSTALAÇÃO. AF_12/2015 | S113: UN | T113: 27 | W113: 0 | X113: Referência: AGETOP - 71744
A114: S | B114: 3 | C114: S | D114: 0 | E114: 1 | F114: 4 | G114: 2 | H114: 0 | I114: 0 | J114: 0 | K114: 0 | M114: Serviço | N114: Serviço | O114: - | P114: AGETOP | Q114: 70647 | R114: CAIXA DE PASSAGEM METÁLICA DE EMBUTIR 30X30X12 CM | S114: Un | T114: 10 | W114: 0
A115: S | B115: 3 | C115: S | D115: 0 | E115: 1 | F115: 4 | G115: 2 | H115: 0 | I115: 0 | J115: =IF(OR($C115="S",$C115=0),0,MATCH(0,OFFSET($D115,1,$C115,ROW($C$619)-ROW($C115)),0)) -> 0 | K115: =IF(OR($C115="S",$C115=0),0,MATCH(OFFSET($D115,0,$C115)+1,OFFSET($D115,1,$C115,ROW($C$619)-ROW($C115)),0)) -> 0 | M115: Serviço | N115: Serviço | O115: - | P115: SINAPI | Q115: 97889 | R115: CAIXA ENTERRADA ELÉTRICA RETANGULAR, EM ALVENARIA COM TIJOLOS CERÂMICOS MACIÇOS, FUNDO COM BRITA, DIMENSÕES INTERNAS: 0,8X0,8X0,6 M. AF_05/2018 | S115: UN | T115: 7 | W115: 0
A116: S | B116: 3 | C116: S | D116: 0 | E116: 1 | F116: 4 | G116: 2 | H116: 0 | I116: 0 | J116: 0 | K116: 0 | M116: Serviço | N116: Serviço | O116: - | P116: SINAPI | Q116: 6171 | R116: TAMPA DE CONCRETO ARMADO 60X60X5CM PARA CAIXA | S116: UN | T116: 7 | W116: 0
A117: S | B117: 3 | C117: S | D117: 0 | E117: 1 | F117: 4 | G117: 2 | H117: 0 | I117: 0 | J117: 0 | K117: 0 | M117: Serviço | N117: Serviço | O117: - | P117: SINAPI | Q117: 92870 | R117: CAIXA RETANGULAR 4" X 4" ALTA (2,00 M DO PISO), METÁLICA, INSTALADA EM PAREDE - FORNECIMENTO E INSTALAÇÃO. AF_12/2015 | S117: UN | T117: 5 | W117: 0
A118: S | B118: 3 | C118: S | D118: 0 | E118: 1 | F118: 4 | G118: 2 | H118: 0 | I118: 0 | J118: 0 | K118: 0 | M118: Serviço | N118: Serviço | O118: - | P118: AGETOP | Q118: 71861 | R118: PARAFUSO P/BUCHA S-6 | S118: Un | T118: 150 | W118: 0
A119: S | B119: 3 | C119: S | D119: 0 | E119: 1 | F119: 4 | G119: 2 | H119: 0 | I119: 0 | J119: 0 | K119: 0 | M119: Serviço | N119: Serviço | O119: - | P119: AGETOP | Q119: 70391 | R119: BUCHA DE NYLON S-6 | S119: Un | T119: 150 | W119: 0
A120: 3 | B120: 3 | C120: 3 | D120: 40 | E120: 1 | F120: 4 | G120: 3 | H120: 0 | I120: 0 | J120: 40 | K120: 91 | M120: Nível 3 | N120: Nível 3 | O120: - | P120: SINAPI | R120: SUBESTAÇÃO | S120: - | W120: 0
A121: S | B121: 3 | C121: S | D121: 0 | E121: 1 | F121: 4 | G121: 3 | H121: 0 | I121: 0 | J121: 0 | K121: 0 | M121: Serviço | N121: Serviço | O121: - | P121: AGETOP | Q121: 70386 | R121: BRAÇO C AÇO GALVANIZADO , CONFORME NTD-17 | S121: un | T121: 1 | W121: 0
A122: S | B122: 3 | C122: S | D122: 0 | E122: 1 | F122: 4 | G122: 3 | H122: 0 | I122: 0 | J122: 0 | K122: 0 | M122: Serviço | N122: Serviço | O122: - | P122: SINAPI | Q122: 73767/2 | R122: ALCA PRE-FORMADA DISTRIBUIÇÃO EM ACO RECOBERTO COM ALUMINIO PARA CABO 25MM2, ENCAPADO. FORNECIMENTO E INSTALAÇÃO. | S122: UN | T122: 1 | W122: 0
A123: S | B123: 3 | C123: S | D123: 0 | E123: 1 | F123: 4 | G123: 3 | H123: 0 | I123: 0 | J123: 0 | K123: 0 | M123: Serviço | N123: Serviço | O123: - | P123: SINAPI | Q123: 73767/1 | R123: GRAMPO PARALELO EM ALUMINIO FUNDIDO OU ESTRUDADO DE 2 PARAFUSOS, PARA CABO DE 6 A 50 MM2, PASTA ANTIOXIDANTE. FORNEC E INSTALAÇÃO. | S123: UN | T123: 3 | W123: 0
A124: S | B124: 3 | C124: S | D124: 0 | E124: 1 | F124: 4 | G124: 3 | H124: 0 | I124: 0 | J124: 0 | K124: 0 | M124: Serviço | N124: Serviço | O124: - | P124: SINAPI | Q124: 83377 | R124: CONECTOR DE PARAFUSO FENDIDO EM LIGA DE COBRE COM SEPARADOR DE CABOS PARA CABO 50 MM2 - FORNECIMENTO E INSTALACAO | S124: UN | T124: 6 | W124: 0
A125: S | B125: 3 | C125: S | D125: 0 | E125: 1 | F125: 4 | G125: 3 | H125: 0 | I125: 0 | J125: 0 | K125: 0 | M125: Serviço | N125: Serviço | O125: - | P125: SINAPI | Q125: 72263 | R125: TERMINAL OU CONECTOR DE PRESSAO - PARA CABO 50MM2 - FORNECIMENTO E INSTALACAO | S125: UN | T125: 1 | W125: 0
A126: S | B126: 3 | C126: S | D126: 0 | E126: 1 | F126: 4 | G126: 3 | H126: 0 | I126: 0 | J126: 0 | K126: 0 | M126: Serviço | N126: Serviço | O126: - | P126: AGETOP | Q126: 71833 | R126: PARA RAIOS DISTRIBUIDOR POLIMÉRICO ÓXIDO DE ZINCO S/CENTELHADOR C/ DESLIGAMENTO AUTOMÁTICO 15KV,10KA | S126: Un | T126: 3 | W126: 0
A127: S | B127: 3 | C127: S | D127: 0 | E127: 1 | F127: 4 | G127: 3 | H127: 0 | I127: 0 | J127: 0 | K127: 0 | M127: Serviço | N127: Serviço | O127: - | P127: SINAPI | Q127: 88544 | R127: ARMACAO SECUNDARIA OU REX COMPLETA PARA DUAS LINHAS-FORNECIMENTO E INSTALACAO. | S127: UN | T127: 1 | W127: 0
A128: S | B128: 3 | C128: S | D128: 0 | E128: 1 | F128: 4 | G128: 3 | H128: 0 | I128: 0 | J128: 0 | K128: 0 | M128: Serviço | N128: Serviço | O128: - | P128: COMPOSIÇÃO | Q128: COMP 046_SEE | R128: CAPUZ PARA PROTEÇÃO DOS PARA RAIOS | S128: UN | T128: 3 | W128: 0
A129: S | B129: 3 | C129: S | D129: 0 | E129: 1 | F129: 4 | G129: 3 | H129: 0 | I129: 0 | J129: 0 | K129: 0 | M129: Serviço | N129: Serviço | O129: - | P129: COMPOSIÇÃO | Q129: COMP 047_SEE | R129: CAPUZ DE PROTEÇÃO PARA BUCHA DE TRANSFORMADOR | S129: UN | T129: 3 | W129: 0
A130: S | B130: 3 | C130: S | D130: 0 | E130: 1 | F130: 4 | G130: 3 | H130: 0 | I130: 0 | J130: 0 | K130: 0 | M130: Serviço | N130: Serviço | O130: - | P130: COMPOSIÇÃO | Q130: COMP 048_SEE | R130: HASTE ROSQUEADA "TIRANTE" 3/8" | S130: M | T130: 0.5 | W130: 0
A131: S | B131: 3 | C131: S | D131: 0 | E131: 1 | F131: 4 | G131: 3 | H131: 0 | I131: 0 | J131: 0 | K131: 0 | M131: Serviço | N131: Serviço | O131: - | P131: COMPOSIÇÃO | Q131: COMP 049_SEE | R131: PORCA SEXTAVADA 3/8" | S131: UN | T131: 8 | W131: 0
A132: S | B132: 3 | C132: S | D132: 0 | E132: 1 | F132: 4 | G132: 3 | H132: 0 | I132: 0 | J132: 0 | K132: 0 | M132: Serviço | N132: Serviço | O132: - | P132: SINAPI | Q132: 73781/2 | R132: ISOLADOR DE PINO TP HI-POT CILINDRICO CLASSE 15KV. FORNECIMENTO E INSTALACAO. | S132: UN | T132: 3 | W132: 0
A133: S | B133: 3 | C133: S | D133: 0 | E133: 1 | F133: 4 | G133: 3 | H133: 0 | I133: 0 | J133: 0 | K133: 0 | M133: Serviço | N133: Serviço | O133: - | P133: SINAPI | Q133: 73781/3 | R133: ISOLADOR DE SUSPENSAO (DISCO) TP CAVILHA CLASSE 15KV - 6''. FORNECIMENTO E INSTALACAO. | S133: UN | T133: 1 | W133: 0
A134: S | B134: 3 | C134: S | D134: 0 | E134: 1 | F134: 4 | G134: 3 | H134: 0 | I134: 0 | J134: 0 | K134: 0 | M134: Serviço | N134: Serviço | O134: - | P134: AGETOP | Q134: 70252 | R134: ARRUELA LISA D=5/16" | S134: Un | T134: 8 | W134: 0
A135: S | B135: 3 | C135: S | D135: 0 | E135: 1 | F135: 4 | G135: 3 | H135: 0 | I135: 0 | J135: 0 | K135: 0 | M135: Serviço | N135: Serviço | O135: - | P135: AGETOP | Q135: 70695 | R135: CAIXA METÁLICA PARA PROTEÇÃO GERAL 580X500X216MM ATÉ 175A | S135: Un | T135: 1 | W135: 0
A136: S | B136: 3 | C136: S | D136: 0 | E136: 1 | F136: 4 | G136: 3 | H136: 0 | I136: 0 | J136: 0 | K136: 0 | M136: Serviço | N136: Serviço | O136: - | P136: AGETOP | Q136: 70695 | R136: CAIXA METÁLICA PARA PROTEÇÃO GERAL 580X500X216MM ATÉ 175A | S136: Un | T136: 1 | W136: 0
A137: S | B137: 3 | C137: S | D137: 0 | E137: 1 | F137: 4 | G137: 3 | H137: 0 | I137: 0 | J137: 0 | K137: 0 | M137: Serviço | N137: Serviço | O137: - | P137: AGETOP | Q137: 70725 | R137: CAIXA METÁLICA PARA T.C. 580X500X216MM - ATÉ 175A | S137: Un | T137: 1 | W137: 0
A138: S | B138: 3 | C138: S | D138: 0 | E138: 1 | F138: 4 | G138: 3 | H138: 0 | I138: 0 | J138: 0 | K138: 0 | M138: Serviço | N138: Serviço | O138: - | P138: SINAPI | Q138: 93205 | R138: CINTA DE AMARRAÇÃO DE ALVENARIA MOLDADA IN LOCO COM UTILIZAÇÃO DE BLOCOS CANALETA. AF_03/2016 | S138: M | T138: 6 | W138: 0
A139: S | B139: 3 | C139: S | D139: 0 | E139: 1 | F139: 4 | G139: 3 | H139: 0 | I139: 0 | J139: 0 | K139: 0 | M139: Serviço | N139: Serviço | O139: - | P139: AGETOP | Q139: 71268 | R139: ELO FUSÍVEL 6 K | S139: Un | T139: 3 | W139: 0
A140: S | B140: 3 | C140: S | D140: 0 | E140: 1 | F140: 4 | G140: 3 | H140: 0 | I140: 0 | J140: 0 | K140: 0 | M140: Serviço | N140: Serviço | O140: - | P140: AGETOP | Q140: 71186 | R140: DISPOSITIVO DE PROTEÇÃO CONTRA SURTOS (D.P.S.) 275V DE 90KA | S140: Un | T140: 3 | W140: 0
A141: S | B141: 3 | C141: S | D141: 0 | E141: 1 | F141: 4 | G141: 3 | H141: 0 | I141: 0 | J141: 0 | K141: 0 | M141: Serviço | N141: Serviço | O141: - | P141: AGETOP | Q141: 71320 | R141: FITA DE AUTO FUSAO, ROLO DE 2,00 M | S141: Un | T141: 5 | W141: 0
A142: S | B142: 3 | C142: S | D142: 0 | E142: 1 | F142: 4 | G142: 3 | H142: 0 | I142: 0 | J142: 0 | K142: 0 | M142: Serviço | N142: Serviço | O142: - | P142: AGETOP | Q142: 70771 | R142: CANTONEIRA AUXILIAR PARA BRAÇO TIPO C | S142: un | T142: 3 | W142: 0
A143: S | B143: 3 | C143: S | D143: 0 | E143: 1 | F143: 4 | G143: 3 | H143: 0 | I143: 0 | J143: 0 | K143: 0 | M143: Serviço | N143: Serviço | O143: - | P143: SINAPI | Q143: 93022 | R143: CURVA 90 GRAUS PARA ELETRODUTO, PVC, ROSCÁVEL, DN 75 MM (2 1/2") - FORNECIMENTO E INSTALAÇÃO. AF_12/2015 | S143: UN | T143: 2 | W143: 0
A144: S | B144: 3 | C144: S | D144: 0 | E144: 1 | F144: 4 | G144: 3 | H144: 0 | I144: 0 | J144: 0 | K144: 0 | M144: Serviço | N144: Serviço | O144: - | P144: AGETOP | Q144: 72329 | R144: SAPATILHA DE AÇO GALVANIZADO PARA POSTE COM TRANSFORMADOR | S144: un | T144: 3 | W144: 0
A145: S | B145: 3 | C145: S | D145: 0 | E145: 1 | F145: 4 | G145: 3 | H145: 0 | I145: 0 | J145: 0 | K145: 0 | M145: Serviço | N145: Serviço | O145: - | P145: AGETOP | Q145: 71795 | R145: OLHAL PARA PARAFUSO | S145: un | T145: 3 | W145: 0
A146: S | B146: 3 | C146: S | D146: 0 | E146: 1 | F146: 4 | G146: 3 | H146: 0 | I146: 0 | J146: 0 | K146: 0 | M146: Serviço | N146: Serviço | O146: - | P146: AGETOP | Q146: 71761 | R146: MURETA MEDIÇÃO ALVEN. 1 1/2 V.(35CM) REBOC.C/PINTURA ACRÍL. E LAJE CONC. 20MPA MALHA 8.0MM CADA 10CM REVEST.C/ARGAMASSA 1:3 C/ IMPERMEABILIZANTE | S146: m2 | T146: 1 | W146: 0
A147: S | B147: 3 | C147: S | D147: 0 | E147: 1 | F147: 4 | G147: 3 | H147: 0 | I147: 0 | J147: =IF(OR($C147="S",$C147=0),0,MATCH(0,OFFSET($D147,1,$C147,ROW($C$619)-ROW($C147)),0)) -> 0 | K147: =IF(OR($C147="S",$C147=0),0,MATCH(OFFSET($D147,0,$C147)+1,OFFSET($D147,1,$C147,ROW($C$619)-ROW($C147)),0)) -> 0 | M147: Serviço | N147: Serviço | O147: - | P147: AGETOP | Q147: 71776 | R147: NIPLE METALICO Fo.Zo. DIAMETRO 2.1/2" | S147: Un | T147: 2 | W147: 0
A148: S | B148: 3 | C148: S | D148: 0 | E148: 1 | F148: 4 | G148: 3 | H148: 0 | I148: 0 | J148: 0 | K148: 0 | M148: Serviço | N148: Serviço | O148: - | P148: AGETOP | Q148: 71791 | R148: NIPLE DUPLO FERRO GALVANIZADO 2" | S148: Un | T148: 1 | W148: 0
A149: S | B149: 3 | C149: S | D149: 0 | E149: 1 | F149: 4 | G149: 3 | H149: 0 | I149: 0 | J149: 0 | K149: 0 | M149: Serviço | N149: Serviço | O149: - | P149: SINAPI | Q149: 73624 | R149: SUPORTE PARA TRANSFORMADOR EM POSTE DE CONCRETO CIRCULAR | S149: UN | T149: 2 | W149: 0
A150: S | B150: 3 | C150: S | D150: 0 | E150: 1 | F150: 4 | G150: 3 | H150: 0 | I150: 0 | J150: 0 | K150: 0 | M150: Serviço | N150: Serviço | O150: - | P150: AGETOP | Q150: 72060 | R150: POSTE DE CONCRETO SC 11/400 - SEM FUNDAÇÃO/CONCRETO | S150: Un | T150: 1 | W150: 0
A151: S | B151: 3 | C151: S | D151: 0 | E151: 1 | F151: 4 | G151: 3 | H151: 0 | I151: 0 | J151: 0 | K151: 0 | M151: Serviço | N151: Serviço | O151: - | P151: AGETOP | Q151: 72000 | R151: POSTE - ENGASTAMENTO SIMPLES PARA POSTE DE CONCRETO SEÇÃO CIRCULAR | S151: m3 | T151: 0.2 | W151: 0
A152: S | B152: 3 | C152: S | D152: 0 | E152: 1 | F152: 4 | G152: 3 | H152: 0 | I152: 0 | J152: 0 | K152: 0 | M152: Serviço | N152: Serviço | O152: - | P152: SINAPI | Q152: 72263 | R152: TERMINAL OU CONECTOR DE PRESSAO - PARA CABO 50MM2 - FORNECIMENTO E INSTALACAO | S152: UN | T152: 3 | W152: 0
A153: S | B153: 3 | C153: S | D153: 0 | E153: 1 | F153: 4 | G153: 3 | H153: 0 | I153: 0 | J153: 0 | K153: 0 | M153: Serviço | N153: Serviço | O153: - | P153: AGETOP | Q153: 72535 | R153: TERMINAL DE PRESSAO 70 MMM2 | S153: Un | T153: 2 | W153: 0
A154: S | B154: 3 | C154: S | D154: 0 | E154: 1 | F154: 4 | G154: 3 | H154: 0 | I154: 0 | J154: 0 | K154: 0 | M154: Serviço | N154: Serviço | O154: - | P154: AGETOP | Q154: 72528 | R154: TERMINAL DE PRESSAO 35 MM2 | S154: Un | T154: 5 | W154: 0
A155: S | B155: 3 | C155: S | D155: 0 | E155: 1 | F155: 4 | G155: 3 | H155: 0 | I155: 0 | J155: 0 | K155: 0 | M155: Serviço | N155: Serviço | O155: - | P155: AGETOP | Q155: 72518 | R155: TERMINAL DE PRESSAO 10 MM2 | S155: Un | T155: 1 | W155: 0
A156: S | B156: 3 | C156: S | D156: 0 | E156: 1 | F156: 4 | G156: 3 | H156: 0 | I156: 0 | J156: 0 | K156: 0 | M156: Serviço | N156: Serviço | O156: - | P156: AGETOP | Q156: 72550 | R156: TERMINAL DE PRESSAO 150 MM2 | S156: Un | T156: 10 | W156: 0
A157: S | B157: 3 | C157: S | D157: 0 | E157: 1 | F157: 4 | G157: 3 | H157: 0 | I157: 0 | J157: 0 | K157: 0 | M157: Serviço | N157: Serviço | O157: - | P157: SINAPI | Q157: 73857/2 | R157: TRANSFORMADOR DISTRIBUICAO 112,5KVA TRIFASICO 60HZ CLASSE 15KV IMERSO EM ÓLEO MINERAL FORNECIMENTO E INSTALACAO | S157: UN | T157: 1 | W157: 0
A158: S | B158: 3 | C158: S | D158: 0 | E158: 1 | F158: 4 | G158: 3 | H158: 0 | I158: 0 | J158: 0 | K158: 0 | M158: Serviço | N158: Serviço | O158: - | P158: AGETOP | Q158: 72630 | R158: TRILHO OU SUPORTE P/BORNE TERMINAL | S158: M | T158: 0.2 | W158: 0
A159: S | B159: 3 | C159: S | D159: 0 | E159: 1 | F159: 4 | G159: 3 | H159: 0 | I159: 0 | J159: 0 | K159: 0 | M159: Serviço | N159: Serviço | O159: - | P159: AGETOP | Q159: 72080 | R159: POSTE/TRAFO - CAMINHÃO MUNCK 12 TON. (MÍNIMO 4H/DIA) | S159: H | T159: 8 | W159: 0
A160: =CHOOSE(1+LOG(1+2*(ORÇAMENTO.Nivel="Nível 1")+4*(ORÇAMENTO.Nivel="Nível 2")+8*(ORÇAMENTO.Nivel="Nível 3")+16*(ORÇAMENTO.Nivel="Nível 4")+32*(ORÇAMENTO.Nivel="Serviço"),2),0,1,2,3,4,"S") -> 2 | B160: =IF(OR(C160="s",C160=0),OFFSET(B160,-1,0),C160) -> 2 | C160: =IF(OFFSET(C160,-1,0)="L",1,IF(OFFSET(C160,-1,0)=1,2,IF(OR(A160="s",A160=0),"S",IF(AND(OFFSET(C160,-1,0)=2,A160=4),3,IF(AND(OR(OFFSET(C160,-1,0)="s",OFFSET(C160,-1,0)=0),A160<>"s",A160>OFFSET(B160,-1,0)),OFFSET(B160,-1,0),A160))))) -> 2 | D160: =IF(OR(C160="S",C160=0),0,IF(ISERROR(K160),J160,SMALL(J160:K160,1))) -> 58 | E160: =IF($C160=1,OFFSET(E160,-1,0)+1,OFFSET(E160,-1,0)) -> 1 | F160: =IF($C160=1,0,IF($C160=2,OFFSET(F160,-1,0)+1,OFFSET(F160,-1,0))) -> 5 | G160: =IF(AND($C160<=2,$C160<>0),0,IF($C160=3,OFFSET(G160,-1,0)+1,OFFSET(G160,-1,0))) -> 0 | H160: =IF(AND($C160<=3,$C160<>0),0,IF($C160=4,OFFSET(H160,-1,0)+1,OFFSET(H160,-1,0))) -> 0 | I160: =IF(AND($C160<=4,$C160<>0),0,IF(AND($C160="S",$W160>0),OFFSET(I160,-1,0)+1,OFFSET(I160,-1,0))) -> 0 | J160: 122 | K160: 58 | M160: Nível 2 | N160: Nível 2 | O160: - | P160: AGETOP | R160: INSTALAÇÕES HIDROSSANITÁRIAS | S160: - | W160: 0
A161: 3 | B161: 3 | C161: 3 | D161: 23 | E161: 1 | F161: 5 | G161: 1 | H161: 0 | I161: 0 | J161: 57 | K161: 23 | M161: Nível 3 | N161: Nível 3 | O161: - | P161: SINAPI | R161: PEÇAS E ACESSÓRIOS | S161: - | W161: 0
A162: S | B162: 3 | C162: S | D162: 0 | E162: 1 | F162: 5 | G162: 1 | H162: 0 | I162: 0 | J162: 0 | K162: 0 | M162: Serviço | N162: Serviço | O162: - | P162: AGETOP | Q162: 70709 | R162: CAIXA DE PASSAGEM 20X20X25CM FUNDO BRITA SEM TAMPA | S162: Un | T162: 2 | W162: 0
A163: S | B163: 3 | C163: S | D163: 0 | E163: 1 | F163: 5 | G163: 1 | H163: 0 | I163: 0 | J163: 0 | K163: 0 | M163: Serviço | N163: Serviço | O163: - | P163: SINAPI | Q163: 6171 | R163: TAMPA DE CONCRETO ARMADO 60X60X5CM PARA CAIXA | S163: UN | T163: 1 | W163: 0
A164: S | B164: 3 | C164: S | D164: 0 | E164: 1 | F164: 5 | G164: 1 | H164: 0 | I164: 0 | J164: 0 | K164: 0 | M164: Serviço | N164: Serviço | O164: - | P164: AGETOP | Q164: 81825 | R164: CAIXA DE PASSAGEM 60 X 60 CM SEM TAMPA | S164: Un | T164: 1 | W164: 0
A165: S | B165: 3 | C165: S | D165: 0 | E165: 1 | F165: 5 | G165: 1 | H165: 0 | I165: 0 | J165: 0 | K165: 0 | M165: Serviço | N165: Serviço | O165: - | P165: SINAPI | Q165: 95470 | R165: VASO SANITARIO SIFONADO CONVENCIONAL COM LOUÇA BRANCA, INCLUSO CONJUNTO DE LIGAÇÃO PARA BACIA SANITÁRIA AJUSTÁVEL - FORNECIMENTO E INSTALAÇÃO. AF_10/2016 | S165: UN | T165: 1 | W165: 0
A166: S | B166: 3 | C166: S | D166: 0 | E166: 1 | F166: 5 | G166: 1 | H166: 0 | I166: 0 | J166: 0 | K166: 0 | M166: Serviço | N166: Serviço | O166: - | P166: AGETOP | Q166: 80510 | R166: ANEL DE VEDAÇÃO PARA VASO SANITÁRIO | S166: Un | T166: 1 | W166: 0
A167: S | B167: 3 | C167: S | D167: 0 | E167: 1 | F167: 5 | G167: 1 | H167: 0 | I167: 0 | J167: =IF(OR($C167="S",$C167=0),0,MATCH(0,OFFSET($D167,1,$C167,ROW($C$619)-ROW($C167)),0)) -> 0 | K167: =IF(OR($C167="S",$C167=0),0,MATCH(OFFSET($D167,0,$C167)+1,OFFSET($D167,1,$C167,ROW($C$619)-ROW($C167)),0)) -> 0 | M167: Serviço | N167: Serviço | O167: - | P167: AGETOP | Q167: 80513 | R167: TUBO PARA VÁLVULA DE DESCARGA ( CURTO 1.1/4" ) | S167: Un | T167: 1 | W167: 0
A168: S | B168: 3 | C168: S | D168: 0 | E168: 1 | F168: 5 | G168: 1 | H168: 0 | I168: 0 | J168: 0 | K168: 0 | M168: Serviço | N168: Serviço | O168: - | P168: SINAPI | Q168: 99635 | R168: VÁLVULA DE DESCARGA METÁLICA, BASE 1 1/2 ", ACABAMENTO METALICO CROMADO - FORNECIMENTO E INSTALAÇÃO. AF_01/2019 | S168: UN | T168: 4 | W168: 0 | X168: Referência: AGETOP - 80515
A169: S | B169: 3 | C169: S | D169: 0 | E169: 1 | F169: 5 | G169: 1 | H169: 0 | I169: 0 | J169: 0 | K169: 0 | M169: Serviço | N169: Serviço | O169: - | P169: AGETOP | Q169: 80520 | R169: CONJUNTO DE FIXACAO P/VASO SANITARIO (PAR) | S169: CJ | T169: 1 | W169: 0
A170: S | B170: 3 | C170: S | D170: 0 | E170: 1 | F170: 5 | G170: 1 | H170: 0 | I170: 0 | J170: 0 | K170: 0 | M170: Serviço | N170: Serviço | O170: - | P170: SINAPI | Q170: 95544 | R170: PAPELEIRA DE PAREDE EM METAL CROMADO SEM TAMPA, INCLUSO FIXAÇÃO. AF_10/2016 | S170: UN | T170: 1 | W170: 0
A171: S | B171: 3 | C171: S | D171: 0 | E171: 1 | F171: 5 | G171: 1 | H171: 0 | I171: 0 | J171: 0 | K171: 0 | M171: Serviço | N171: Serviço | O171: - | P171: AGETOP | Q171: 80543 | R171: LAVATÓRIO DE CANTO SEM COLUNA | S171: un | T171: 1 | W171: 0
A172: S | B172: 3 | C172: S | D172: 0 | E172: 1 | F172: 5 | G172: 1 | H172: 0 | I172: 0 | J172: 0 | K172: 0 | M172: Serviço | N172: Serviço | O172: - | P172: AGETOP | Q172: 80550 | R172: FIXACAO P/LAVATORIO (PAR) | S172: PAR | T172: 1 | W172: 0
A173: S | B173: 3 | C173: S | D173: 0 | E173: 1 | F173: 5 | G173: 1 | H173: 0 | I173: 0 | J173: 0 | K173: 0 | M173: Serviço | N173: Serviço | O173: - | P173: SINAPI | Q173: 86883 | R173: SIFÃO DO TIPO FLEXÍVEL EM PVC 1 X 1.1/2 - FORNECIMENTO E INSTALAÇÃO. AF_12/2013 | S173: UN | T173: 8 | W173: 0
A174: S | B174: 3 | C174: S | D174: 0 | E174: 1 | F174: 5 | G174: 1 | H174: 0 | I174: 0 | J174: 0 | K174: 0 | M174: Serviço | N174: Serviço | O174: - | P174: SINAPI | Q174: 86915 | R174: TORNEIRA CROMADA DE MESA, 1/2" OU 3/4", PARA LAVATÓRIO, PADRÃO MÉDIO - FORNECIMENTO E INSTALAÇÃO. AF_12/2013 | S174: UN | T174: 8 | W174: 0 | X174: Referência: AGETOP - 80570
A175: S | B175: 3 | C175: S | D175: 0 | E175: 1 | F175: 5 | G175: 1 | H175: 0 | I175: 0 | J175: 0 | K175: 0 | M175: Serviço | N175: Serviço | O175: - | P175: SINAPI | Q175: 86877 | R175: VÁLVULA EM METAL CROMADO 1.1/2" X 1.1/2" PARA TANQUE OU LAVATÓRIO, COM OU SEM LADRÃO - FORNECIMENTO E INSTALAÇÃO. AF_12/2013 | S175: UN | T175: 1 | W175: 0 | X175: Referência: AGETOP - 80580
A176: S | B176: 3 | C176: S | D176: 0 | E176: 1 | F176: 5 | G176: 1 | H176: 0 | I176: 0 | J176: 0 | K176: 0 | M176: Serviço | N176: Serviço | O176: - | P176: SINAPI | Q176: 74234/1 | R176: MICTORIO SIFONADO DE LOUCA BRANCA COM PERTENCES, COM REGISTRO DE PRESSAO 1/2" COM CANOPLA CROMADA ACABAMENTO SIMPLES E CONJUNTO PARA FIXACAO - FORNECIMENTO E INSTALACAO | S176: UN | T176: 1 | W176: 0 | X176: Referência: AGETOP - 80601
A177: S | B177: 3 | C177: S | D177: 0 | E177: 1 | F177: 5 | G177: 1 | H177: 0 | I177: 0 | J177: 0 | K177: 0 | M177: Serviço | N177: Serviço | O177: - | P177: AGETOP | Q177: 80610 | R177: KIT FERR.P/MICT.LOUCA (ESPUDE,CONEXÃO ENTR.PARAFUSOS) | S177: Un | T177: 1 | W177: 0
A178: S | B178: 3 | C178: S | D178: 0 | E178: 1 | F178: 5 | G178: 1 | H178: 0 | I178: 0 | J178: 0 | K178: 0 | M178: Serviço | N178: Serviço | O178: - | P178: AGETOP | Q178: 81791 | R178: GRELHA REDONDA BRANCA DIAM. 150 MM | S178: Un | T178: 1 | W178: 0
A179: S | B179: 3 | C179: S | D179: 0 | E179: 1 | F179: 5 | G179: 1 | H179: 0 | I179: 0 | J179: 0 | K179: 0 | M179: Serviço | N179: Serviço | O179: - | P179: AGETOP | Q179: 81663 | R179: CORPO CX. SIFONADA DIAM. 150 X 150 X 50 | S179: Un | T179: 1 | W179: 0
A180: S | B180: 3 | C180: S | D180: 0 | E180: 1 | F180: 5 | G180: 1 | H180: 0 | I180: 0 | J180: 0 | K180: 0 | M180: Serviço | N180: Serviço | O180: - | P180: AGETOP | Q180: 81696 | R180: PROLONGAMENTO PARA CAIXA SIFONADA 150 MM | S180: M | T180: 1 | W180: 0
A181: S | B181: 3 | C181: S | D181: 0 | E181: 1 | F181: 5 | G181: 1 | H181: 0 | I181: 0 | J181: 0 | K181: 0 | M181: Serviço | N181: Serviço | O181: - | P181: AGETOP | Q181: 81501 | R181: ADESIVO PLASTICO - FRASCO 850 G | S181: Un | T181: 1 | W181: 0
A182: S | B182: 3 | C182: S | D182: 0 | E182: 1 | F182: 5 | G182: 1 | H182: 0 | I182: 0 | J182: 0 | K182: 0 | M182: Serviço | N182: Serviço | O182: - | P182: AGETOP | Q182: 81504 | R182: SOLUCAO LIMPADORA 1000 CM3 | S182: Un | T182: 1 | W182: 0
A183: S | B183: 3 | C183: S | D183: 0 | E183: 1 | F183: 5 | G183: 1 | H183: 0 | I183: 0 | J183: 0 | K183: 0 | M183: Serviço | N183: Serviço | O183: - | P183: AGETOP | Q183: 81885 | R183: TERMINAL DE VENTILACAO DIAMETRO 50 MM | S183: Un | T183: 1 | W183: 0
A184: =CHOOSE(1+LOG(1+2*(ORÇAMENTO.Nivel="Nível 1")+4*(ORÇAMENTO.Nivel="Nível 2")+8*(ORÇAMENTO.Nivel="Nível 3")+16*(ORÇAMENTO.Nivel="Nível 4")+32*(ORÇAMENTO.Nivel="Serviço"),2),0,1,2,3,4,"S") -> 3 | B184: =IF(OR(C184="s",C184=0),OFFSET(B184,-1,0),C184) -> 3 | C184: =IF(OFFSET(C184,-1,0)="L",1,IF(OFFSET(C184,-1,0)=1,2,IF(OR(A184="s",A184=0),"S",IF(AND(OFFSET(C184,-1,0)=2,A184=4),3,IF(AND(OR(OFFSET(C184,-1,0)="s",OFFSET(C184,-1,0)=0),A184<>"s",A184>OFFSET(B184,-1,0)),OFFSET(B184,-1,0),A184))))) -> 3 | D184: =IF(OR(C184="S",C184=0),0,IF(ISERROR(K184),J184,SMALL(J184:K184,1))) -> 15 | E184: =IF($C184=1,OFFSET(E184,-1,0)+1,OFFSET(E184,-1,0)) -> 1 | F184: =IF($C184=1,0,IF($C184=2,OFFSET(F184,-1,0)+1,OFFSET(F184,-1,0))) -> 5 | G184: =IF(AND($C184<=2,$C184<>0),0,IF($C184=3,OFFSET(G184,-1,0)+1,OFFSET(G184,-1,0))) -> 2 | H184: =IF(AND($C184<=3,$C184<>0),0,IF($C184=4,OFFSET(H184,-1,0)+1,OFFSET(H184,-1,0))) -> 0 | I184: =IF(AND($C184<=4,$C184<>0),0,IF(AND($C184="S",$W184>0),OFFSET(I184,-1,0)+1,OFFSET(I184,-1,0))) -> 0 | J184: 34 | K184: 15 | M184: Nível 3 | N184: Nível 3 | O184: - | P184: SINAPI | R184: ÁGUA FRIA | S184: - | W184: 0
A185: S | B185: 3 | C185: S | D185: 0 | E185: 1 | F185: 5 | G185: 2 | H185: 0 | I185: 0 | J185: 0 | K185: 0 | M185: Serviço | N185: Serviço | O185: - | P185: AGETOP | Q185: 80905 | R185: REGISTRO DE GAVETA BRUTO DIAMETRO 1.1/2" | S185: Un | T185: 1 | W185: 0
A186: S | B186: 3 | C186: S | D186: 0 | E186: 1 | F186: 5 | G186: 2 | H186: 0 | I186: 0 | J186: 0 | K186: 0 | M186: Serviço | N186: Serviço | O186: - | P186: AGETOP | Q186: 80910 | R186: REGISTRO DE GAVETA BRUTO DIAMETRO 2.1/2" | S186: Un | T186: 2 | W186: 0
A187: S | B187: 3 | C187: S | D187: 0 | E187: 1 | F187: 5 | G187: 2 | H187: 0 | I187: 0 | J187: 0 | K187: 0 | M187: Serviço | N187: Serviço | O187: - | P187: SINAPI | Q187: 89402 | R187: TUBO, PVC, SOLDÁVEL, DN 25MM, INSTALADO EM RAMAL DE DISTRIBUIÇÃO DE ÁGUA - FORNECIMENTO E INSTALAÇÃO. AF_12/2014 | S187: M | T187: 4 | W187: 0 | X187: Referência: AGETOP - 81003
A188: S | B188: 3 | C188: S | D188: 0 | E188: 1 | F188: 5 | G188: 2 | H188: 0 | I188: 0 | J188: 0 | K188: 0 | M188: Serviço | N188: Serviço | O188: - | P188: SINAPI | Q188: 89449 | R188: TUBO, PVC, SOLDÁVEL, DN 50MM, INSTALADO EM PRUMADA DE ÁGUA - FORNECIMENTO E INSTALAÇÃO. AF_12/2014 | S188: M | T188: 9 | W188: 0
A189: S | B189: 3 | C189: S | D189: 0 | E189: 1 | F189: 5 | G189: 2 | H189: 0 | I189: 0 | J189: 0 | K189: 0 | M189: Serviço | N189: Serviço | O189: - | P189: SINAPI | Q189: 89450 | R189: TUBO, PVC, SOLDÁVEL, DN 60MM, INSTALADO EM PRUMADA DE ÁGUA - FORNECIMENTO E INSTALAÇÃO. AF_12/2014 | S189: M | T189: 20 | W189: 0
A190: S | B190: 3 | C190: S | D190: 0 | E190: 1 | F190: 5 | G190: 2 | H190: 0 | I190: 0 | J190: 0 | K190: 0 | M190: Serviço | N190: Serviço | O190: - | P190: AGETOP | Q190: 80556 | R190: LIGAÇÃO FLEXÍVEL PVC DIAM.1/2" (ENGATE) | S190: Un | T190: 1 | W190: 0
A191: S | B191: 3 | C191: S | D191: 0 | E191: 1 | F191: 5 | G191: 2 | H191: 0 | I191: 0 | J191: 0 | K191: 0 | M191: Serviço | N191: Serviço | O191: - | P191: SINAPI | Q191: 89596 | R191: ADAPTADOR CURTO COM BOLSA E ROSCA PARA REGISTRO, PVC, SOLDÁVEL, DN 50MM X 1.1/2, INSTALADO EM PRUMADA DE ÁGUA - FORNECIMENTO E INSTALAÇÃO. AF_12/2014 | S191: UN | T191: 1 | W191: 0 | X191: Referência: AGETOP - 81069
A192: S | B192: 3 | C192: S | D192: 0 | E192: 1 | F192: 5 | G192: 2 | H192: 0 | I192: 0 | J192: 0 | K192: 0 | M192: Serviço | N192: Serviço | O192: - | P192: SINAPI | Q192: 89605 | R192: LUVA DE REDUÇÃO, PVC, SOLDÁVEL, DN 60MM X 50MM, INSTALADO EM PRUMADA DE ÁGUA - FORNECIMENTO E INSTALAÇÃO. AF_12/2014 | S192: UN | T192: 1 | W192: 0
A193: S | B193: 3 | C193: S | D193: 0 | E193: 1 | F193: 5 | G193: 2 | H193: 0 | I193: 0 | J193: 0 | K193: 0 | M193: Serviço | N193: Serviço | O193: - | P193: AGETOP | Q193: 81180 | R193: BUCHA DE REDUCAO SOLDAVEL LONGA 50 X 32 mm | S193: Un | T193: 1 | W193: 0
A194: S | B194: 3 | C194: S | D194: 0 | E194: 1 | F194: 5 | G194: 2 | H194: 0 | I194: 0 | J194: 0 | K194: 0 | M194: Serviço | N194: Serviço | O194: - | P194: SINAPI | Q194: 89481 | R194: JOELHO 90 GRAUS, PVC, SOLDÁVEL, DN 25MM, INSTALADO EM PRUMADA DE ÁGUA - FORNECIMENTO E INSTALAÇÃO. AF_12/2014 | S194: UN | T194: 3 | W194: 0
A195: =CHOOSE(1+LOG(1+2*(ORÇAMENTO.Nivel="Nível 1")+4*(ORÇAMENTO.Nivel="Nível 2")+8*(ORÇAMENTO.Nivel="Nível 3")+16*(ORÇAMENTO.Nivel="Nível 4")+32*(ORÇAMENTO.Nivel="Serviço"),2),0,1,2,3,4,"S") -> S | B195: 3 | C195: S | D195: 0 | E195: 1 | F195: 5 | G195: 2 | H195: 0 | I195: =IF(AND($C195<=4,$C195<>0),0,IF(AND($C195="S",$W195>0),OFFSET(I195,-1,0)+1,OFFSET(I195,-1,0))) -> 0 | J195: 0 | K195: 0 | M195: Serviço | N195: Serviço | O195: - | P195: SINAPI | Q195: 89501 | R195: JOELHO 90 GRAUS, PVC, SOLDÁVEL, DN 50MM, INSTALADO EM PRUMADA DE ÁGUA - FORNECIMENTO E INSTALAÇÃO. AF_12/2014 | S195: UN | T195: 4 | W195: 0
A196: S | B196: 3 | C196: S | D196: 0 | E196: 1 | F196: 5 | G196: 2 | H196: 0 | I196: 0 | J196: 0 | K196: 0 | M196: Serviço | N196: Serviço | O196: - | P196: SINAPI | Q196: 94680 | R196: JOELHO 90 GRAUS, PVC, SOLDÁVEL, DN 60 MM INSTALADO EM RESERVAÇÃO DE ÁGUA DE EDIFICAÇÃO QUE POSSUA RESERVATÓRIO DE FIBRA/FIBROCIMENTO FORNECIMENTO E INSTALAÇÃO. AF_06/2016 | S196: UN | T196: 4 | W196: 0 | X196: Referência: AGETOP - 81325
A197: S | B197: 3 | C197: S | D197: 0 | E197: =IF($C197=1,OFFSET(E197,-1,0)+1,OFFSET(E197,-1,0)) -> 1 | F197: =IF($C197=1,0,IF($C197=2,OFFSET(F197,-1,0)+1,OFFSET(F197,-1,0))) -> 5 | G197: =IF(AND($C197<=2,$C197<>0),0,IF($C197=3,OFFSET(G197,-1,0)+1,OFFSET(G197,-1,0))) -> 2 | H197: =IF(AND($C197<=3,$C197<>0),0,IF($C197=4,OFFSET(H197,-1,0)+1,OFFSET(H197,-1,0))) -> 0 | I197: 0 | J197: 0 | K197: 0 | M197: Serviço | N197: Serviço | O197: - | P197: AGETOP | Q197: 81360 | R197: JOELHO RED.90 GRAUS SOLD.C/BUCHA LATAO 25X1/2" | S197: Un | T197: 1 | W197: 0
A198: S | B198: =IF(OR(C198="s",C198=0),OFFSET(B198,-1,0),C198) -> 3 | C198: =IF(OFFSET(C198,-1,0)="L",1,IF(OFFSET(C198,-1,0)=1,2,IF(OR(A198="s",A198=0),"S",IF(AND(OFFSET(C198,-1,0)=2,A198=4),3,IF(AND(OR(OFFSET(C198,-1,0)="s",OFFSET(C198,-1,0)=0),A198<>"s",A198>OFFSET(B198,-1,0)),OFFSET(B198,-1,0),A198))))) -> S | D198: =IF(OR(C198="S",C198=0),0,IF(ISERROR(K198),J198,SMALL(J198:K198,1))) -> 0 | E198: 1 | F198: 5 | G198: 2 | H198: 0 | I198: 0 | J198: =IF(OR($C198="S",$C198=0),0,MATCH(0,OFFSET($D198,1,$C198,ROW($C$619)-ROW($C198)),0)) -> 0 | K198: =IF(OR($C198="S",$C198=0),0,MATCH(OFFSET($D198,0,$C198)+1,OFFSET($D198,1,$C198,ROW($C$619)-ROW($C198)),0)) -> 0 | M198: Serviço | N198: Serviço | O198: - | P198: SINAPI | Q198: 89627 | R198: TÊ DE REDUÇÃO, PVC, SOLDÁVEL, DN 50MM X 25MM, INSTALADO EM PRUMADA DE ÁGUA - FORNECIMENTO E INSTALAÇÃO. AF_12/2014 | S198: UN | T198: 1 | W198: 0
A199: 3 | B199: 3 | C199: 3 | D199: 12 | E199: 1 | F199: 5 | G199: 3 | H199: 0 | I199: 0 | J199: 19 | K199: 12 | M199: Nível 3 | N199: Nível 3 | O199: - | P199: SINAPI | R199: ESGOTO SANITÁRIO | S199: - | W199: 0
A200: S | B200: 3 | C200: S | D200: 0 | E200: 1 | F200: 5 | G200: 3 | H200: 0 | I200: 0 | J200: 0 | K200: 0 | M200: Serviço | N200: Serviço | O200: - | P200: SINAPI | Q200: 89500 | R200: CURVA 45 GRAUS, PVC, SOLDÁVEL, DN 40MM, INSTALADO EM PRUMADA DE ÁGUA - FORNECIMENTO E INSTALAÇÃO. AF_12/2014 | S200: UN | T200: 1 | W200: 0 | X200: Referência: AGETOP - 81701
A201: S | B201: 3 | C201: S | D201: 0 | E201: 1 | F201: 5 | G201: 3 | H201: 0 | I201: 0 | J201: 0 | K201: 0 | M201: Serviço | N201: Serviço | O201: - | P201: AGETOP | Q201: 81702 | R201: CURVA 45 GRAUS DIAMETRO 100 MM | S201: Un | T201: 1 | W201: 0
A202: S | B202: 3 | C202: S | D202: 0 | E202: 1 | F202: 5 | G202: 3 | H202: 0 | I202: 0 | J202: 0 | K202: 0 | M202: Serviço | N202: Serviço | O202: - | P202: SINAPI | Q202: 89811 | R202: CURVA CURTA 90 GRAUS, PVC, SERIE NORMAL, ESGOTO PREDIAL, DN 100 MM, JUNTA ELÁSTICA, FORNECIDO E INSTALADO EM PRUMADA DE ESGOTO SANITÁRIO OU VENTILAÇÃO. AF_12/2014 | S202: UN | T202: 1 | W202: 0
A203: S | B203: 3 | C203: S | D203: 0 | E203: 1 | F203: 5 | G203: 3 | H203: 0 | I203: 0 | J203: 0 | K203: 0 | M203: Serviço | N203: Serviço | O203: - | P203: SINAPI | Q203: 89499 | R203: CURVA 90 GRAUS, PVC, SOLDÁVEL, DN 40MM, INSTALADO EM PRUMADA DE ÁGUA - FORNECIMENTO E INSTALAÇÃO. AF_12/2014 | S203: UN | T203: 1 | W203: 0
A204: S | B204: 3 | C204: S | D204: 0 | E204: 1 | F204: 5 | G204: 3 | H204: 0 | I204: 0 | J204: 0 | K204: 0 | M204: Serviço | N204: Serviço | O204: - | P204: SINAPI | Q204: 89731 | R204: JOELHO 90 GRAUS, PVC, SERIE NORMAL, ESGOTO PREDIAL, DN 50 MM, JUNTA ELÁSTICA, FORNECIDO E INSTALADO EM RAMAL DE DESCARGA OU RAMAL DE ESGOTO SANITÁRIO. AF_12/2014 | S204: UN | T204: 2 | W204: 0
A205: S | B205: 3 | C205: S | D205: 0 | E205: 1 | F205: 5 | G205: 3 | H205: 0 | I205: 0 | J205: 0 | K205: 0 | M205: Serviço | N205: Serviço | O205: - | P205: AGETOP | Q205: 81927 | R205: JOELHO 90 GRAUS C/ANEL 40 mm | S205: Un | T205: 1 | W205: 0
A206: S | B206: 3 | C206: S | D206: 0 | E206: 1 | F206: 5 | G206: 3 | H206: 0 | I206: 0 | J206: 0 | K206: 0 | M206: Serviço | N206: Serviço | O206: - | P206: AGETOP | Q206: 81973 | R206: JUNCAO SIMPLES DIAM. 100 X 50 MM | S206: Un | T206: 1 | W206: 0
... 486 more rows

Sheet Resumo
B3: UNIDADE ESCOLAR | G3: CÓDIGO INEP
B4: =Orçamento!$O$4 -> COLÉGIO ESTADUAL PROFESSOR HELI ALVES FERREIRA | G4: =Orçamento!V4 -> 52020487
B6: OBRA | G6: CIDADE
B7: =Orçamento!$O$7 -> REFORMA E AMPLIAÇÃO | G7: =Orçamento!$V$7 -> ANÁPOLIS
B9: ENDEREÇO | G9: CRE
B10: =Orçamento!$R$10 -> RUA LOPO DE SOUZA RAMOS S/N PÇA MAJOR HENRIQUE, JUNDIAI, CEP:75110-410 | G10: =Orçamento!$O$10 -> ANÁPOLIS
B12: REFERÊNCIA | D12: DATA | G12: ÁREA TOTAL CONSTRUÍDA (M²)
B13: =CONCATENATE("AGETOP E SINAPI - ",Orçamento!$W$10) -> AGETOP E SINAPI - DESONERADA | D13: =Orçamento!$S$7 -> 2020-04-08 | G13: =Orçamento!$S$13 -> 1589.09
A14: FILTRO
B15: RESUMO GERAL DO ORÇAMENTO
A16: ↓ | B16: ITEM | C16: DESCRIÇÃO DOS SERVIÇOS | E16: UNID | F16: QUANT | G16: PREÇO SEM BDI | H16: PREÇO COM BDI | I16: PARTICIP. (%)
A17: =IF(E17>0,"F","") -> F | B17: 1. | C17: =Orçamento!$P672 -> REFORMA | E17: UN | F17: 1 | G17: =IFERROR(Orçamento!S672,"-") -> 0 | H17: =IFERROR(Orçamento!V672,"") -> 0 | I17: =Orçamento!X672 -> 
A18: =IF(E18>0,"F","") -> F | B18: 2. | C18: =Orçamento!$P673 -> LABORATÓRIO DE CIÊNCIAS - SEDUC 2019 | E18: UN | F18: 1 | G18: =IFERROR(Orçamento!S673,"-") -> 0 | H18: =IFERROR(Orçamento!V673,"") -> 0 | I18: =Orçamento!X673 -> 
A19: F | B19: 3. | C19: =Orçamento!$P674 -> BLOCO VESTIÁRIO PADRÃO SEDUC 2019 - SEC. XXI | E19: UN | F19: 1 | G19: =IFERROR(Orçamento!S674,"-") -> 0 | H19: =IFERROR(Orçamento!V674,"") -> 0 | I19: =Orçamento!X674 -> 
A20: F | B20: 4. | C20: =Orçamento!$P675 -> PASSARELA COBERTA MOD1 - LAJE PLANA | E20: UN | F20: 1 | G20: =IFERROR(Orçamento!S675,"-") -> 0 | H20: =IFERROR(Orçamento!V675,"") -> 0 | I20: =Orçamento!X675 -> 
B21: 5. | C21: =Orçamento!$P676 ->  | G21: =IFERROR(Orçamento!S676,"-") -> 0 | H21: =IFERROR(Orçamento!V676,"") -> 0 | I21: =Orçamento!X676 -> 
B22: 6. | C22: =Orçamento!$P677 ->  | G22: =IFERROR(Orçamento!S677,"-") -> 0 | H22: =IFERROR(Orçamento!V677,"") -> 0 | I22: =Orçamento!X677 -> 
B23: 7. | C23: =Orçamento!$P678 ->  | G23: =IFERROR(Orçamento!S678,"-") -> 0 | H23: =IFERROR(Orçamento!V678,"") -> 0 | I23: =Orçamento!X678 -> 
B24: 8. | C24: =Orçamento!$P679 ->  | G24: =IFERROR(Orçamento!S679,"-") -> 0 | H24: =IFERROR(Orçamento!V679,"") -> 0 | I24: =Orçamento!X679 -> 
B25: 9. | C25: =Orçamento!$P680 ->  | G25: =IFERROR(Orçamento!S680,"-") -> 0 | H25: =IFERROR(Orçamento!V680,"") -> 0 | I25: =Orçamento!X680 -> 
B26: 10. | C26: =Orçamento!$P681 ->  | G26: =IFERROR(Orçamento!S681,"-") -> 0 | H26: =IFERROR(Orçamento!V681,"") -> 0 | I26: =Orçamento!X681 -> 
B27: 11. | C27: =Orçamento!$P682 ->  | G27: =IFERROR(Orçamento!S682,"-") -> 0 | H27: =IFERROR(Orçamento!V682,"") -> 0 | I27: =Orçamento!X682 -> 
B28: 12. | C28: =Orçamento!$P683 ->  | G28: =IFERROR(Orçamento!S683,"-") -> 0 | H28: =IFERROR(Orçamento!V683,"") -> 0 | I28: =Orçamento!X683 -> 
B29: 13. | C29: =Orçamento!$P684 ->  | G29: =IFERROR(Orçamento!S684,"-") -> 0 | H29: =IFERROR(Orçamento!V684,"") -> 0 | I29: =Orçamento!X684 -> 
B30: 14. | C30: =Orçamento!$P685 ->  | G30: =IFERROR(Orçamento!S685,"-") -> 0 | H30: =IFERROR(Orçamento!V685,"") -> 0 | I30: =Orçamento!X685 -> 
B31: 15. | C31: =Orçamento!$P686 ->  | G31: =IFERROR(Orçamento!S686,"-") -> 0 | H31: =IFERROR(Orçamento!V686,"") -> 0 | I31: =Orçamento!X686 -> 
B32: 16. | C32: =Orçamento!$P687 ->  | G32: =IFERROR(Orçamento!S687,"-") -> 0 | H32: =IFERROR(Orçamento!V687,"") -> 0 | I32: =Orçamento!X687 -> 
B33: 17. | C33: =Orçamento!$P688 ->  | G33: =IFERROR(Orçamento!S688,"-") -> 0 | H33: =IFERROR(Orçamento!V688,"") -> 0 | I33: =Orçamento!X688 -> 
B34: 18. | C34: =Orçamento!$P689 ->  | G34: =IFERROR(Orçamento!S689,"-") -> 0 | H34: =IFERROR(Orçamento!V689,"") -> 0 | I34: =Orçamento!X689 -> 
B35: 19. | C35: =Orçamento!$P690 ->  | G35: =IFERROR(Orçamento!S690,"-") -> 0 | H35: =IFERROR(Orçamento!V690,"") -> 0 | I35: =Orçamento!X690 -> 
B36: 20. | C36: =Orçamento!$P691 ->  | G36: =IFERROR(Orçamento!S691,"-") -> 0 | H36: =IFERROR(Orçamento!V691,"") -> 0 | I36: =Orçamento!X691 -> 
A37: F | B37: TOTAL GERAL DO ORÇAMENTO (R$) | G37: =SUM(G17:G36) -> 0 | H37: 0 | I37: =SUM(I17:I36) -> 
A38: F
A39: F

Sheet Somatório
B3: UNIDADE ESCOLAR | E3: CÓDIGO INEP
B4: =Orçamento!$O$4 -> COLÉGIO ESTADUAL PROFESSOR HELI ALVES FERREIRA | E4: =Orçamento!V4 -> 52020487
B6: OBRA | E6: CIDADE
B7: =Orçamento!$O$7 -> REFORMA E AMPLIAÇÃO | E7: =Orçamento!$V$7 -> ANÁPOLIS
B9: ENDEREÇO | E9: CRE
B10: =Orçamento!$R$10 -> RUA LOPO DE SOUZA RAMOS S/N PÇA MAJOR HENRIQUE, JUNDIAI, CEP:75110-410 | E10: =Orçamento!$O$10 -> ANÁPOLIS
B12: REFERÊNCIA | D12: DATA | E12: ÁREA TOTAL CONSTRUÍDA (M²) | M12: =0.12 -> 0.12 | N12: 0.4 | O12: 2.65
B13: =CONCATENATE("AGETOP E SINAPI - ",Orçamento!$W$10) -> AGETOP E SINAPI - DESONERADA | D13: =Orçamento!$S$7 -> 2020-04-08 | E13: =Orçamento!$S$13 -> 1589.09 | M13: =M12*O12*2 -> 0.636 | N13: =N12*O12*2 -> 2.12 | O13: =SUM(M13:N13) -> 2.756 | P13: =O13*2 -> 5.512
A14: FILTRO
B15: SOMATÓRIO DE SERVIÇOS
A16: ↓ | B16: ITEM | C16: DESCRIÇÃO DOS SERVIÇOS | D16: PREÇO SEM BDI (R$) | E16: PREÇO COM BDI (R$) | F16: PARTIC. ( % )
A17: =IF(D17>0,"F","") ->  | B17: a. | C17: =Orçamento!P638 -> SERVIÇOS PRELIMINARES | D17: =Orçamento!S638 -> 0 | E17: =Orçamento!V638 -> 0 | F17: =Orçamento!X638 -> 0
A18: =IF(D18>0,"F","") ->  | B18: b. | C18: =Orçamento!P639 -> TRANSPORTES | D18: =Orçamento!S639 -> 0 | E18: =Orçamento!V639 -> 0 | F18: =Orçamento!X639 -> 0
B19: c. | C19: =Orçamento!P640 -> SERVIÇO EM TERRA | D19: =Orçamento!S640 -> 0 | E19: =Orçamento!V640 -> 0 | F19: =Orçamento!X640 -> 0
B20: d. | C20: =Orçamento!P641 -> FUNDAÇÕES E SONDAGENS | D20: =Orçamento!S641 -> 0 | E20: =Orçamento!V641 -> 0 | F20: =Orçamento!X641 -> 0
B21: e. | C21: =Orçamento!P642 -> ESTRUTURA | D21: =Orçamento!S642 -> 0 | E21: =Orçamento!V642 -> 0 | F21: =Orçamento!X642 -> 0
B22: f. | C22: =Orçamento!P643 -> INSTALAÇÕES ELÉTRICAS | D22: =Orçamento!S643 -> 0 | E22: =Orçamento!V643 -> 0 | F22: =Orçamento!X643 -> 0
B23: g. | C23: =Orçamento!P644 -> INSTALAÇÕES HIDROSSANITÁRIAS | D23: =Orçamento!S644 -> 0 | E23: =Orçamento!V644 -> 0 | F23: =Orçamento!X644 -> 0
B24: h | C24: =Orçamento!P645 -> INSTALAÇÕES ESPECIAIS | D24: =Orçamento!S645 -> 0 | E24: =Orçamento!V645 -> 0 | F24: =Orçamento!X645 -> 0
B25: i. | C25: =Orçamento!P646 -> ALVENARIAS E DIVISÓRIAS | D25: =Orçamento!S646 -> 0 | E25: =Orçamento!V646 -> 0 | F25: =Orçamento!X646 -> 0
B26: j. | C26: =Orçamento!P647 -> ALVENARIA AUTO-PORTANTE | D26: =Orçamento!S647 -> 0 | E26: =Orçamento!V647 -> 0 | F26: =Orçamento!X647 -> 0
B27: k. | C27: =Orçamento!P648 -> IMPERMEABILIZAÇÃO | D27: =Orçamento!S648 -> 0 | E27: =Orçamento!V648 -> 0 | F27: =Orçamento!X648 -> 0
B28: l. | C28: =Orçamento!P649 -> ISOLAMENTO TÉRMICO E ACÚSTICO | D28: =Orçamento!S649 -> 0 | E28: =Orçamento!V649 -> 0 | F28: =Orçamento!X649 -> 0
B29: m. | C29: =Orçamento!P650 -> ESTRUTURA DE MADEIRA | D29: =Orçamento!S650 -> 0 | E29: =Orçamento!V650 -> 0 | F29: =Orçamento!X650 -> 0
B30: n. | C30: =Orçamento!P651 -> ESTRUTURAS METÁLICAS | D30: =Orçamento!S651 -> 0 | E30: =Orçamento!V651 -> 0 | F30: =Orçamento!X651 -> 0
B31: o. | C31: =Orçamento!P652 -> COBERTURAS | D31: =Orçamento!S652 -> 0 | E31: =Orçamento!V652 -> 0 | F31: =Orçamento!X652 -> 0
B32: p. | C32: =Orçamento!P653 -> ESQUADRIAS DE MADEIRA | D32: =Orçamento!S653 -> 0 | E32: =Orçamento!V653 -> 0 | F32: =Orçamento!X653 -> 0
B33: q. | C33: =Orçamento!P654 -> ESQUADRIAS METÁLICAS | D33: =Orçamento!S654 -> 0 | E33: =Orçamento!V654 -> 0 | F33: =Orçamento!X654 -> 0
B34: r. | C34: =Orçamento!P655 -> VIDROS | D34: =Orçamento!S655 -> 0 | E34: =Orçamento!V655 -> 0 | F34: =Orçamento!X655 -> 0
B35: s. | C35: =Orçamento!P656 -> REVESTIMENTO DE PAREDE | D35: =Orçamento!S656 -> 0 | E35: =Orçamento!V656 -> 0 | F35: =Orçamento!X656 -> 0
B36: t. | C36: =Orçamento!P657 -> FORROS | D36: =Orçamento!S657 -> 0 | E36: =Orçamento!V657 -> 0 | F36: =Orçamento!X657 -> 0
B37: u. | C37: =Orçamento!P658 -> REVESTIMENTO DE PISO | D37: =Orçamento!S658 -> 0 | E37: =Orçamento!V658 -> 0 | F37: =Orçamento!X658 -> 0
B38: v. | C38: =Orçamento!P659 -> FERRAGENS | D38: =Orçamento!S659 -> 0 | E38: =Orçamento!V659 -> 0 | F38: =Orçamento!X659 -> 0
B39: w. | C39: =Orçamento!P660 -> MARCENARIA | D39: =Orçamento!S660 -> 0 | E39: =Orçamento!V660 -> 0 | F39: =Orçamento!X660 -> 0
B40: x. | C40: =Orçamento!P661 -> ADMINISTRAÇÃO | D40: =Orçamento!S661 -> 0 | E40: =Orçamento!V661 -> 0 | F40: =Orçamento!X661 -> 0
B41: y. | C41: =Orçamento!P662 -> PINTURA | D41: =Orçamento!S662 -> 0 | E41: =Orçamento!V662 -> 0 | F41: =Orçamento!X662 -> 0
B42: z. | C42: =Orçamento!P663 -> DIVERSOS | D42: =Orçamento!S663 -> 0 | E42: =Orçamento!V663 -> 0 | F42: =Orçamento!X663 -> 0
A43: F | B43: TOTAL GERAL DO ORÇAMENTO | D43: =SUM(D17:D42) -> 0 | E43: =SUM(E17:E42) -> 0 | F43: =SUM(F17:F42) -> 0
B45: (*) Para itens da AGETOP, os vidros não estão inclusos nas esquadrias e já foram considerados os custos de contramarco para as esquadrias de alumínio;

Sheet Cronog_90_Dias
B3: UNIDADE ESCOLAR | I3: PRAZO
B4: =Orçamento!$O$4 -> COLÉGIO ESTADUAL PROFESSOR HELI ALVES FERREIRA | I4: 90 DIAS CORRIDOS
B6: OBRA | I6: DATA
B7: =Orçamento!$O$7 -> REFORMA E AMPLIAÇÃO | I7: =Orçamento!$S$7 -> 2020-04-08
B9: LOCAL | I9: ÁREA TOTAL CONSTRUÍDA (M²)
A10: FILTRO | B10: =Orçamento!$V$7 -> ANÁPOLIS | I10: =Orçamento!$S$13 -> 1589.09
B12: CRONOGRAMA - FÍSICO FINANCEIRO
A13: ↓ | B13: CUSTO TOTAL: | C13: =D93 -> 0 | D13: VALOR | E13: Dias: | F13: 30 | J13: 60 | N13: 90 | R13: TOTAL
B14: DESCRIÇÃO DOS SERVIÇOS | E14: % | F14: 1ª PARCELA | J14: 2ª PARCELA | N14: 3ª PARCELA
A15: =IF(D15>0,"F","") ->  | B15: SERVIÇOS PRELIMINARES | D15: =Orçamento!V638 -> 0 | E15: =Orçamento!X638 -> 0 | F15: =ROUND(F17*$D$15,2) -> 0 | J15: =ROUND(J17*$D$15,2) -> 0 | N15: =ROUND(N17*$D$15,2) -> 0 | R15: =SUM(F15:Q15) -> 0
A16: =IF(A15="F",A15,"") -> 
A17: =IF(A16="F",A16,"") ->  | F17: 0.6 | J17: 0.4 | N17: =1-F17-J17 -> 0 | R17: =IFERROR(E15/100,"") -> 0
A18: =IF(D18>0,"F","") ->  | B18: TRANSPORTES | D18: =Orçamento!V639 -> 0 | E18: =Orçamento!X639 -> 0 | F18: =ROUND(F20*$D$18,2) -> 0 | J18: =ROUND(J20*$D$18,2) -> 0 | N18: =ROUND(N20*$D$18,2) -> 0 | R18: =SUM(F18:Q18) -> 0
A19: =IF(A18="F",A18,"") -> 
A20: =IF(A19="F",A19,"") ->  | F20: 0.42 | J20: 0.58 | N20: =1-F20-J20 -> 0 | R20: =IFERROR(E18/100,"") -> 0
A21: =IF(D21>0,"F","") ->  | B21: SERVIÇO EM TERRA | D21: =Orçamento!V640 -> 0 | E21: =Orçamento!X640 -> 0 | F21: =ROUND(F23*$D$21,2) -> 0 | J21: =ROUND(J23*$D$21,2) -> 0 | N21: =ROUND(N23*$D$21,2) -> 0 | R21: =SUM(F21:Q21) -> 0
A22: =IF(A21="F",A21,"") -> 
A23: =IF(A22="F",A22,"") ->  | F23: 0.6 | J23: 0.4 | N23: =1-F23-J23 -> 0 | R23: =IFERROR(E21/100,"") -> 0
A24: =IF(D24>0,"F","") ->  | B24: FUNDAÇÕES E SONDAGENS | D24: =Orçamento!V641 -> 0 | E24: =Orçamento!X641 -> 0 | F24: =ROUND(F26*$D$24,2) -> 0 | J24: =ROUND(J26*$D$24,2) -> 0 | N24: =ROUND(N26*$D$24,2) -> 0 | R24: =SUM(F24:Q24) -> 0
A25: =IF(A24="F",A24,"") -> 
A26: =IF(A25="F",A25,"") ->  | F26: 0.6 | J26: 0.4 | N26: =1-F26-J26 -> 0 | R26: =IFERROR(E24/100,"") -> 0
A27: =IF(D27>0,"F","") ->  | B27: ESTRUTURA | D27: =Orçamento!V642 -> 0 | E27: =Orçamento!X642 -> 0 | F27: =ROUND(F29*$D$27,2) -> 0 | J27: =ROUND(J29*$D$27,2) -> 0 | N27: =ROUND(N29*$D$27,2) -> 0 | R27: =SUM(F27:Q27) -> 0
A28: =IF(A27="F",A27,"") -> 
A29: =IF(A28="F",A28,"") ->  | F29: 0.2 | J29: 0.7 | N29: =1-F29-J29 -> 0.1 | R29: =IFERROR(E27/100,"") -> 0
A30: =IF(D30>0,"F","") ->  | B30: INST.ELET/TELEFÔNICA/CABEAMENTO ESTRUTURADO | D30: =Orçamento!V643 -> 0 | E30: =Orçamento!X643 -> 0 | F30: =ROUND(F32*$D$30,2) -> 0 | J30: =ROUND(J32*$D$30,2) -> 0 | N30: =ROUND(N32*$D$30,2) -> 0 | R30: =SUM(F30:Q30) -> 0
A31: =IF(A30="F",A30,"") -> 
A32: =IF(A31="F",A31,"") ->  | F32: 0.15 | J32: 0.75 | N32: =1-F32-J32 -> 0.1 | R32: =IFERROR(E30/100,"") -> 0
A33: =IF(D33>0,"F","") ->  | B33: INSTALAÇÕES HIDROSSANITÁRIAS | D33: =Orçamento!V644 -> 0 | E33: =Orçamento!X644 -> 0 | F33: =ROUND(F35*$D$33,2) -> 0 | J33: =ROUND(J35*$D$33,2) -> 0 | N33: =ROUND(N35*$D$33,2) -> 0 | R33: =SUM(F33:Q33) -> 0
A34: =IF(A33="F",A33,"") -> 
A35: =IF(A34="F",A34,"") ->  | F35: 0.2 | J35: 0.6 | N35: =1-F35-J35 -> 0.2 | R35: =IFERROR(E33/100,"") -> 0
A36: =IF(D36>0,"F","") ->  | B36: INSTALAÇÕES ESPECIAIS | D36: =Orçamento!V645 -> 0 | E36: =Orçamento!X645 -> 0 | F36: =ROUND(F38*$D$36,2) -> 0 | J36: =ROUND(J38*$D$36,2) -> 0 | N36: =ROUND(N38*$D$36,2) -> 0 | R36: =SUM(F36:Q36) -> 0
A37: =IF(A36="F",A36,"") -> 
A38: =IF(A37="F",A37,"") ->  | F38: 0.3 | J38: 0.7 | N38: =1-F38-J38 -> 0 | R38: =IFERROR(E36/100,"") -> 0
A39: =IF(D39>0,"F","") ->  | B39: ALVENARIA E DIVISÓRIAS | D39: =Orçamento!V646 -> 0 | E39: =Orçamento!X646 -> 0 | F39: =ROUND(F41*$D$39,2) -> 0 | J39: =ROUND(J41*$D$39,2) -> 0 | N39: =ROUND(N41*$D$39,2) -> 0 | R39: =SUM(F39:Q39) -> 0
A40: =IF(A39="F",A39,"") -> 
A41: =IF(A40="F",A40,"") ->  | F41: 0.35 | J41: 0.65 | N41: =1-F41-J41 -> 0 | R41: =IFERROR(E39/100,"") -> 0
A42: =IF(D42>0,"F","") ->  | B42: ALVENARIA AUTO-PORTANTE | D42: =Orçamento!V647 -> 0 | E42: =Orçamento!X647 -> 0 | F42: =ROUND(F44*$D$42,2) -> 0 | J42: =ROUND(J44*$D$42,2) -> 0 | N42: =ROUND(N44*$D$42,2) -> 0 | R42: =SUM(F42:Q42) -> 0
A43: =IF(A42="F",A42,"") -> 
A44: =IF(A43="F",A43,"") ->  | F44: 0.34 | J44: 0.66 | N44: =1-F44-J44 -> 0 | R44: =IFERROR(E42/100,"") -> 0
A45: =IF(D45>0,"F","") ->  | B45: IMPERMEABILIZAÇÃO | D45: =Orçamento!V648 -> 0 | E45: =Orçamento!X648 -> 0 | F45: =ROUND(F47*$D$45,2) -> 0 | J45: =ROUND(J47*$D$45,2) -> 0 | N45: =ROUND(N47*$D$45,2) -> 0 | R45: =SUM(F45:Q45) -> 0
A46: =IF(A45="F",A45,"") -> 
A47: =IF(A46="F",A46,"") ->  | F47: 0.45 | J47: 0.55 | N47: =1-F47-J47 -> 0 | R47: =IFERROR(E45/100,"") -> 0
A48: =IF(D48>0,"F","") ->  | B48: ISOLAMENTO TÉRMICO E ACÚSTICO | D48: =Orçamento!V649 -> 0 | E48: =Orçamento!X649 -> 0 | F48: =ROUND(F50*$D$48,2) -> 0 | J48: =ROUND(J50*$D$48,2) -> 0 | N48: =ROUND(N50*$D$48,2) -> 0 | R48: =SUM(F48:Q48) -> 0
A49: =IF(A48="F",A48,"") -> 
A50: =IF(A49="F",A49,"") ->  | F50: 0.45 | J50: 0.55 | N50: =1-F50-J50 -> 0 | R50: =IFERROR(E48/100,"") -> 0
A51: =IF(D51>0,"F","") ->  | B51: ESTRUTURA DE MADEIRA | D51: =Orçamento!V650 -> 0 | E51: =Orçamento!X650 -> 0 | F51: =ROUND(F53*$D$51,2) -> 0 | J51: =ROUND(J53*$D$51,2) -> 0 | N51: =ROUND(N53*$D$51,2) -> 0 | R51: =SUM(F51:Q51) -> 0
A52: =IF(A51="F",A51,"") -> 
A53: =IF(A52="F",A52,"") ->  | F53: 0.15 | J53: 0.7 | N53: =1-F53-J53 -> 0.15 | R53: =IFERROR(E51/100,"") -> 0
A54: =IF(D54>0,"F","") ->  | B54: ESTRUTURA METÁLICA | D54: =Orçamento!V651 -> 0 | E54: =Orçamento!X651 -> 0 | F54: =ROUND(F56*$D$54,2) -> 0 | J54: =ROUND(J56*$D$54,2) -> 0 | N54: =ROUND(N56*$D$54,2) -> 0 | R54: =SUM(F54:Q54) -> 0
A55: =IF(A54="F",A54,"") -> 
A56: =IF(A55="F",A55,"") ->  | F56: 0.35 | J56: 0.65 | N56: =1-F56-J56 -> 0 | R56: =IFERROR(E54/100,"") -> 0
A57: =IF(D57>0,"F","") ->  | B57: COBERTURAS | D57: =Orçamento!V652 -> 0 | E57: =Orçamento!X652 -> 0 | F57: =ROUND(F59*$D$57,2) -> 0 | J57: =ROUND(J59*$D$57,2) -> 0 | N57: =ROUND(N59*$D$57,2) -> 0 | R57: =SUM(F57:Q57) -> 0
A58: =IF(A57="F",A57,"") -> 
A59: =IF(A58="F",A58,"") ->  | F59: 0 | J59: 0.25 | N59: =1-F59-J59 -> 0.75 | R59: =IFERROR(E57/100,"") -> 0
A60: =IF(D60>0,"F","") ->  | B60: ESQUADRIAS DE MADEIRA | D60: =Orçamento!V653 -> 0 | E60: =Orçamento!X653 -> 0 | F60: =ROUND(F62*$D$60,2) -> 0 | J60: =ROUND(J62*$D$60,2) -> 0 | N60: =ROUND(N62*$D$60,2) -> 0 | R60: =SUM(F60:Q60) -> 0
A61: =IF(A60="F",A60,"") -> 
A62: =IF(A61="F",A61,"") ->  | F62: 0.3 | J62: 0.55 | N62: =1-F62-J62 -> 0.15 | R62: =IFERROR(E60/100,"") -> 0
A63: =IF(D63>0,"F","") ->  | B63: ESQUADRIAS METÁLICAS | D63: =Orçamento!V654 -> 0 | E63: =Orçamento!X654 -> 0 | F63: =ROUND(F65*$D$63,2) -> 0 | J63: =ROUND(J65*$D$63,2) -> 0 | N63: =ROUND(N65*$D$63,2) -> 0 | R63: =SUM(F63:Q63) -> 0
A64: =IF(A63="F",A63,"") -> 
A65: =IF(A64="F",A64,"") ->  | F65: 0.3 | J65: 0.55 | N65: =1-F65-J65 -> 0.15 | R65: =IFERROR(E63/100,"") -> 0
A66: =IF(D66>0,"F","") ->  | B66: VIDROS | D66: =Orçamento!V655 -> 0 | E66: =Orçamento!X655 -> 0 | F66: =ROUND(F68*$D$66,2) -> 0 | J66: =ROUND(J68*$D$66,2) -> 0 | N66: =ROUND(N68*$D$66,2) -> 0 | R66: =SUM(F66:Q66) -> 0
A67: =IF(A66="F",A66,"") -> 
A68: =IF(A67="F",A67,"") ->  | F68: 0 | J68: 0 | N68: =1-F68-J68 -> 1 | R68: =IFERROR(E66/100,"") -> 0
A69: =IF(D69>0,"F","") ->  | B69: REVESTIMENTO DE PAREDE | D69: =Orçamento!V656 -> 0 | E69: =Orçamento!X656 -> 0 | F69: =ROUND(F71*$D$69,2) -> 0 | J69: =ROUND(J71*$D$69,2) -> 0 | N69: =ROUND(N71*$D$69,2) -> 0 | R69: =SUM(F69:Q69) -> 0
A70: =IF(A69="F",A69,"") -> 
A71: =IF(A70="F",A70,"") ->  | F71: 0.25 | J71: 0.6 | N71: =1-F71-J71 -> 0.15 | R71: =IFERROR(E69/100,"") -> 0
A72: =IF(D72>0,"F","") ->  | B72: FORROS | D72: =Orçamento!V657 -> 0 | E72: =Orçamento!X657 -> 0 | F72: =ROUND(F74*$D$72,2) -> 0 | J72: =ROUND(J74*$D$72,2) -> 0 | N72: =ROUND(N74*$D$72,2) -> 0 | R72: =SUM(F72:Q72) -> 0
A73: =IF(A72="F",A72,"") -> 
A74: =IF(A73="F",A73,"") ->  | F74: 0.24 | J74: 0.55 | N74: =1-F74-J74 -> 0.21 | R74: =IFERROR(E72/100,"") -> 0
A75: =IF(D75>0,"F","") ->  | B75: REVESTIMENTO DE PISO | D75: =Orçamento!V658 -> 0 | E75: =Orçamento!X658 -> 0 | F75: =ROUND(F77*$D$75,2) -> 0 | J75: =ROUND(J77*$D$75,2) -> 0 | N75: =ROUND(N77*$D$75,2) -> 0 | R75: =SUM(F75:Q75) -> 0
A76: =IF(A75="F",A75,"") -> 
A77: =IF(A76="F",A76,"") ->  | F77: 0.3 | J77: 0.55 | N77: =1-F77-J77 -> 0.15 | R77: =IFERROR(E75/100,"") -> 0
A78: =IF(D78>0,"F","") ->  | B78: FERRAGENS | D78: =Orçamento!V659 -> 0 | E78: =Orçamento!X659 -> 0 | F78: =ROUND(F80*$D$78,2) -> 0 | J78: =ROUND(J80*$D$78,2) -> 0 | N78: =ROUND(N80*$D$78,2) -> 0 | R78: =SUM(F78:Q78) -> 0
A79: =IF(A78="F",A78,"") -> 
A80: =IF(A79="F",A79,"") ->  | F80: 0 | J80: 0 | N80: =1-F80-J80 -> 1 | R80: =IFERROR(E78/100,"") -> 0
A81: =IF(D81>0,"F","") ->  | B81: MARCENARIA | D81: =Orçamento!V660 -> 0 | E81: =Orçamento!X660 -> 0 | F81: =ROUND(F83*$D$81,2) -> 0 | J81: =ROUND(J83*$D$81,2) -> 0 | N81: =ROUND(N83*$D$81,2) -> 0 | R81: =SUM(F81:Q81) -> 0
A82: =IF(A81="F",A81,"") -> 
A83: =IF(A82="F",A82,"") ->  | F83: 0 | J83: 0.77 | N83: =1-F83-J83 -> 0.23 | R83: =IFERROR(E81/100,"") -> 0
A84: =IF(D84>0,"F","") ->  | B84: ADMINISTRAÇÃO - MENSALISTAS | D84: =Orçamento!V661 -> 0 | E84: =Orçamento!X661 -> 0 | F84: =ROUND(F86*$D$84,2) -> 0 | J84: =ROUND(J86*$D$84,2) -> 0 | N84: =ROUND(N86*$D$84,2) -> 0 | R84: =SUM(F84:Q84) -> 0
A85: =IF(A84="F",A84,"") -> 
A86: =IF(A85="F",A85,"") ->  | F86: 0.33 | J86: 0.33 | N86: =1-F86-J86 -> 0.34 | R86: =IFERROR(E84/100,"") -> 0
A87: =IF(D87>0,"F","") ->  | B87: PINTURA | D87: =Orçamento!V662 -> 0 | E87: =Orçamento!X662 -> 0 | F87: =ROUND(F89*$D$87,2) -> 0 | J87: =ROUND(J89*$D$87,2) -> 0 | N87: =ROUND(N89*$D$87,2) -> 0 | R87: =SUM(F87:Q87) -> 0
A88: =IF(A87="F",A87,"") -> 
A89: =IF(A88="F",A88,"") ->  | F89: 0 | J89: 0.5 | N89: =1-F89-J89 -> 0.5 | R89: =IFERROR(E87/100,"") -> 0
A90: =IF(D90>0,"F","") ->  | B90: DIVERSOS | D90: =Orçamento!V663 -> 0 | E90: =Orçamento!X663 -> 0 | F90: =ROUND(F92*$D$90,2) -> 0 | J90: =ROUND(J92*$D$90,2) -> 0 | N90: =ROUND(N92*$D$90,2) -> 0 | R90: =SUM(F90:Q90) -> 0
A91: =IF(A90="F",A90,"") -> 
A92: =IF(A91="F",A91,"") ->  | F92: 0.22 | J92: 0.6 | N92: =1-F92-J92 -> 0.18 | R92: =IFERROR(E90/100,"") -> 0
A93: F | B93: CUSTO DO ORÇAMENTO | D93: =SUM(D15:D92) -> 0 | E93: =SUM(E15:E92) -> 0 | F93: =F15+F18+F21+F24+F27+F30+F33+F36+F39+F42+F45+F48+F51+F54+F57+F60+F63+F66+F69+F72+F75+F78+F81+F84+F87+F90 -> 0 | J93: =J15+J18+J21+J24+J27+J30+J33+J36+J39+J42+J45+J48+J51+J54+J57+J60+J63+J66+J69+J72+J75+J78+J81+J84+J87+J90 -> 0 | N93: =N15+N18+N21+N24+N27+N30+N33+N36+N39+N42+N45+N48+N51+N54+N57+N60+N63+N66+N69+N72+N75+N78+N81+N84+N87+N90 -> 0 | R93: =R15+R18+R21+R24+R27+R30+R33+R36+R39+R42+R45+R48+R51+R54+R57+R60+R63+R66+R69+R72+R75+R78+R81+R84+R87+R90 -> 0
A94: F | B94: PERCENTUAIS: | F94: =IFERROR(F93/$D$93,"") ->  | J94: =IFERROR(J93/$D$93,"") ->  | N94: =IFERROR(N93/$D$93,"") ->  | R94: =SUM(F94:Q94) -> 0
A95: F | B95: TOTAIS ACUMULADOS: | F95: =F93 -> 0 | J95: =F95+J93 -> 0 | N95: =J95+N93 -> 0
A96: F | B96: PERCENTUAIS ACUMULADOS: | F96: =F94 ->  | J96: =IFERROR(F96+J94,"") ->  | N96: =IFERROR(J96+N94,"") -> 
A97: F
A98: F | B98: OBSERVAÇÕES:
A99: F | B99: Os pagamentos somente poderão ser efetuados mediante medição e atesto pelos técnicos da Secretaria da Educação.

Sheet Composição BDI
A3: UNIDADE ESCOLAR
A4: =Orçamento!$O$4 -> COLÉGIO ESTADUAL PROFESSOR HELI ALVES FERREIRA
A6: OBRA
A7: =Orçamento!$O$7 -> REFORMA E AMPLIAÇÃO
A9: ENDEREÇO
A10: =Orçamento!$R$10 -> RUA LOPO DE SOUZA RAMOS S/N PÇA MAJOR HENRIQUE, JUNDIAI, CEP:75110-410
A12: CIDADE
A13: =Orçamento!$V$7 -> ANÁPOLIS
A15: CRE
A16: =Orçamento!$O$10 -> ANÁPOLIS
A18: DETALHAMENTO DA COMPOSIÇÃO DE BDI
A19: COMPOSIÇÃO BDI PARA OBRAS CIVIS | F19: BDI CONSTRUÇÃO E REFORMA
A20: DESCRIÇÃO | B20: COEF. | C20: TAXA % (a.m) | D20: % no preço de venda | F20: Situação | G20: 1º Quartil | H20: Médio | I20: 3º Quartil
A21: 1) COFINS | B21: 1 | C21: 0.03 | D21: =C21 -> 0.03 | F21: =IF(OR(C21<G21,C21>I21),"FORA DO INTERVALO","OK") -> OK | G21: 0.03 | H21: 0.03 | I21: 0.03
A22: 2) PIS | B22: 1 | C22: 0.0065 | D22: =C22 -> 0.0065 | F22: =IF(OR(C22<G22,C22>I22),"FORA DO INTERVALO","OK") -> OK | G22: 0.0065 | H22: 0.0065 | I22: 0.0065
A23: 3) ISSQN | B23: 1 | C23: 0.03 | D23: =C23*B23 -> 0.03 | F23: OK | G23: 0.02 | H23: 0.035 | I23: 0.05
A24: 4) CPRB | B24: 1 | C24: 0.045 | D24: =C24 -> 0.045 | F24: OK | G24: 0.045 | H24: 0.045 | I24: 0.045
A25: 5) Administração Central | B25: 1 | C25: 0.04 | D25: 0.04 | F25: OK | G25: 0.03 | H25: 0.04 | I25: 0.055
A26: 6) Despesas Financeiras | B26: 1 | C26: 0.0056 | D26: 0.0056 | F26: FORA DO INTERVALO | G26: 0.0059 | H26: 0.0123 | I26: 0.0139
A27: 7) Seguros + Garantias | B27: 1 | C27: 0.0012 | D27: 0.0012 | F27: FORA DO INTERVALO | G27: 0.008 | H27: 0.008 | I27: 0.01
A28: 8) Risco | B28: 1 | C28: 0.0097 | D28: 0.0097 | F28: OK | G28: 0.0097 | H28: 0.0127 | I28: 0.0127
A29: 9) Lucro | B29: 1 | C29: 0.072 | D29: 0.072 | F29: OK | G29: 0.0616 | H29: 0.074 | I29: 0.0896
A30: BDI - FINAL | D30: =(((1+D25+D27+D28)*(1+D26)*(1+D29))/(1-(D21+D22+D23+D24))-1) -> 0.2750405885 | F30: FORA DO INTERVALO | G30: 0.2034 | H30: 0.2212 | I30: 0.25
A32: Notas:
A33: (1) e (2) Alíquota definida por lei.
A34: (3) Alíquota e base de cálculo definidas pela legislação municipal.
A35: (4) Alíquota definida pelas leis 12.546/11, 12844/13 e 13.161/15 (CPRB – contribuição previdenciária sobre a receita bruta).
A36: (5) Valores definidos a partir dos limites no Acórdão nº 2.622/2013 - TCU – Plenário. Valores entre o 1º e 3º quartis.
A37: (6) Valor calculado pela expressão matemática do acórdão 2.369/2011 – TCU – Plenário e disponibilizado pela AGETOP em dezembro de 2018. (Foi utilizado para o cálculo a média da Taxa SELIC no período de 11/2017 a 10/2018)
A39: (7) Valores definidos pela AGETOP a partir dos limites no Acórdão nº 2.622/2013 - TCU – Plenário. Valores médios. Observação da AGETOP: (Seguros contra erros de execução, incêndio e explosão, danos da natureza (vendaval, destelhamento, alagamento, inundação, desmoronamento, geadas etc.), emprego de material defeituoso ou inadequado, roubo e/ou furto qualificado, quebra de equipamentos, desmoronamento de estrutura, nas modalidades de Obras Civis em Construção (OCC); Instalação e Montagem (IM); e Obras Civis em Construção e Instalação e Montagem (OCC/IM). Bem como coberturas adicionais para ampliação dessas coberturas básicas, como: cobertura de responsabilidade civil geral, cobertura de responsabilidade civil cruzada, cobertura de despesas extraordinárias, cobertura de tumultos, cobertura de desentulho do local, cobertura de riscos do fabricante, dentre outras, incluindo o seguro de vida em grupo regido pela convenção coletiva dos trabalhadores na indústria da construção civil). A partir de 24/02/2015 por intermédio da Portaria 449/2015 a Presidência da AGETOP, na pessoa do Senhor Jayme Eduardo Rincon, determinou a exclusão dos valores referentes aos Seguros de Risco de Engenharia e Responsabilidade Civil do Profissional na composição do cálculo do B.D.I..
A40: (8) Valores definidos a partir dos limites no Acórdão nº 2.622/2013 - TCU – Plenário. Valores entre 1º e 3° quartis.
A41: (9) Valores definidos a partir dos limites definidos no Acórdão nº 2.622/2013 - TCU – Plenário. Valores adotados e praticados no mercado ( “ ex ante ” ) ou aqueles entre os 1º e 3º quartis.
A43: (*) A fórmula para estipulação da taxa de BDI estimado adotado é a mesma que foi aplicada para a obtenção das tabelas contidas no Acórdão n. 2.622/2013 – TCUPlenário
A45: Obs.: Para obras com valores superiores a R$ 20.000.000,00 sugere-se recalcular o BDI, dimensionando as taxas de administração central e lucro para patamares inferiores ao estipulado acima.

Sheet Relatório CENTRAL
B3: UNIDADE ESCOLAR | D3: CIDADE
B4: =Orçamento!$O$4 -> COLÉGIO ESTADUAL PROFESSOR HELI ALVES FERREIRA | D4: =Orçamento!$V$7 -> ANÁPOLIS
B6: OBRA | D6: CRE
B7: =Orçamento!$O$7 -> REFORMA E AMPLIAÇÃO | D7: =Orçamento!$O$10 -> ANÁPOLIS
B9: ENDEREÇO | D9: DATA
A10: FILTRO | B10: =Orçamento!$R$10 -> RUA LOPO DE SOUZA RAMOS S/N PÇA MAJOR HENRIQUE, JUNDIAI, CEP:75110-410 | D10: =Orçamento!$S$7 -> 2020-04-08
B12: RELATÓRIO CENTRAL
A13: ↓ | B13: CÓDIGO | C13: ETAPA | D13: PREÇO (R$) C/ BDI | E13: PARTIC ( % )
A14: =IF(D14>0,"F","") ->  | B14: =Orçamento!O638 -> a. | C14: =Orçamento!P638 -> SERVIÇOS PRELIMINARES | D14: =Orçamento!V638 -> 0 | E14: =Orçamento!X638 -> 0
A15: =IF(D15>0,"F","") ->  | B15: =Orçamento!O639 -> b. | C15: =Orçamento!P639 -> TRANSPORTES | D15: =Orçamento!V639 -> 0 | E15: =Orçamento!X639 -> 0
B16: =Orçamento!O640 -> c. | C16: =Orçamento!P640 -> SERVIÇO EM TERRA | D16: =Orçamento!V640 -> 0 | E16: =Orçamento!X640 -> 0
B17: =Orçamento!O641 -> d. | C17: =Orçamento!P641 -> FUNDAÇÕES E SONDAGENS | D17: =Orçamento!V641 -> 0 | E17: =Orçamento!X641 -> 0
B18: =Orçamento!O642 -> e. | C18: =Orçamento!P642 -> ESTRUTURA | D18: =Orçamento!V642 -> 0 | E18: =Orçamento!X642 -> 0
B19: =Orçamento!O643 -> f. | C19: =Orçamento!P643 -> INSTALAÇÕES ELÉTRICAS | D19: =Orçamento!V643 -> 0 | E19: =Orçamento!X643 -> 0
B20: =Orçamento!O644 -> g. | C20: =Orçamento!P644 -> INSTALAÇÕES HIDROSSANITÁRIAS | D20: =Orçamento!V644 -> 0 | E20: =Orçamento!X644 -> 0
B21: =Orçamento!O645 -> h | C21: =Orçamento!P645 -> INSTALAÇÕES ESPECIAIS | D21: =Orçamento!V645 -> 0 | E21: =Orçamento!X645 -> 0
B22: =Orçamento!O646 -> i. | C22: =Orçamento!P646 -> ALVENARIAS E DIVISÓRIAS | D22: =Orçamento!V646 -> 0 | E22: =Orçamento!X646 -> 0
B23: =Orçamento!O647 -> j. | C23: =Orçamento!P647 -> ALVENARIA AUTO-PORTANTE | D23: =Orçamento!V647 -> 0 | E23: =Orçamento!X647 -> 0
B24: =Orçamento!O648 -> k. | C24: =Orçamento!P648 -> IMPERMEABILIZAÇÃO | D24: =Orçamento!V648 -> 0 | E24: =Orçamento!X648 -> 0
B25: =Orçamento!O649 -> l. | C25: =Orçamento!P649 -> ISOLAMENTO TÉRMICO E ACÚSTICO | D25: =Orçamento!V649 -> 0 | E25: =Orçamento!X649 -> 0
B26: =Orçamento!O650 -> m. | C26: =Orçamento!P650 -> ESTRUTURA DE MADEIRA | D26: =Orçamento!V650 -> 0 | E26: =Orçamento!X650 -> 0
B27: =Orçamento!O651 -> n. | C27: =Orçamento!P651 -> ESTRUTURAS METÁLICAS | D27: =Orçamento!V651 -> 0 | E27: =Orçamento!X651 -> 0
B28: =Orçamento!O652 -> o. | C28: =Orçamento!P652 -> COBERTURAS | D28: =Orçamento!V652 -> 0 | E28: =Orçamento!X652 -> 0
B29: =Orçamento!O653 -> p. | C29: =Orçamento!P653 -> ESQUADRIAS DE MADEIRA | D29: =Orçamento!V653 -> 0 | E29: =Orçamento!X653 -> 0
B30: =Orçamento!O654 -> q. | C30: =Orçamento!P654 -> ESQUADRIAS METÁLICAS | D30: =Orçamento!V654 -> 0 | E30: =Orçamento!X654 -> 0
B31: =Orçamento!O655 -> r. | C31: =Orçamento!P655 -> VIDROS | D31: =Orçamento!V655 -> 0 | E31: =Orçamento!X655 -> 0
B32: =Orçamento!O656 -> s. | C32: =Orçamento!P656 -> REVESTIMENTO DE PAREDE | D32: =Orçamento!V656 -> 0 | E32: =Orçamento!X656 -> 0
B33: =Orçamento!O657 -> t. | C33: =Orçamento!P657 -> FORROS | D33: =Orçamento!V657 -> 0 | E33: =Orçamento!X657 -> 0
B34: =Orçamento!O658 -> u. | C34: =Orçamento!P658 -> REVESTIMENTO DE PISO | D34: =Orçamento!V658 -> 0 | E34: =Orçamento!X658 -> 0
B35: =Orçamento!O659 -> v. | C35: =Orçamento!P659 -> FERRAGENS | D35: =Orçamento!V659 -> 0 | E35: =Orçamento!X659 -> 0
B36: =Orçamento!O660 -> w. | C36: =Orçamento!P660 -> MARCENARIA | D36: =Orçamento!V660 -> 0 | E36: =Orçamento!X660 -> 0
B37: =Orçamento!O661 -> x. | C37: =Orçamento!P661 -> ADMINISTRAÇÃO | D37: =Orçamento!V661 -> 0 | E37: =Orçamento!X661 -> 0
B38: =Orçamento!O662 -> y. | C38: =Orçamento!P662 -> PINTURA | D38: =Orçamento!V662 -> 0 | E38: =Orçamento!X662 -> 0
B39: =Orçamento!O663 -> z. | C39: =Orçamento!P663 -> DIVERSOS | D39: =Orçamento!V663 -> 0 | E39: =Orçamento!X663 -> 0
A40: F | B40: TOTAL GERAL DO ORÇAMENTO (R$) C/BDI | D40: =SUM(D14:D39) -> 0 | E40: =SUM(E14:E39) -> 0

Sheet Parc Maior Relev
B3: UNIDADE ESCOLAR | E3: CÓDIGO INEP
B4: =Orçamento!$O$4 -> COLÉGIO ESTADUAL PROFESSOR HELI ALVES FERREIRA | E4: =Orçamento!$V$4 -> 52020487
B6: OBRA | E6: CIDADE
B7: =Orçamento!$O$7 -> REFORMA E AMPLIAÇÃO | E7: =Orçamento!$V$7 -> ANÁPOLIS
B9: CRE | E9: ÁREA TOTAL CONSTRUÍDA (M²)
B10: =Orçamento!$O$10 -> ANÁPOLIS | E10: =Orçamento!$S$13 -> 1589.09
A11: FILTRO
B12: PARCELA DE MAIOR RELEVÂNCIA
B13: CÓDIGO | C13: SERVIÇO | D13: DESCRIÇÃO | E13: UNID | F13: QUANT | G13: PARC. MAIOR RELEV (100%)
A14: =IF(F14>0,"F","") -> F | B14: 70000 | C14: INSTALAÇÕES ELÉTRICAS | D14: SUBESTAÇÃO | E14: KVA | F14: 112.5 | G14: =F14 -> 112.5
B15: CÓDIGO | C15: SERVIÇO | D15: DESCRIÇÃO | E15: UNID | F15: QUANT | G15: PARC. MAIOR RELEV (50%)
A16: =IF(F16>0,"F","") -> F | B16: 160000 | C16: COBERTURAS | D16: TELHA PLAN | E16: M2 | F16: =Orçamento!T243+Orçamento!T369 -> 131.11 | G16: =F16*0.5 -> 65.555
A17: =IF(F17>0,"F","") -> F | B17: 160000 | C17: COBERTURAS | D17: TELHA ONDULADA | E17: M2 | F17: =Orçamento!T549 -> 55.42 | G17: =F17*0.5 -> 27.71
A18: F | B18: 220000 | C18: REVESTIMENTO DE PISO | D18: GRANITINA | E18: M2 | F18: =Orçamento!T256+Orçamento!T385+Orçamento!T612 -> 59.21 | G18: 29.605
A19: F
A20: F | B20: (*) Para os fins do inciso I dp § 1º do Art. 30 da Lei Federal 8.666/93, são consideradas parcelas de maior relevância técnica as execuções apresentadas
A21: F

Sheet Composições
A4: UNIDADE ESCOLAR | H4: CÓDIGO INEP
A5: =Orçamento!$O$4 -> COLÉGIO ESTADUAL PROFESSOR HELI ALVES FERREIRA | H5: =Orçamento!$V$4 -> 52020487
A7: OBRA | H7: CIDADE
A8: =Orçamento!$O$7 -> REFORMA E AMPLIAÇÃO | H8: =Orçamento!$V$7 -> ANÁPOLIS
A10: CRE | D10: ENDEREÇO | H10: REFERÊNCIA AGETOP
A11: =Orçamento!$O$10 -> ANÁPOLIS | D11: =Orçamento!$R$10 -> RUA LOPO DE SOUZA RAMOS S/N PÇA MAJOR HENRIQUE, JUNDIAI, CEP:75110-410 | H11: =Orçamento!$V$10 -> DEZ/18 | I11: =Orçamento!$W$10 -> DESONERADA
A13: DATA | D13: ÁREA TOTAL CONSTRUÍDA (M²) | H13: REFERÊNCIA SINAPI
A14: =Orçamento!$S$7 -> 2020-04-08 | D14: =Orçamento!$S$13 -> 1589.09 | H14: =Orçamento!$V$13 -> MAR/19 | I14: =Orçamento!$W$13 -> DESONERADA
A16: COMPOSIÇÕES DE CUSTOS UNITÁRIOS - SEE-GO
A17: 24 | B17: FONTE | C17: CÓDIGO | D17: DESCRIÇÃO | E17: UNIDADE | F17: COEFIC. | G17: CUSTO UNITÁRIO | I17: CUSTO TOTAL (A) + (B) + (C) + (D) + (E)
G18: DESONERADO | H18: NÃO DESONER. | I18: DESONERADO | J18: NÃO DESONER.
B19: COMPOSIÇÃO | C19: COMP 024_SEE | D19: SINALIZADOR FOTOLUMINESCENTE PARA EXTINTOR | E19: UN | G19: - | H19: - | I19: 25.27 | J19: 25.39
B20: AGETOP_I | C20: 5 | D20: SERVENTE | E20: h | F20: 0.09 | G20: 8.2 | H20: 9.51 | I20: 0.74 | J20: 0.86
G21: 0 | H21: 0 | I21: 0 | J21: 0
G22: 0 | H22: 0 | I22: 0 | J22: 0
B23: MÃO DE OBRA (B) - TOTAL | I23: 0.74 | J23: 0.86
B24: AGETOP_I | C24: 3070 | D24: BUCHA DE NYLON S-6 | E24: un | F24: 2 | G24: 0.04 | H24: 0.04 | I24: 0.08 | J24: 0.08
B25: AGETOP_I | C25: 3393 | D25: PARAFUSO P/BUCHA S-6 | E25: un | F25: 2 | G25: 0.08 | H25: 0.08 | I25: 0.16 | J25: 0.16
B26: SINAPI_I | C26: 37556 | D26: PLACA DE SINALIZACAO DE SEGURANCA CONTRA INCENDIO, FOTOLUMINESCENTE, QUADRADA, *20 X 20* CM, EM PVC *2* MM ANTI-CHAMAS (SIMBOLOS, CORES E PICTOGRAMAS CONFORME NBR 13434) | E26: UN | F26: 1 | G26: 24.29 | H26: 24.29 | I26: 24.29 | J26: 24.29
B27: MATERIAL (C) - TOTAL | I27: 24.53 | J27: 24.53
A29: 25 | B29: FONTE | C29: CÓDIGO | D29: DESCRIÇÃO | E29: UNIDADE | F29: COEFIC. | G29: CUSTO UNITÁRIO | I29: CUSTO TOTAL (A) + (B) + (C) + (D) + (E)
G30: DESONERADO | H30: NÃO DESONER. | I30: DESONERADO | J30: NÃO DESONER.
B31: COMPOSIÇÃO | C31: COMP 025_SEE | D31: SINALIZADOR FOTOLUMINESCENTE DE EMERGÊNCIA | E31: UN | G31: - | H31: - | I31: 25.27 | J31: 25.39
B32: AGETOP_I | C32: 5 | D32: SERVENTE | E32: h | F32: 0.09 | G32: 8.2 | H32: 9.51 | I32: 0.74 | J32: 0.86
B33: MÃO DE OBRA (B) - TOTAL | I33: 0.74 | J33: 0.86
B34: AGETOP_I | C34: 3070 | D34: BUCHA DE NYLON S-6 | E34: un | F34: 2 | G34: 0.04 | H34: 0.04 | I34: 0.08 | J34: 0.08
B35: AGETOP_I | C35: 3393 | D35: PARAFUSO P/BUCHA S-6 | E35: un | F35: 2 | G35: 0.08 | H35: 0.08 | I35: 0.16 | J35: 0.16
B36: SINAPI_I | C36: 37556 | D36: PLACA DE SINALIZACAO DE SEGURANCA CONTRA INCENDIO, FOTOLUMINESCENTE, QUADRADA, *20 X 20* CM, EM PVC *2* MM ANTI-CHAMAS (SIMBOLOS, CORES E PICTOGRAMAS CONFORME NBR 13434) | E36: UN | F36: 1 | G36: 24.29 | H36: 24.29 | I36: 24.29 | J36: 24.29
B37: MATERIAL (C) - TOTAL | I37: 24.53 | J37: 24.53
A39: 277 | B39: FONTE | C39: CÓDIGO | D39: DESCRIÇÃO | E39: UNIDADE | F39: COEFIC. | G39: CUSTO UNITÁRIO | I39: CUSTO TOTAL (A) + (B) + (C) + (D) + (E)
G40: DESONERADO | H40: NÃO DESONER. | I40: DESONERADO | J40: NÃO DESONER.
B41: COMPOSIÇÃO | C41: COMP 277_SEE | D41: MARCAÇÃO NO PISO - 1X1 M PARA EXTINTOR | E41: M2 | I41: 27.72 | J41: 27.8
B42: AGETOP_I | C42: 5 | D42: SERVENTE | E42: h | F42: 0.0333 | G42: 8.2 | H42: 9.51 | I42: 0.27 | J42: 0.32
G43: 0 | H43: 0 | I43: 0 | J43: 0
G44: 0 | H44: 0 | I44: 0 | J44: 0
B45: MÃO DE OBRA (B) - TOTAL | I45: 0.27 | J45: 0.32
B46: SINAPI_I | C46: 5318 | D46: SOLVENTE DILUENTE A BASE DE AGUARRAS | E46: L | F46: 0.13 | G46: 10.98 | H46: 10.98 | I46: 1.43 | J46: 1.43
B47: SINAPI | C47: 5824 | D47: CAMINHÃO TOCO, PBT 16.000 KG, CARGA ÚTIL MÁX. 10.685 KG, DIST. ENTRE EIXOS 4,8 M, POTÊNCIA 189 CV, INCLUSIVE CARROCERIA FIXA ABERTA DE MADEIRA P/ TRANSPORTE GERAL DE CARGA SECA, DIMEN. APROX. 2,5 X 7,00 X 0,50 M - CHP DIURNO. AF_06/2014 | E47: CHP | F47: 0.0033 | G47: 135.92 | H47: 139.13 | I47: 0.45 | J47: 0.46
B48: SINAPI_I | C48: 7343 | D48: TINTA A BASE DE RESINA ACRILICA, PARA SINALIZACAO HORIZONTAL VIARIA (NBR 11862) | E48: L | F48: 0.6 | G48: 11.69 | H48: 11.69 | I48: 7.01 | J48: 7.01
B49: SINAPI_I | C49: 7348 | D49: TINTA ACRILICA PREMIUM PARA PISO | E49: L | F49: 0.03 | G49: 12.39 | H49: 12.39 | I49: 0.37 | J49: 0.37
B50: SINAPI_I | C50: 25972 | D50: MICROESFERAS DE VIDRO PARA SINALIZACAO HORIZONTAL VIARIA, TIPO I-B (PREMIX) - NBR 16184 | E50: KG | F50: 2.14 | G50: 8.33 | H50: 8.33 | I50: 17.83 | J50: 17.83
B51: SINAPI | C51: 95133 | D51: MÁQUINA DEMARCADORA DE FAIXA DE TRÁFEGO À FRIO, AUTOPROPELIDA, POTÊNCIA 38 HP - CHP DIURNO. AF_07/2016 | E51: CHP | F51: 0.0033 | G51: 110.07 | H51: 113.65 | I51: 0.36 | J51: 0.38
B52: MATERIAL (C) - TOTAL | I52: 27.45 | J52: 27.48
A54: 382 | B54: FONTE | C54: CÓDIGO | D54: DESCRIÇÃO | E54: UNIDADE | F54: COEFIC. | G54: CUSTO UNITÁRIO | I54: CUSTO TOTAL (A) + (B) + (C) + (D) + (E)
G55: DESONERADO | H55: NÃO DESONER. | I55: DESONERADO | J55: NÃO DESONER.
B56: COMPOSIÇÃO | C56: COMP 382_SEE | D56: TE DE REDUCAO DE FERRO GALVANIZADO, COM ROSCA BSP, DE 3/4" X 1/2" | E56: UN | I56: 21.83 | J56: 23.92
B57: AGETOP_I | C57: 8 | D57: AJUDANTE | E57: h | F57: 0.6 | G57: 8.2 | H57: 9.51 | I57: 4.92 | J57: 5.71
B58: AGETOP_I | C58: 11 | D58: ENCANADOR | E58: h | F58: 0.6105 | G58: 13.4 | H58: 15.53 | I58: 8.18 | J58: 9.48
G59: 0 | H59: 0 | I59: 0 | J59: 0
B60: MÃO DE OBRA (B) - TOTAL | I60: 13.1 | J60: 15.19
B61: SINAPI_I | C61: 3146 | D61: FITA VEDA ROSCA EM ROLOS DE 18 MM X 10 M (L X C) | E61: UN | F61: 0.120754717 | G61: 3.5 | H61: 3.5 | I61: 0.42 | J61: 0.42
B62: SINAPI_I | C62: 6302 | D62: TE DE REDUCAO DE FERRO GALVANIZADO, COM ROSCA BSP, DE 3/4" X 1/2" | E62: UN | F62: 1 | G62: 8.31 | H62: 8.31 | I62: 8.31 | J62: 8.31
G63: 0 | H63: 0 | I63: 0 | J63: 0
B64: MATERIAL (C) - TOTAL | I64: 8.73 | J64: 8.73
A66: 383 | B66: FONTE | C66: CÓDIGO | D66: DESCRIÇÃO | E66: UNIDADE | F66: COEFIC. | G66: CUSTO UNITÁRIO | I66: CUSTO TOTAL (A) + (B) + (C) + (D) + (E)
G67: DESONERADO | H67: NÃO DESONER. | I67: DESONERADO | J67: NÃO DESONER.
B68: COMPOSIÇÃO | C68: COMP 383_SEE | D68: BUCHA DE REDUCAO DE FERRO GALVANIZADO, COM ROSCA BSP, DE 1/2" X 1/4" | E68: UN | I68: 6.85 | J68: 7.4
B69: AGETOP_I | C69: 8 | D69: AJUDANTE | E69: h | F69: 0.16 | G69: 8.2 | H69: 9.51 | I69: 1.31 | J69: 1.52
B70: AGETOP_I | C70: 11 | D70: ENCANADOR | E70: h | F70: 0.16 | G70: 13.4 | H70: 15.53 | I70: 2.14 | J70: 2.48
G71: 0 | H71: 0 | I71: 0 | J71: 0
B72: MÃO DE OBRA (B) - TOTAL | I72: 3.45 | J72: 4
B73: AGETOP_I | C73: H689 | D73: FITA VEDAROSCA 12 MM | E73: m | F73: 1.2 | G73: 0.28 | H73: 0.28 | I73: 0.34 | J73: 0.34
B74: SINAPI_I | C74: 770 | D74: BUCHA DE REDUCAO DE FERRO GALVANIZADO, COM ROSCA BSP, DE 1/2" X 1/4" | E74: UN | F74: 1 | G74: 3.06 | H74: 3.06 | I74: 3.06 | J74: 3.06
G75: 0 | H75: 0 | I75: 0 | J75: 0
B76: MATERIAL (C) - TOTAL | I76: 3.4 | J76: 3.4
A78: 212 | B78: FONTE | C78: CÓDIGO | D78: DESCRIÇÃO | E78: UNIDADE | F78: COEFIC. | G78: CUSTO UNITÁRIO | I78: CUSTO TOTAL (A) + (B) + (C) + (D) + (E)
G79: DESONERADO | H79: NÃO DESONER. | I79: DESONERADO | J79: NÃO DESONER.
B80: COMPOSIÇÃO | C80: COMP 212_SEE | D80: NIPLE DE REDUÇÃO 1/2" X 1/4" BSP | E80: UN | I80: 9.5 | J80: 10.05
B81: AGETOP_I | C81: 8 | D81: AJUDANTE | E81: h | F81: 0.16 | G81: 8.2 | H81: 9.51 | I81: 1.31 | J81: 1.52
B82: AGETOP_I | C82: 11 | D82: ENCANADOR | E82: h | F82: 0.16 | G82: 13.4 | H82: 15.53 | I82: 2.14 | J82: 2.48
G83: 0 | H83: 0 | I83: 0 | J83: 0
B84: MÃO DE OBRA (B) - TOTAL | I84: 3.45 | J84: 4
B85: COTAÇÃO | C85: COT 103_SEE | D85: NIPLE DE REDUÇÃO 1/2" X 1/4" BSP | E85: UN | F85: 1 | G85: 6.053333333 | H85: 6.053333333 | I85: 6.05 | J85: 6.05
G86: 0 | H86: 0 | I86: 0 | J86: 0
G87: 0 | H87: 0 | I87: 0 | J87: 0
B88: MATERIAL (C) - TOTAL | I88: 6.05 | J88: 6.05
A90: 213 | B90: FONTE | C90: CÓDIGO | D90: DESCRIÇÃO | E90: UNIDADE | F90: COEFIC. | G90: CUSTO UNITÁRIO | I90: CUSTO TOTAL (A) + (B) + (C) + (D) + (E)
G91: DESONERADO | H91: NÃO DESONER. | I91: DESONERADO | J91: NÃO DESONER.
B92: COMPOSIÇÃO | C92: COMP 213_SEE | D92: NIPLE DE REDUÇÃO 3/4" X 1/2" BSP | E92: UN | I92: 13.16 | J92: 13.71
B93: AGETOP_I | C93: 8 | D93: AJUDANTE | E93: h | F93: 0.16 | G93: 8.2 | H93: 9.51 | I93: 1.31 | J93: 1.52
B94: AGETOP_I | C94: 11 | D94: ENCANADOR | E94: h | F94: 0.16 | G94: 13.4 | H94: 15.53 | I94: 2.14 | J94: 2.48
G95: 0 | H95: 0 | I95: 0 | J95: 0
B96: MÃO DE OBRA (B) - TOTAL | I96: 3.45 | J96: 4
B97: COTAÇÃO | C97: COT 104_SEE | D97: NIPLE DE REDUÇÃO 3/4" X 1/2" BSP | E97: UN | F97: 1 | G97: 9.71 | H97: 9.71 | I97: 9.71 | J97: 9.71
G98: 0 | H98: 0 | I98: 0 | J98: 0
G99: 0 | H99: 0 | I99: 0 | J99: 0
B100: MATERIAL (C) - TOTAL | I100: 9.71 | J100: 9.71
A102: 210 | B102: FONTE | C102: CÓDIGO | D102: DESCRIÇÃO | E102: UNIDADE | F102: COEFIC. | G102: CUSTO UNITÁRIO | I102: CUSTO TOTAL (A) + (B) + (C) + (D) + (E)
G103: DESONERADO | H103: NÃO DESONER. | I103: DESONERADO | J103: NÃO DESONER.
B104: COMPOSIÇÃO | C104: COMP 210_SEE | D104: REGULADOR DE 1º ESTÁGIO 60KG/H MODELO AP-40 COM MANÔMETRO | E104: UN | I104: 231.21 | J104: 235.17
B105: AGETOP_I | C105: 8 | D105: AJUDANTE | E105: h | F105: 1.15 | G105: 8.2 | H105: 9.51 | I105: 9.43 | J105: 10.94
B106: AGETOP_I | C106: 11 | D106: ENCANADOR | E106: h | F106: 1.15 | G106: 13.4 | H106: 15.53 | I106: 15.41 | J106: 17.86
G107: 0 | H107: 0 | I107: 0 | J107: 0
B108: MÃO DE OBRA (B) - TOTAL | I108: 24.84 | J108: 28.8
B109: COTAÇÃO | C109: COT 101_SEE | D109: REGULADOR DE 1º ESTÁGIO 60KG/H MODELO AP-40 COM MANÔMETRO | E109: UN | F109: 1 | G109: 205.5766667 | H109: 205.5766667 | I109: 205.58 | J109: 205.58
B110: AGETOP_I | C110: H689 | D110: FITA VEDAROSCA 12 MM | E110: m | F110: 2.82 | G110: 0.28 | H110: 0.28 | I110: 0.79 | J110: 0.79
G111: 0 | H111: 0 | I111: 0 | J111: 0
B112: MATERIAL (C) - TOTAL | I112: 206.37 | J112: 206.37
A114: 235 | B114: FONTE | C114: CÓDIGO | D114: DESCRIÇÃO | E114: UNIDADE | F114: COEFIC. | G114: CUSTO UNITÁRIO | I114: CUSTO TOTAL (A) + (B) + (C) + (D) + (E)
G115: DESONERADO | H115: NÃO DESONER. | I115: DESONERADO | J115: NÃO DESONER.
B116: COMPOSIÇÃO | C116: COMP 235_SEE | D116: PLACA DE SINALIZAÇÃO EM PVC COD 01 - (300X300) PROIBIDO FUMAR | E116: UN | I116: 25.27 | J116: 25.39
B117: AGETOP_I | C117: 5 | D117: SERVENTE | E117: h | F117: 0.09 | G117: 8.2 | H117: 9.51 | I117: 0.74 | J117: 0.86
G118: 0 | H118: 0 | I118: 0 | J118: 0
G119: 0 | H119: 0 | I119: 0 | J119: 0
B120: MÃO DE OBRA (B) - TOTAL | I120: 0.74 | J120: 0.86
B121: AGETOP_I | C121: 3070 | D121: BUCHA DE NYLON S-6 | E121: un | F121: 2 | G121: 0.04 | H121: 0.04 | I121: 0.08 | J121: 0.08
B122: AGETOP_I | C122: 3393 | D122: PARAFUSO P/BUCHA S-6 | E122: un | F122: 2 | G122: 0.08 | H122: 0.08 | I122: 0.16 | J122: 0.16
B123: SINAPI_I | C123: 37556 | D123: PLACA DE SINALIZACAO DE SEGURANCA CONTRA INCENDIO, FOTOLUMINESCENTE, QUADRADA, *20 X 20* CM, EM PVC *2* MM ANTI-CHAMAS (SIMBOLOS, CORES E PICTOGRAMAS CONFORME NBR 13434) | E123: UN | F123: 1 | G123: 24.29 | H123: 24.29 | I123: 24.29 | J123: 24.29
B124: MATERIAL (C) - TOTAL | I124: 24.53 | J124: 24.53
A126: 236 | B126: FONTE | C126: CÓDIGO | D126: DESCRIÇÃO | E126: UNIDADE | F126: COEFIC. | G126: CUSTO UNITÁRIO | I126: CUSTO TOTAL (A) + (B) + (C) + (D) + (E)
G127: DESONERADO | H127: NÃO DESONER. | I127: DESONERADO | J127: NÃO DESONER.
B128: COMPOSIÇÃO | C128: COMP 236_SEE | D128: PLACA DE SINALIZAÇÃO EM PVC COD 06 - (300X300) PERIGO INFLAMÁVEL | E128: UN | I128: 25.27 | J128: 25.39
B129: AGETOP_I | C129: 5 | D129: SERVENTE | E129: h | F129: 0.09 | G129: 8.2 | H129: 9.51 | I129: 0.74 | J129: 0.86
G130: 0 | H130: 0 | I130: 0 | J130: 0
G131: 0 | H131: 0 | I131: 0 | J131: 0
B132: MÃO DE OBRA (B) - TOTAL | I132: 0.74 | J132: 0.86
B133: AGETOP_I | C133: 3070 | D133: BUCHA DE NYLON S-6 | E133: un | F133: 2 | G133: 0.04 | H133: 0.04 | I133: 0.08 | J133: 0.08
B134: AGETOP_I | C134: 3393 | D134: PARAFUSO P/BUCHA S-6 | E134: un | F134: 2 | G134: 0.08 | H134: 0.08 | I134: 0.16 | J134: 0.16
B135: SINAPI_I | C135: 37556 | D135: PLACA DE SINALIZACAO DE SEGURANCA CONTRA INCENDIO, FOTOLUMINESCENTE, QUADRADA, *20 X 20* CM, EM PVC *2* MM ANTI-CHAMAS (SIMBOLOS, CORES E PICTOGRAMAS CONFORME NBR 13434) | E135: UN | F135: 1 | G135: 24.29 | H135: 24.29 | I135: 24.29 | J135: 24.29
B136: MATERIAL (C) - TOTAL | I136: 24.53 | J136: 24.53
A138: 334 | B138: FONTE | C138: CÓDIGO | D138: DESCRIÇÃO | E138: UNIDADE | F138: COEFIC. | G138: CUSTO UNITÁRIO | I138: CUSTO TOTAL (A) + (B) + (C) + (D) + (E)
G139: DESONERADO | H139: NÃO DESONER. | I139: DESONERADO | J139: NÃO DESONER.
B140: COMPOSIÇÃO | C140: COMP 334_SEE | D140: ALVENARIA DE BLOCO DE CONCRETO ESTRUTURAL 14X19X39, FBK 4,5MPA | E140: M2 | I140: 60.5 | J140: 63.4
B141: AGETOP_I | C141: 4 | D141: PEDREIRO | E141: h | F141: 0.86 | G141: 13.4 | H141: 15.53 | I141: 11.52 | J141: 13.36
B142: AGETOP_I | C142: 5 | D142: SERVENTE | E142: h | F142: 0.65 | G142: 8.2 | H142: 9.51 | I142: 5.33 | J142: 6.18
G143: 0 | H143: 0 | I143: 0 | J143: 0
B144: MÃO DE OBRA (B) - TOTAL | I144: 16.85 | J144: 19.54
B145: SINAPI | C145: 88715 | D145: ARGAMASSA TRAÇO 1:2:9 (CIMENTO, CAL E AREIA MÉDIA) PARA EMBOÇO/MASSA ÚNICA/ASSENTAMENTO DE ALVENARIA DE VEDAÇÃO, PREPARO MECÂNICO COM BETONEIRA 400 L. AF_09/2014 | E145: M3 | F145: 0.0164 | G145: 383.52 | H145: 396.23 | I145: 6.29 | J145: 6.5
B146: SINAPI_I | C146: 25070 | D146: BLOCO CONCRETO ESTRUTURAL 14 X 19 X 39 CM, FBK 4,5 MPA (NBR 6136) | E146: UN | F146: 9.53 | G146: 2.49 | H146: 2.49 | I146: 23.73 | J146: 23.73
B147: SINAPI_I | C147: 34547 | D147: TELA DE ACO SOLDADA GALVANIZADA/ZINCADA PARA ALVENARIA, FIO D = *1,20 A 1,70* MM, MALHA 15 X 15 MM, (C X L) *50 X 12* CM | E147: M | F147: 0.395 | G147: 2.23 | H147: 2.23 | I147: 0.88 | J147: 0.88
B148: SINAPI_I | C148: 38594 | D148: MEIO BLOCO CONCRETO ESTRUTURAL 14 X 19 X 34 CM, FBK 14 MPA (NBR 6136) | E148: UN | F148: 1.47 | G148: 3.15 | H148: 3.15 | I148: 4.63 | J148: 4.63
B149: SINAPI_I | C149: 38591 | D149: BLOCO CONCRETO ESTRUTURAL 14 X 19 X 34 CM, FBK 4,5 MPA (NBR 6136) | E149: UN | F149: 0.73 | G149: 2.46 | H149: 2.46 | I149: 1.8 | J149: 1.8
B150: SINAPI_I | C150: 38595 | D150: MEIA CANALETA CONCRETO ESTRUTURAL 14 X 19 X 19 CM, FBK 4,5 MPA (NBR 6136) | E150: UN | F150: 0.12 | G150: 1.51 | H150: 1.51 | I150: 0.18 | J150: 0.18
B151: SINAPI_I | C151: 38597 | D151: CANALETA CONCRETO ESTRUTURAL 14 X 19 X 39 CM, FBK 4,5 MPA (NBR 6136) | E151: UN | F151: 2.2 | G151: 2.79 | H151: 2.79 | I151: 6.14 | J151: 6.14
B152: MATERIAL (C) - TOTAL | I152: 43.65 | J152: 43.86
A154: 7 | B154: FONTE | C154: CÓDIGO | D154: DESCRIÇÃO | E154: UNIDADE | F154: COEFIC. | G154: CUSTO UNITÁRIO | I154: CUSTO TOTAL (A) + (B) + (C) + (D) + (E)
G155: DESONERADO | H155: NÃO DESONER. | I155: DESONERADO | J155: NÃO DESONER.
B156: COMPOSIÇÃO | C156: COMP 007_SEE | D156: GUICHÊ CANTONEIRA/GRADE PARA VIDRO | E156: M² | F156: - | G156: - | H156: - | I156: 227.51 | J156: 234.15
B157: AGETOP_I | C157: 4 | D157: PEDREIRO | E157: h | F157: 2.5 | G157: 13.4 | H157: 15.53 | I157: 33.5 | J157: 38.83
B158: AGETOP_I | C158: 5 | D158: SERVENTE | E158: h | F158: 1 | G158: 8.2 | H158: 9.51 | I158: 8.2 | J158: 9.51
B159: MÃO DE OBRA (B) - TOTAL | I159: 41.7 | J159: 48.34
B160: AGETOP_I | C160: 104 | D160: AREIA MEDIA | E160: m3 | F160: 0.0097 | G160: 82.85 | H160: 82.85 | I160: 0.8 | J160: 0.8
B161: AGETOP_I | C161: 1221 | D161: CAL HIDRATADA | E161: Kg | F161: 0.73 | G161: 0.54 | H161: 0.54 | I161: 0.39 | J161: 0.39
B162: AGETOP_I | C162: 1215 | D162: CIMENTO PORTLAND C.P. 32 | E162: Kg | F162: 2.67 | G162: 0.39 | H162: 0.39 | I162: 1.04 | J162: 1.04
B163: AGETOP_I | C163: 2470 | D163: FERRO CANTONEIRA 1/8" X 7/8" | E163: Kg | F163: 3.5478 | G163: 4.39 | H163: 4.39 | I163: 15.57 | J163: 15.57
B164: AGETOP_I | C164: 2423 | D164: FERRO CANTONEIRA 1/8" X 3/4" | E164: Kg | F164: 7.939 | G164: 4.87 | H164: 4.87 | I164: 38.66 | J164: 38.66
B165: AGETOP_I | C165: 2372 | D165: CHAPA PERFILADA No. 18 | E165: Kg | F165: 13.3206 | G165: 5.42 | H165: 5.42 | I165: 72.2 | J165: 72.2
B166: SINAPI_I | C166: 11552 | D166: PERFIL U / CANALETA DE ALUMINIO, DE ABAS IGUAIS, 1/2" (1,27 X 1,27 CM), PARA PORTA OU JANELA DE CORRER | E166: M | F166: 1.306 | G166: 7.72 | H166: 7.72 | I166: 10.08 | J166: 10.08
B167: AGETOP_I | C167: 2898 | D167: FABRICAÇÃO / MONTAGEM | E167: un | F167: 1 | G167: 36.73 | H167: 36.73 | I167: 36.73 | J167: 36.73
B168: AGETOP_I | C168: 2529 | D168: FECHO FIO REDONDO 4" ZINCADO C/PARAFUSO DA SOPRANO OU EQUIVALENTE | E168: un | F168: 2 | G168: 5.17 | H168: 5.17 | I168: 10.34 | J168: 10.34
B169: MATERIAL (C) - TOTAL | I169: 185.81 | J169: 185.81
A171: 84 | B171: FONTE | C171: CÓDIGO | D171: DESCRIÇÃO | E171: UNIDADE | F171: COEFIC. | G171: CUSTO UNITÁRIO | I171: CUSTO TOTAL (A) + (B) + (C) + (D) + (E)
G172: DESONERADO | H172: NÃO DESONER. | I172: DESONERADO | J172: NÃO DESONER.
B173: COMPOSIÇÃO | C173: COMP 084_SEE | D173: GUARDA-CORPO COM CORRIMÃO - SEDUC | E173: M | I173: 204.6 | J173: 209.46
B174: AGETOP_I | C174: 25 | D174: OFICIAL "B" | E174: h | F174: 1.1 | G174: 13.4 | H174: 15.53 | I174: 14.74 | J174: 17.08
B175: AGETOP_I | C175: 8 | D175: AJUDANTE | E175: h | F175: 1.1 | G175: 8.2 | H175: 9.51 | I175: 9.02 | J175: 10.46
G176: 0 | H176: 0 | I176: 0 | J176: 0
B177: MÃO DE OBRA (B) - TOTAL | I177: 23.76 | J177: 27.54
B178: AGETOP_I | C178: 2376 | D178: TUBO INDUSTRIAL 2" CHAPA 13 | E178: Kg | F178: 7.7778 | G178: 5.23 | H178: 5.23 | I178: 40.68 | J178: 40.68
B179: AGETOP_I | C179: 2504 | D179: TUBO INDUSTRIAL D=25 MM CHAPA 13 | E179: Kg | F179: 4.632 | G179: 5.07 | H179: 5.07 | I179: 23.48 | J179: 23.48
B180: AGETOP_I | C180: 2377 | D180: TUBO INDUSTRIAL 40X40 CH.13 | E180: Kg | F180: 6.342 | G180: 5.07 | H180: 5.07 | I180: 32.15 | J180: 32.15
B181: AGETOP_I | C181: 2421 | D181: TUBO INDUSTRIAL 1.1/2" CHAPA 13 | E181: Kg | F181: 1.4862 | G181: 5.07 | H181: 5.07 | I181: 7.54 | J181: 7.54
B182: AGETOP_I | C182: 2417 | D182: MASSA PLASTICA | E182: Kg | F182: 0.2041 | G182: 10.58 | H182: 10.58 | I182: 2.16 | J182: 2.16
B183: AGETOP_I | C183: 2246 | D183: ELETRODO 2.5 OK | E183: Kg | F183: 0.1146 | G183: 8.7 | H183: 8.7 | I183: 1 | J183: 1
B184: AGETOP_I | C184: 1672 | D184: LIXA PARA FERRO ( NÚMERO 100 ) | E184: un | F184: 0.2551 | G184: 2.12 | H184: 2.12 | I184: 0.54 | J184: 0.54
B185: AGETOP_I | C185: 1264 | D185: DISCO DE DESBASTE 7/8" P/ CONC./FERRO (1/4" X 7") | E185: un | F185: 0.051 | G185: 7 | H185: 7 | I185: 0.36 | J185: 0.36
B186: AGETOP_I | C186: 1334 | D186: DISCO DE CORTE DIAM. 5/8"- 10" | E186: un | F186: 0.373 | G186: 5.5 | H186: 5.5 | I186: 2.05 | J186: 2.05
B187: AGETOP_I | C187: 2902 | D187: FABRICAÇÃO / MONTAGEM | E187: un | F187: 1 | G187: 50.44 | H187: 50.44 | I187: 50.44 | J187: 50.44
B188: AGETOP_I | C188: 2150 | D188: CHAPA DE FERRO DOBRADA No.13 | E188: Kg | F188: 0.4352 | G188: 5.28 | H188: 5.28 | I188: 2.3 | J188: 2.3
B189: AGETOP_I | C189: 2719 | D189: CHAPA PERFILADA 3/16" | E189: Kg | F189: 1.098 | G189: 5.04 | H189: 5.04 | I189: 5.53 | J189: 5.53
B190: AGETOP_I | C190: 2436 | D190: ACO CA-25 - 6,3 MM (1/4") - BARRA LISA A-36 | E190: Kg | F190: 0.38125 | G190: 5.13 | H190: 5.13 | I190: 1.96 | J190: 1.96
B191: AGETOP | C191: 261602 | D191: PINT.ESMALTE/ESQUAD.FERRO C/FUNDO ANTICOR. | E191: m2 | F191: 0.78 | G191: 13.65 | H191: 15.04 | I191: 10.65 | J191: 11.73
B192: MATERIAL (C) - TOTAL | I192: 180.84 | J192: 181.92
A194: 387 | B194: FONTE | C194: CÓDIGO | D194: DESCRIÇÃO | E194: UNIDADE | F194: COEFIC. | G194: CUSTO UNITÁRIO | I194: CUSTO TOTAL (A) + (B) + (C) + (D) + (E)
G195: DESONERADO | H195: NÃO DESONER. | I195: DESONERADO | J195: NÃO DESONER.
B196: COMPOSIÇÃO | C196: COMP 387_SEE | D196: LÂMPADA LED TUBULAR 18W | E196: UN | I196: 22.28 | J196: 22.33
B197: AGETOP_I | C197: 8 | D197: AJUDANTE | E197: h | F197: 0.015 | G197: 8.2 | H197: 9.51 | I197: 0.12 | J197: 0.14
B198: AGETOP_I | C198: 12 | D198: ELETRICISTA | E198: h | F198: 0.015 | G198: 13.4 | H198: 15.53 | I198: 0.2 | J198: 0.23
G199: 0 | H199: 0 | I199: 0 | J199: 0
B200: MÃO DE OBRA (B) - TOTAL | I200: 0.32 | J200: 0.37
B201: COTAÇÃO | C201: COT 195_SEE | D201: LÂMPADA LED TUBULAR 18W | E201: UN | F201: 1 | G201: 21.96 | H201: 21.96 | I201: 21.96 | J201: 21.96
G202: 0 | H202: 0 | I202: 0 | J202: 0
G203: 0 | H203: 0 | I203: 0 | J203: 0
B204: MATERIAL (C) - TOTAL | I204: 21.96 | J204: 21.96
A206: 554 | B206: FONTE | C206: CÓDIGO | D206: DESCRIÇÃO | E206: UNID | F206: COEFIC. | G206: CUSTO UNITÁRIO | I206: CUSTO TOTAL (A) + (B) + (C) + (D) + (E)
G207: DESONERADO | H207: NÃO DESONER. | I207: DESONERADO | J207: NÃO DESONER.
B208: COMPOSIÇÃO | C208: COMP 554_SEE | D208: CAIXA DE DECANTAÇÃO | E208: UN | F208: - | G208: - | H208: - | I208: 684.7 | J208: 727.93
B209: AGETOP | C209: 81840 | D209: TAMPA PARA CAIXA PASSAGEM FERRO FUNDIDO T-33 - TRÁFEGO LEVE | E209: Un | F209: 1 | G209: 113.84 | H209: 116.18 | I209: 113.84 | J209: 116.18
B210: AGETOP | C210: 81938 | D210: JOELHO 90 GRAUS DIAMETRO 100 MM | E210: Un | F210: 1 | G210: 15.13 | H210: 16.68 | I210: 15.13 | J210: 16.68
B211: AGETOP | C211: 82235 | D211: TE SANITARIO DIAMETRO 100 X 100 MM | E211: Un | F211: 1 | G211: 24.94 | H211: 26.52 | I211: 24.94 | J211: 26.52
B212: AGETOP | C212: 82304 | D212: TUBO SOLDAVEL P/ESGOTO DIAM. 100 MM | E212: m | F212: 3 | G212: 20.45 | H212: 22.25 | I212: 61.35 | J212: 66.75
B213: AGETOP | C213: 100102 | D213: ALVENARIA DE TIJOLO COMUM 1/2 VEZ - ARG. (1CI : 2CH : 8ARML) | E213: m2 | F213: 8 | G213: 56.53 | H213: 60.45 | I213: 452.24 | J213: 483.6
B214: AGETOP | C214: 220050 | D214: LASTRO DE CONCRETO REGULARIZADO SEM IMPERMEAB. 1:3:6 ESP= 5CM (BASE) | E214: m2 | F214: 1 | G214: 17.2 | H214: 18.2 | I214: 17.2 | J214: 18.2
B215: MÃO DE OBRA (B) - TOTAL | I215: 684.7 | J215: 727.93
G216: 0 | H216: 0 | I216: 0 | J216: 0
G217: 0 | H217: 0 | I217: 0 | J217: 0
G218: 0 | H218: 0 | I218: 0 | J218: 0
B219: MATERIAL (C) - TOTAL | I219: 0 | J219: 0
A221: 541 | B221: FONTE | C221: CÓDIGO | D221: DESCRIÇÃO | E221: UNIDADE | F221: COEFIC. | G221: CUSTO UNITÁRIO | I221: CUSTO TOTAL (A) + (B) + (C) + (D) + (E)
G222: DESONERADO | H222: NÃO DESONER. | I222: DESONERADO | J222: NÃO DESONER.
... 55 more rows

Sheet Cotações
A4: UNIDADE ESCOLAR | H4: CÓDIGO INEP
A5: =Orçamento!$O$4 -> COLÉGIO ESTADUAL PROFESSOR HELI ALVES FERREIRA | H5: =Orçamento!$V$4 -> 52020487
A7: OBRA | H7: CIDADE
A8: =Orçamento!$O$7 -> REFORMA E AMPLIAÇÃO | H8: =Orçamento!$V$7 -> ANÁPOLIS
A10: CRE | D10: ENDEREÇO | H10: REFERÊNCIA AGETOP
A11: =Orçamento!$O$10 -> ANÁPOLIS | D11: =Orçamento!$R$10 -> RUA LOPO DE SOUZA RAMOS S/N PÇA MAJOR HENRIQUE, JUNDIAI, CEP:75110-410 | H11: =Orçamento!$V$10 -> DEZ/18 | I11: =Orçamento!$W$10 -> DESONERADA
A13: DATA | D13: ÁREA TOTAL CONSTRUÍDA (M²) | H13: REFERÊNCIA SINAPI
A14: =Orçamento!$S$7 -> 2020-04-08 | D14: =Orçamento!$S$13 -> 1589.09 | H14: =Orçamento!$V$13 -> MAR/19 | I14: =Orçamento!$W$13 -> DESONERADA
A16: COTAÇÕES DE PREÇOS - SEE-GO
B17: FONTE | C17: CÓDIGO | D17: DESCRIÇÃO | E17: UNIDADE | F17: MÉDIA | H17: ÍNDICE RETROAÇÃO
F18: DESONERADA | G18: ONERADA
A19: 103 | B19: COTAÇÃO | C19: COT 103_SEE | D19: NIPLE DE REDUÇÃO 1/2" X 1/4" BSP | E19: UN | F19: 6.053333333 | G19: 6.053333333
C20: EMPRESA | D20: NOME DA EMPRESA | F20: COTAÇÕES | H20: DATA COTAÇÃO
C21: E070 - FOCO R... | D21: FOCO REPRESENTAÇÃO E CONSULTORIA LTDA-ME | F21: 4.46 | G21: 4.46 | H21: 12/02/2019
C22: E071 - CASA D... | D22: CASA DAS PEÇAS COM E INDUSTRIA DE FOGOES LTDA | F22: 3.9 | G22: 3.9 | H22: 11/02/2019
C23: E072 - AMIG I... | D23: AMIG INSTALAÇÃO DE REDE DE GÁS E INCÊNDIO | F23: 9.8 | G23: 9.8 | H23: 08/02/2019
C26: OBSERVAÇÕES:
B28: FONTE | C28: CÓDIGO | D28: DESCRIÇÃO | E28: UNIDADE | F28: MÉDIA | H28: ÍNDICE RETROAÇÃO
F29: DESONERADA | G29: ONERADA
A30: 104 | B30: COTAÇÃO | C30: COT 104_SEE | D30: NIPLE DE REDUÇÃO 3/4" X 1/2" BSP | E30: UN | F30: 9.71 | G30: 9.71
C31: EMPRESA | D31: NOME DA EMPRESA | F31: COTAÇÕES | H31: DATA COTAÇÃO
C32: E070 - FOCO R... | D32: FOCO REPRESENTAÇÃO E CONSULTORIA LTDA-ME | F32: 10.93 | G32: 10.93 | H32: 12/02/2019
C33: E071 - CASA D... | D33: CASA DAS PEÇAS COM E INDUSTRIA DE FOGOES LTDA | F33: 5.5 | G33: 5.5 | H33: 11/02/2019
C34: E072 - AMIG I... | D34: AMIG INSTALAÇÃO DE REDE DE GÁS E INCÊNDIO | F34: 12.7 | G34: 12.7 | H34: 08/02/2019
C37: OBSERVAÇÕES:
B39: FONTE | C39: CÓDIGO | D39: DESCRIÇÃO | E39: UNIDADE | F39: MÉDIA | H39: ÍNDICE RETROAÇÃO
F40: DESONERADA | G40: ONERADA
A41: 101 | B41: COTAÇÃO | C41: COT 101_SEE | D41: REGULADOR DE 1º ESTÁGIO 60KG/H MODELO AP-40 COM MANÔMETRO | E41: UN | F41: 205.5766667 | G41: 205.5766667
C42: EMPRESA | D42: NOME DA EMPRESA | F42: COTAÇÕES | H42: DATA COTAÇÃO
C43: E070 - FOCO R... | D43: FOCO REPRESENTAÇÃO E CONSULTORIA LTDA-ME | F43: 148.73 | G43: 148.73 | H43: 12/02/2019
C44: E071 - CASA D... | D44: CASA DAS PEÇAS COM E INDUSTRIA DE FOGOES LTDA | F44: 198 | G44: 198 | H44: 11/02/2019
C45: E072 - AMIG I... | D45: AMIG INSTALAÇÃO DE REDE DE GÁS E INCÊNDIO | F45: 270 | G45: 270 | H45: 08/02/2019
C48: OBSERVAÇÕES:
B50: FONTE | C50: CÓDIGO | D50: DESCRIÇÃO | E50: UNIDADE | F50: MÉDIA | H50: ÍNDICE RETROAÇÃO
F51: DESONERADA | G51: ONERADA
A52: 195 | B52: COTAÇÃO | C52: COT 195_SEE | D52: LÂMPADA LED TUBULAR 18W | E52: UN | F52: 21.96 | G52: 21.96
C53: EMPRESA | D53: NOME DA EMPRESA | F53: COTAÇÕES | H53: DATA COTAÇÃO
C54: E030 - AJEL M... | D54: AJEL MATERIAIS ELÉTRICOS | F54: 19.89 | G54: 19.89
C55: E013 - ELETRO... | D55: ELETROTRANSOL | F55: 25.99 | G55: 25.99
C56: E014 - MAKRO ... | D56: MAKRO SERVICE | F56: 20 | G56: 20
C59: OBSERVAÇÕES:
B61: FONTE | C61: CÓDIGO | D61: DESCRIÇÃO | E61: UNIDADE | F61: MÉDIA | H61: ÍNDICE RETROAÇÃO
F62: DESONERADA | G62: ONERADA
A63: 10 | B63: COTAÇÃO | C63: =CONCATENATE("COT ",TEXT(A63,"000"),"_SEE") -> COT 010_SEE | D63: CAPUZ PARA PROTEÇÃO DOS PARA RAIOS | E63: UN | F63: =IFERROR(AVERAGE(F65:F69),0) -> 15.81 | G63: =IFERROR(AVERAGE(G65:G69),0) -> 15.81
C64: EMPRESA | D64: NOME DA EMPRESA | F64: COTAÇÕES | H64: DATA COTAÇÃO
C65: E013 - ELETRO... | D65: ELETROTRANSOL | F65: 15.81 | G65: 15.81 | H65: 06/02/2019
D66: =IF(C66<>"",VLOOKUP(C66,EMPRESAS,3,FALSE),"") -> 
D67: =IF(C67<>"",VLOOKUP(C67,EMPRESAS,3,FALSE),"") -> 
D68: =IF(C68<>"",VLOOKUP(C68,EMPRESAS,3,FALSE),"") -> 
D69: =IF(C69<>"",VLOOKUP(C69,EMPRESAS,3,FALSE),"") -> 
C70: OBSERVAÇÕES:
B72: FONTE | C72: CÓDIGO | D72: DESCRIÇÃO | E72: UNIDADE | F72: MÉDIA | H72: ÍNDICE RETROAÇÃO
F73: DESONERADA | G73: ONERADA
A74: 11 | B74: COTAÇÃO | C74: =CONCATENATE("COT ",TEXT(A74,"000"),"_SEE") -> COT 011_SEE | D74: CAPUZ DE PROTEÇÃO PARA BUCHA DE TRANSFORMADOR | E74: UN | F74: =IFERROR(AVERAGE(F76:F80),0) -> 15.81 | G74: =IFERROR(AVERAGE(G76:G80),0) -> 15.81
C75: EMPRESA | D75: NOME DA EMPRESA | F75: COTAÇÕES | H75: DATA COTAÇÃO
C76: E013 - ELETRO... | D76: ELETROTRANSOL | F76: 15.81 | G76: 15.81 | H76: 06/02/2019
D77: =IF(C77<>"",VLOOKUP(C77,EMPRESAS,3,FALSE),"") -> 
D78: =IF(C78<>"",VLOOKUP(C78,EMPRESAS,3,FALSE),"") -> 
D79: =IF(C79<>"",VLOOKUP(C79,EMPRESAS,3,FALSE),"") -> 
D80: =IF(C80<>"",VLOOKUP(C80,EMPRESAS,3,FALSE),"") -> 
C81: OBSERVAÇÕES:
B83: FONTE | C83: CÓDIGO | D83: DESCRIÇÃO | E83: UNIDADE | F83: MÉDIA | H83: ÍNDICE RETROAÇÃO
F84: DESONERADA | G84: ONERADA
A85: 12 | B85: COTAÇÃO | C85: =CONCATENATE("COT ",TEXT(A85,"000"),"_SEE") -> COT 012_SEE | D85: HASTE ROSQUEADA "TIRANTE" 3/8" | E85: M | F85: =IFERROR(AVERAGE(F87:F91),0) -> 5.383333333 | G85: =IFERROR(AVERAGE(G87:G91),0) -> 5.383333333
C86: EMPRESA | D86: NOME DA EMPRESA | F86: COTAÇÕES | H86: DATA COTAÇÃO
C87: E013 - ELETRO... | D87: ELETROTRANSOL | F87: =16.15/3 -> 5.383333333 | G87: =16.15/3 -> 5.383333333 | H87: 06/02/2019
D88: =IF(C88<>"",VLOOKUP(C88,EMPRESAS,3,FALSE),"") -> 
D89: =IF(C89<>"",VLOOKUP(C89,EMPRESAS,3,FALSE),"") -> 
D90: =IF(C90<>"",VLOOKUP(C90,EMPRESAS,3,FALSE),"") -> 
D91: =IF(C91<>"",VLOOKUP(C91,EMPRESAS,3,FALSE),"") -> 
C92: OBSERVAÇÕES:
B94: FONTE | C94: CÓDIGO | D94: DESCRIÇÃO | E94: UNIDADE | F94: MÉDIA | H94: ÍNDICE RETROAÇÃO
F95: DESONERADA | G95: ONERADA
A96: 13 | B96: COTAÇÃO | C96: =CONCATENATE("COT ",TEXT(A96,"000"),"_SEE") -> COT 013_SEE | D96: PORCA SEXTAVADA 3/8" | E96: UN | F96: =IFERROR(AVERAGE(F98:F102),0) -> 0.13 | G96: =IFERROR(AVERAGE(G98:G102),0) -> 0.13
C97: EMPRESA | D97: NOME DA EMPRESA | F97: COTAÇÕES | H97: DATA COTAÇÃO
C98: E013 - ELETRO... | D98: ELETROTRANSOL | F98: 0.12 | G98: 0.12 | H98: 06/02/2019
C99: E055 - SANETA... | D99: SANETAM COMERCIO DE TUBOS E CONEXOES LTDA. | F99: 0.13 | G99: 0.13 | H99: 06/02/2019
C100: E056 - AC COM... | D100: AC COMERCIO DE FERRAMENTAS E PRODUTOS PARA FIXACAO EIRE | F100: 0.14 | G100: 0.14 | H100: 06/02/2019
D101: =IF(C101<>"",VLOOKUP(C101,EMPRESAS,3,FALSE),"") -> 
D102: =IF(C102<>"",VLOOKUP(C102,EMPRESAS,3,FALSE),"") -> 
C103: OBSERVAÇÕES:
